﻿OrganisationName,OrganisationalUnit,BeneficiaryName,PaymentDate,Amount,Purpose,CategoryInternal,OrganisationURI
Staffordshire County Council,Home to school transport-main,247 Cars Willenhall Ltd,03/06/2019,3443.96,Home School Contract Vehicles,Home School Contract Vehicles,http://opendatacommunities.org/id/county-council/staffordshire  
Staffordshire County Council,Cannock Invoice Led Older Peop,5 Care Services Limited,03/06/2019,776.25,Practical Care,Practical Care,http://opendatacommunities.org/id/county-council/staffordshire  
Staffordshire County Council,Stafford Invoice Led Phys Disa,5 Care Services Limited,03/06/2019,6158.25,Practical Care,Practical Care,http://opendatacommunities.org/id/county-council/staffordshire  
Staffordshire County Council,Home to school transport-main,A2B Cars,03/06/2019,21282.82,Home School Contract Vehicles,Home School Contract Vehicles,http://opendatacommunities.org/id/county-council/staffordshire  
Staffordshire County Council,Headquarters - I.S.P,ABC Fostering Services Ltd,03/06/2019,5698.40,Social Services Oth Local Auth,Social Services Oth Local Auth,http://opendatacommunities.org/id/county-council/staffordshire  
Staffordshire County Council,Headquarters - I.S.P,ABC Fostering Services Ltd,03/06/2019,2964.00,Social Services Oth Local Auth,Social Services Oth Local Auth,http://opendatacommunities.org/id/county-council/staffordshire  
Staffordshire County Council,Headquarters - I.S.P,ABC Fostering Services Ltd,03/06/2019,7996.80,Social Services Oth Local Auth,Social Services Oth Local Auth,http://opendatacommunities.org/id/county-council/staffordshire  
Staffordshire County Council,Headquarters - I.S.P,ABC Fostering Services Ltd,03/06/2019,3120.00,Social Services Oth Local Auth,Social Services Oth Local Auth,http://opendatacommunities.org/id/county-council/staffordshire  
Staffordshire County Council,Headquarters - I.S.P,ABC Fostering Services Ltd,03/06/2019,2880.00,Social Services Oth Local Auth,Social Services Oth Local Auth,http://opendatacommunities.org/id/county-council/staffordshire  
Staffordshire County Council,Headquarters - I.S.P,ABC Fostering Services Ltd,03/06/2019,6308.94,Social Services Oth Local Auth,Social Services Oth Local Auth,http://opendatacommunities.org/id/county-council/staffordshire  
Staffordshire County Council,Headquarters - I.S.P,ABC Fostering Services Ltd,03/06/2019,3281.57,Social Services Oth Local Auth,Social Services Oth Local Auth,http://opendatacommunities.org/id/county-council/staffordshire  
Staffordshire County Council,Headquarters - I.S.P,ABC Fostering Services Ltd,03/06/2019,8853.60,Social Services Oth Local Auth,Social Services Oth Local Auth,http://opendatacommunities.org/id/county-council/staffordshire  
Staffordshire County Council,Headquarters - I.S.P,ABC Fostering Services Ltd,03/06/2019,3454.29,Social Services Oth Local Auth,Social Services Oth Local Auth,http://opendatacommunities.org/id/county-council/staffordshire  
Staffordshire County Council,Headquarters - I.S.P,ABC Fostering Services Ltd,03/06/2019,3188.57,Social Services Oth Local Auth,Social Services Oth Local Auth,http://opendatacommunities.org/id/county-council/staffordshire  
Staffordshire County Council,Headquarters - I.S.P,ABC Fostering Services Ltd,03/06/2019,6105.43,Social Services Oth Local Auth,Social Services Oth Local Auth,http://opendatacommunities.org/id/county-council/staffordshire  
Staffordshire County Council,Headquarters - I.S.P,ABC Fostering Services Ltd,03/06/2019,3175.71,Social Services Oth Local Auth,Social Services Oth Local Auth,http://opendatacommunities.org/id/county-council/staffordshire  
Staffordshire County Council,Headquarters - I.S.P,ABC Fostering Services Ltd,03/06/2019,8567.99,Social Services Oth Local Auth,Social Services Oth Local Auth,http://opendatacommunities.org/id/county-council/staffordshire  
Staffordshire County Council,Headquarters - I.S.P,ABC Fostering Services Ltd,03/06/2019,3342.86,Social Services Oth Local Auth,Social Services Oth Local Auth,http://opendatacommunities.org/id/county-council/staffordshire  
Staffordshire County Council,Headquarters - I.S.P,ABC Fostering Services Ltd,03/06/2019,3085.71,Social Services Oth Local Auth,Social Services Oth Local Auth,http://opendatacommunities.org/id/county-council/staffordshire  
Staffordshire County Council,Cannock Invoice Led Phys Disab,Active Assistance Ltd,03/06/2019,1176.56,Practical Care,Practical Care,http://opendatacommunities.org/id/county-council/staffordshire  
Staffordshire County Council,12 Drug Misuse - A,Addiction Dependency Solutions,03/06/2019,420091.67,OTHER HIRED SERVICES,OTHER HIRED SERVICES,http://opendatacommunities.org/id/county-council/staffordshire  
Staffordshire County Council,Cannock Invoice Led Older Peop,ADVANCE HEALTHCARE UK LTD,03/06/2019,1669.35,Practical Care,Practical Care,http://opendatacommunities.org/id/county-council/staffordshire  
Staffordshire County Council,Statutory Recycling Credits,CANNOCK CHASE COUNCIL,03/06/2019,73849.00,Recycling Credits,Recycling Credits,http://opendatacommunities.org/id/county-council/staffordshire  
Staffordshire County Council,Statutory Recycling Credits,CANNOCK CHASE COUNCIL,03/06/2019,73849.00,Recycling Credits,Recycling Credits,http://opendatacommunities.org/id/county-council/staffordshire  
Staffordshire County Council,Statutory Recycling Credits,CANNOCK CHASE COUNCIL,03/06/2019,73849.00,Recycling Credits,Recycling Credits,http://opendatacommunities.org/id/county-council/staffordshire  
Staffordshire County Council,Headquarters - I.S.P,CARE TODAY,03/06/2019,1195.98,Specialist Childs Res Services,Specialist Childs Res Services,http://opendatacommunities.org/id/county-council/staffordshire  
Staffordshire County Council,Headquarters - I.S.P,Castle Homes Care Ltd-Priory Group North,03/06/2019,26092.41,Specialist Childs Res Services,Specialist Childs Res Services,http://opendatacommunities.org/id/county-council/staffordshire  
Staffordshire County Council,Headquarters - I.S.P,Castle Homes Care Ltd-Priory Group North,03/06/2019,3985.71,Specialist Childs Res Services,Specialist Childs Res Services,http://opendatacommunities.org/id/county-council/staffordshire  
Staffordshire County Council,Home to school transport-main,CITY CENTRE CENTRAL,03/06/2019,93081.76,Home School Contract Vehicles,Home School Contract Vehicles,http://opendatacommunities.org/id/county-council/staffordshire  
Staffordshire County Council,Moorlands Invoice Led Older Pe,Community Care Worker,03/06/2019,516.60,Practical Care,Practical Care,http://opendatacommunities.org/id/county-council/staffordshire  
Staffordshire County Council,Newcastle Invoice Led Older Pe,Community Care Worker,03/06/2019,516.60,Practical Care,Practical Care,http://opendatacommunities.org/id/county-council/staffordshire  
Staffordshire County Council,Newcastle Invoice Led Older Pe,Community Care Worker,03/06/2019,728.28,Practical Care,Practical Care,http://opendatacommunities.org/id/county-council/staffordshire  
Staffordshire County Council,Stafford Invoice Led Phys Disa,Complete Care Holdings Ltd,03/06/2019,753.60,Practical Care,Practical Care,http://opendatacommunities.org/id/county-council/staffordshire  
Staffordshire County Council,Stafford Invoice Led Phys Disa,Complete Care Holdings Ltd,03/06/2019,942.00,Practical Care,Practical Care,http://opendatacommunities.org/id/county-council/staffordshire  
Staffordshire County Council,Stafford Invoice Led Phys Disa,Complete Care Holdings Ltd,03/06/2019,753.60,Practical Care,Practical Care,http://opendatacommunities.org/id/county-council/staffordshire  
Staffordshire County Council,Stafford Invoice Led Phys Disa,Complete Care Holdings Ltd,03/06/2019,942.00,Practical Care,Practical Care,http://opendatacommunities.org/id/county-council/staffordshire  
Staffordshire County Council,Stafford Invoice Led Phys Disa,Complete Care Holdings Ltd,03/06/2019,753.60,Practical Care,Practical Care,http://opendatacommunities.org/id/county-council/staffordshire  
Staffordshire County Council,Stafford Invoice Led Phys Disa,Complete Care Holdings Ltd,03/06/2019,580.90,Practical Care,Practical Care,http://opendatacommunities.org/id/county-council/staffordshire  
Staffordshire County Council,Stafford Invoice Led Phys Disa,Complete Care Holdings Ltd,03/06/2019,942.00,Practical Care,Practical Care,http://opendatacommunities.org/id/county-council/staffordshire  
Staffordshire County Council,Stafford Invoice Led Phys Disa,Complete Care Holdings Ltd,03/06/2019,753.60,Practical Care,Practical Care,http://opendatacommunities.org/id/county-council/staffordshire  
Staffordshire County Council,Stafford Invoice Led Phys Disa,Complete Care Holdings Ltd,03/06/2019,753.60,Practical Care,Practical Care,http://opendatacommunities.org/id/county-council/staffordshire  
Staffordshire County Council,Stafford Invoice Led Phys Disa,Complete Care Holdings Ltd,03/06/2019,753.60,Practical Care,Practical Care,http://opendatacommunities.org/id/county-council/staffordshire  
Staffordshire County Council,Stafford Invoice Led Phys Disa,Complete Care Holdings Ltd,03/06/2019,942.00,Practical Care,Practical Care,http://opendatacommunities.org/id/county-council/staffordshire  
Staffordshire County Council,Stafford Invoice Led Phys Disa,Complete Care Holdings Ltd,03/06/2019,942.00,Practical Care,Practical Care,http://opendatacommunities.org/id/county-council/staffordshire  
Staffordshire County Council,Cannock Invoice Led Phys Disab,CSPC Healthcare Ltd,03/06/2019,598.50,Practical Care,Practical Care,http://opendatacommunities.org/id/county-council/staffordshire  
Staffordshire County Council,Independent Sch Fees Mainstr'm,DAISY CHAINS DAY NURSERY,03/06/2019,1080.00,Fees to Independent Schools,Fees to Independent Schools,http://opendatacommunities.org/id/county-council/staffordshire  
Staffordshire County Council,Cannock Chase LD Team,Delam Care Ltd,03/06/2019,4795.68,Supported Group Care,Supported Group Care,http://opendatacommunities.org/id/county-council/staffordshire  
Staffordshire County Council,Cannock Chase LD Team,Delam Care Ltd,03/06/2019,4420.32,Supported Group Care,Supported Group Care,http://opendatacommunities.org/id/county-council/staffordshire  
Staffordshire County Council,1 STI Test & Treat,Derbyshire Comm Health Servs NHS FT,03/06/2019,2375.80,other services internal,other services internal,http://opendatacommunities.org/id/county-council/staffordshire  
Staffordshire County Council,1 STI Test & Treat,Derbyshire Comm Health Servs NHS FT,03/06/2019,1210.59,other services internal,other services internal,http://opendatacommunities.org/id/county-council/staffordshire  
Staffordshire County Council,1 STI Test & Treat,Derbyshire Comm Health Servs NHS FT,03/06/2019,2092.97,other services internal,other services internal,http://opendatacommunities.org/id/county-council/staffordshire  
Staffordshire County Council,1 STI Test & Treat,Derbyshire Comm Health Servs NHS FT,03/06/2019,2017.28,other services internal,other services internal,http://opendatacommunities.org/id/county-council/staffordshire  
Staffordshire County Council,1 STI Test & Treat,Derbyshire Comm Health Servs NHS FT,03/06/2019,3614.50,other services internal,other services internal,http://opendatacommunities.org/id/county-council/staffordshire  
Staffordshire County Council,1 STI Test & Treat,Derbyshire Comm Health Servs NHS FT,03/06/2019,1836.59,other services internal,other services internal,http://opendatacommunities.org/id/county-council/staffordshire  
Staffordshire County Council,Statutory Recycling Credits,EAST STAFFS BOROUGH COUNCIL,03/06/2019,97129.00,Recycling Credits,Recycling Credits,http://opendatacommunities.org/id/county-council/staffordshire  
Staffordshire County Council,Statutory Recycling Credits,EAST STAFFS BOROUGH COUNCIL,03/06/2019,90476.00,Recycling Credits,Recycling Credits,http://opendatacommunities.org/id/county-council/staffordshire  
Staffordshire County Council,Statutory Recycling Credits,EAST STAFFS BOROUGH COUNCIL,03/06/2019,90476.00,Recycling Credits,Recycling Credits,http://opendatacommunities.org/id/county-council/staffordshire  
Staffordshire County Council,Statutory Recycling Credits,EAST STAFFS BOROUGH COUNCIL,03/06/2019,90476.00,Recycling Credits,Recycling Credits,http://opendatacommunities.org/id/county-council/staffordshire  
Staffordshire County Council,Headquarters - I.S.P,Fostering Options Ltd,03/06/2019,3312.57,Social Services Oth Local Auth,Social Services Oth Local Auth,http://opendatacommunities.org/id/county-council/staffordshire  
Staffordshire County Council,Headquarters - I.S.P,FOSTERING SOLUTIONS LTD,03/06/2019,4350.45,Social Services Oth Local Auth,Social Services Oth Local Auth,http://opendatacommunities.org/id/county-council/staffordshire  
Staffordshire County Council,5438 Staffs Place 1&2Tipping S,GERRARD ELECTRICAL CONTRACTORS LTD,03/06/2019,3598.72,Day to Day Electrical Services,Day to Day Electrical Services,http://opendatacommunities.org/id/county-council/staffordshire  
Staffordshire County Council,E Staffs MH Team U65,Grangemoor Care Homes Limited,03/06/2019,1896.43,Supported Group Care,Supported Group Care,http://opendatacommunities.org/id/county-council/staffordshire  
Staffordshire County Council,E Staffs MH Team U65,Grangemoor Care Homes Limited,03/06/2019,1959.64,Supported Group Care,Supported Group Care,http://opendatacommunities.org/id/county-council/staffordshire  
Staffordshire County Council,Headquarters - I.S.P,IDEAL FOSTERING,03/06/2019,3537.94,Social Services Oth Local Auth,Social Services Oth Local Auth,http://opendatacommunities.org/id/county-council/staffordshire  
Staffordshire County Council,Headquarters - I.S.P,IDEAL FOSTERING,03/06/2019,17406.69,Social Services Oth Local Auth,Social Services Oth Local Auth,http://opendatacommunities.org/id/county-council/staffordshire  
Staffordshire County Council,Headquarters - I.S.P,IDEAL FOSTERING,03/06/2019,10509.31,Social Services Oth Local Auth,Social Services Oth Local Auth,http://opendatacommunities.org/id/county-council/staffordshire  
Staffordshire County Council,Headquarters - I.S.P,IDEAL FOSTERING,03/06/2019,8401.21,Social Services Oth Local Auth,Social Services Oth Local Auth,http://opendatacommunities.org/id/county-council/staffordshire  
Staffordshire County Council,Headquarters - I.S.P,IDEAL FOSTERING,03/06/2019,7111.67,Social Services Oth Local Auth,Social Services Oth Local Auth,http://opendatacommunities.org/id/county-council/staffordshire  
Staffordshire County Council,Headquarters - I.S.P,IDEAL FOSTERING,03/06/2019,3573.68,Social Services Oth Local Auth,Social Services Oth Local Auth,http://opendatacommunities.org/id/county-council/staffordshire  
Staffordshire County Council,Headquarters - I.S.P,IDEAL FOSTERING,03/06/2019,10333.32,Social Services Oth Local Auth,Social Services Oth Local Auth,http://opendatacommunities.org/id/county-council/staffordshire  
Staffordshire County Council,Headquarters - I.S.P,IDEAL FOSTERING,03/06/2019,3573.68,Social Services Oth Local Auth,Social Services Oth Local Auth,http://opendatacommunities.org/id/county-council/staffordshire  
Staffordshire County Council,Headquarters - I.S.P,IDEAL FOSTERING,03/06/2019,6688.30,Social Services Oth Local Auth,Social Services Oth Local Auth,http://opendatacommunities.org/id/county-council/staffordshire  
Staffordshire County Council,Headquarters - I.S.P,IDEAL FOSTERING,03/06/2019,16164.77,Social Services Oth Local Auth,Social Services Oth Local Auth,http://opendatacommunities.org/id/county-council/staffordshire  
Staffordshire County Council,Headquarters - I.S.P,Individual Specialist Care,03/06/2019,2231.51,Specialist Childs Res Services,Specialist Childs Res Services,http://opendatacommunities.org/id/county-council/staffordshire  
Staffordshire County Council,Newcastle MH Team U65,Jump 2 Independence Ltd,03/06/2019,520.57,Supported Group Care,Supported Group Care,http://opendatacommunities.org/id/county-council/staffordshire  
Staffordshire County Council,Moorlands Invoice Led Older Pe,K and S Care Solutions Ltd,03/06/2019,597.80,Practical Care,Practical Care,http://opendatacommunities.org/id/county-council/staffordshire  
Staffordshire County Council,Stafford Invoice Led Older Peo,K and S Care Solutions Ltd,03/06/2019,853.65,Practical Care,Practical Care,http://opendatacommunities.org/id/county-council/staffordshire  
Staffordshire County Council,Headquarters - I.S.P,Keys Childcare Ltd,03/06/2019,564.29,Specialist Childs Res Services,Specialist Childs Res Services,http://opendatacommunities.org/id/county-council/staffordshire  
Staffordshire County Council,Statutory Recycling Credits,LICHFIELD DISTRICT COUNCIL,03/06/2019,82656.00,Recycling Credits,Recycling Credits,http://opendatacommunities.org/id/county-council/staffordshire  
Staffordshire County Council,Statutory Recycling Credits,LICHFIELD DISTRICT COUNCIL,03/06/2019,82656.00,Recycling Credits,Recycling Credits,http://opendatacommunities.org/id/county-council/staffordshire  
Staffordshire County Council,Statutory Recycling Credits,LICHFIELD DISTRICT COUNCIL,03/06/2019,82656.00,Recycling Credits,Recycling Credits,http://opendatacommunities.org/id/county-council/staffordshire  
Staffordshire County Council,Moorlands Invoice Led Older Pe,Life Plan Solutions t/a Kare Plus Stoke,03/06/2019,743.65,Practical Care,Practical Care,http://opendatacommunities.org/id/county-council/staffordshire  
Staffordshire County Council,Assett Renewal - Various Estab,M W CRIPWELL LTD,03/06/2019,834.00,Construction Works,Construction Works,http://opendatacommunities.org/id/county-council/staffordshire  
Staffordshire County Council,Virtual School - Pupil Premium,NATIONAL TEACHING ADVISORY SERVI,03/06/2019,760.50,OTHER ALLOWANCES,OTHER ALLOWANCES,http://opendatacommunities.org/id/county-council/staffordshire  
Staffordshire County Council,Statutory Recycling Credits,NEWCASTLE BOROUGH COUNCIL,03/06/2019,93603.00,Recycling Credits,Recycling Credits,http://opendatacommunities.org/id/county-council/staffordshire  
Staffordshire County Council,Statutory Recycling Credits,NEWCASTLE BOROUGH COUNCIL,03/06/2019,79408.00,Recycling Credits,Recycling Credits,http://opendatacommunities.org/id/county-council/staffordshire  
Staffordshire County Council,Statutory Recycling Credits,NEWCASTLE BOROUGH COUNCIL,03/06/2019,79408.00,Recycling Credits,Recycling Credits,http://opendatacommunities.org/id/county-council/staffordshire  
Staffordshire County Council,Statutory Recycling Credits,NEWCASTLE BOROUGH COUNCIL,03/06/2019,79408.00,Recycling Credits,Recycling Credits,http://opendatacommunities.org/id/county-council/staffordshire  
Staffordshire County Council,Headquarters - I.S.P,Nexus Fostering Ltd,03/06/2019,6317.04,Social Services Oth Local Auth,Social Services Oth Local Auth,http://opendatacommunities.org/id/county-council/staffordshire  
Staffordshire County Council,Headquarters - I.S.P,Nexus Fostering Ltd,03/06/2019,6165.90,Social Services Oth Local Auth,Social Services Oth Local Auth,http://opendatacommunities.org/id/county-council/staffordshire  
Staffordshire County Council,2 Contraception,P CRAVEN,03/06/2019,682.80,other services external,other services external,http://opendatacommunities.org/id/county-council/staffordshire  
Staffordshire County Council,Adult Placement Respite,PSS,03/06/2019,31568.00,OTHER HIRED SERVICES,OTHER HIRED SERVICES,http://opendatacommunities.org/id/county-council/staffordshire  
Staffordshire County Council,SStaffs Invoice Led Older Peop,QUALITY HOME CARE,03/06/2019,573.75,Practical Care,Practical Care,http://opendatacommunities.org/id/county-council/staffordshire  
Staffordshire County Council,S Staffs Invoice Led Physic Di,QUALITY HOME CARE,03/06/2019,2618.00,Practical Care,Practical Care,http://opendatacommunities.org/id/county-council/staffordshire  
Staffordshire County Council,SStaffs Invoice Led Older Peop,QUALITY HOME CARE,03/06/2019,556.75,Practical Care,Practical Care,http://opendatacommunities.org/id/county-council/staffordshire  
Staffordshire County Council,SStaffs Invoice Led Older Peop,QUALITY HOME CARE,03/06/2019,578.00,Practical Care,Practical Care,http://opendatacommunities.org/id/county-council/staffordshire  
Staffordshire County Council,SStaffs Invoice Led Older Peop,QUALITY HOME CARE,03/06/2019,675.00,Practical Care,Practical Care,http://opendatacommunities.org/id/county-council/staffordshire  
Staffordshire County Council,SStaffs Invoice Led Older Peop,QUALITY HOME CARE,03/06/2019,881.25,Practical Care,Practical Care,http://opendatacommunities.org/id/county-council/staffordshire  
Staffordshire County Council,SStaffs Invoice Led Older Peop,QUALITY HOME CARE,03/06/2019,994.58,Practical Care,Practical Care,http://opendatacommunities.org/id/county-council/staffordshire  
Staffordshire County Council,East Staffs Invoice Led Older ,RLS Care Services LTD,03/06/2019,510.30,Practical Care,Practical Care,http://opendatacommunities.org/id/county-council/staffordshire  
Staffordshire County Council,East Staffs Invoice Led Older ,RLS Care Services LTD,03/06/2019,510.30,Practical Care,Practical Care,http://opendatacommunities.org/id/county-council/staffordshire  
Staffordshire County Council,East Staffs Invoice Led Older ,RLS Care Services LTD,03/06/2019,567.00,Practical Care,Practical Care,http://opendatacommunities.org/id/county-council/staffordshire  
Staffordshire County Council,East Staffs Invoice Led Older ,RLS Care Services LTD,03/06/2019,510.30,Practical Care,Practical Care,http://opendatacommunities.org/id/county-council/staffordshire  
Staffordshire County Council,East Staffs Invoice Led Older ,RLS Care Services LTD,03/06/2019,680.40,Practical Care,Practical Care,http://opendatacommunities.org/id/county-council/staffordshire  
Staffordshire County Council,East Staffs Invoice Led Older ,RLS Care Services LTD,03/06/2019,510.30,Practical Care,Practical Care,http://opendatacommunities.org/id/county-council/staffordshire  
Staffordshire County Council,Lichfield Invoice Led Older Pe,RLS Care Services LTD,03/06/2019,510.30,Practical Care,Practical Care,http://opendatacommunities.org/id/county-council/staffordshire  
Staffordshire County Council,Lichfield Invoice Led Physi Di,RLS Care Services LTD,03/06/2019,615.60,Practical Care,Practical Care,http://opendatacommunities.org/id/county-council/staffordshire  
Staffordshire County Council,East Staffs Invoice Led Phys D,RLS Care Services LTD,03/06/2019,510.30,Practical Care,Practical Care,http://opendatacommunities.org/id/county-council/staffordshire  
Staffordshire County Council,IF-I.S.P.,RUGELEY HORIZON PRIORY,03/06/2019,1350.00,Specialist Childs Res Services,Specialist Childs Res Services,http://opendatacommunities.org/id/county-council/staffordshire  
Staffordshire County Council,IF-I.S.P.,RUGELEY HORIZON PRIORY,03/06/2019,4170.00,Specialist Childs Res Services,Specialist Childs Res Services,http://opendatacommunities.org/id/county-council/staffordshire  
Staffordshire County Council,Cannock Chase LD Team,Selborne Care Ltd,03/06/2019,7169.80,Supported Group Care,Supported Group Care,http://opendatacommunities.org/id/county-council/staffordshire  
Staffordshire County Council,Statutory Recycling Credits,South Staffs District Council,03/06/2019,93458.00,Recycling Credits,Recycling Credits,http://opendatacommunities.org/id/county-council/staffordshire  
Staffordshire County Council,Statutory Recycling Credits,South Staffs District Council,03/06/2019,93458.00,Recycling Credits,Recycling Credits,http://opendatacommunities.org/id/county-council/staffordshire  
Staffordshire County Council,Statutory Recycling Credits,South Staffs District Council,03/06/2019,93458.00,Recycling Credits,Recycling Credits,http://opendatacommunities.org/id/county-council/staffordshire  
Staffordshire County Council,Statutory Recycling Credits,STAFFORD BOROUGH COUNCIL,03/06/2019,108146.00,Recycling Credits,Recycling Credits,http://opendatacommunities.org/id/county-council/staffordshire  
Staffordshire County Council,Statutory Recycling Credits,STAFFORD BOROUGH COUNCIL,03/06/2019,108146.00,Recycling Credits,Recycling Credits,http://opendatacommunities.org/id/county-council/staffordshire  
Staffordshire County Council,Statutory Recycling Credits,STAFFORD BOROUGH COUNCIL,03/06/2019,108146.00,Recycling Credits,Recycling Credits,http://opendatacommunities.org/id/county-council/staffordshire  
Staffordshire County Council,Statutory Recycling Credits,STAFFORDSHIRE MOORLANDS DIS CNCL,03/06/2019,88919.00,Recycling Credits,Recycling Credits,http://opendatacommunities.org/id/county-council/staffordshire  
Staffordshire County Council,Statutory Recycling Credits,STAFFORDSHIRE MOORLANDS DIS CNCL,03/06/2019,88919.00,Recycling Credits,Recycling Credits,http://opendatacommunities.org/id/county-council/staffordshire  
Staffordshire County Council,Statutory Recycling Credits,STAFFORDSHIRE MOORLANDS DIS CNCL,03/06/2019,88919.00,Recycling Credits,Recycling Credits,http://opendatacommunities.org/id/county-council/staffordshire  
Staffordshire County Council,IF-I.S.P.,Sunfield Children's Homes Ltd,03/06/2019,99752.99,Specialist Childs Res Services,Specialist Childs Res Services,http://opendatacommunities.org/id/county-council/staffordshire  
Staffordshire County Council,Headquarters - I.S.P,SWIIS FOSTER CARE LTD,03/06/2019,6093.01,Social Services Oth Local Auth,Social Services Oth Local Auth,http://opendatacommunities.org/id/county-council/staffordshire  
Staffordshire County Council,Headquarters - I.S.P,SWIIS FOSTER CARE LTD,03/06/2019,5623.71,Social Services Oth Local Auth,Social Services Oth Local Auth,http://opendatacommunities.org/id/county-council/staffordshire  
Staffordshire County Council,Asylum Seekers,SWIIS FOSTER CARE LTD,03/06/2019,3459.60,Social Services Oth Local Auth,Social Services Oth Local Auth,http://opendatacommunities.org/id/county-council/staffordshire  
Staffordshire County Council,Headquarters - I.S.P,SWIIS FOSTER CARE LTD,03/06/2019,4162.86,Social Services Oth Local Auth,Social Services Oth Local Auth,http://opendatacommunities.org/id/county-council/staffordshire  
Staffordshire County Council,Prevention and Placement,T Hall Consultancy,03/06/2019,700.00,CONSULTANT FEES,CONSULTANT FEES,http://opendatacommunities.org/id/county-council/staffordshire  
Staffordshire County Council,Statutory Recycling Credits,TAMWORTH BOROUGH COUNCIL,03/06/2019,52317.00,Recycling Credits,Recycling Credits,http://opendatacommunities.org/id/county-council/staffordshire  
Staffordshire County Council,Statutory Recycling Credits,TAMWORTH BOROUGH COUNCIL,03/06/2019,52317.00,Recycling Credits,Recycling Credits,http://opendatacommunities.org/id/county-council/staffordshire  
Staffordshire County Council,Statutory Recycling Credits,TAMWORTH BOROUGH COUNCIL,03/06/2019,52317.00,Recycling Credits,Recycling Credits,http://opendatacommunities.org/id/county-council/staffordshire  
Staffordshire County Council,Tamworth Invoice Led Older Peo,Tamworth Home Care Ltd,03/06/2019,1377.60,Practical Care,Practical Care,http://opendatacommunities.org/id/county-council/staffordshire  
Staffordshire County Council,5438 Staffs Place 1&2Tipping S,Taybar Limited,03/06/2019,1457.28,Premises Services,Premises Services,http://opendatacommunities.org/id/county-council/staffordshire  
Staffordshire County Council,Independent Sch Fees Mainstr'm,TETTENHALL COLLEGE,03/06/2019,6506.50,Fees to Independent Schools,Fees to Independent Schools,http://opendatacommunities.org/id/county-council/staffordshire  
Staffordshire County Council,East Staffs Invoice Led Older ,TLC Homecare Services,03/06/2019,777.75,Practical Care,Practical Care,http://opendatacommunities.org/id/county-council/staffordshire  
Staffordshire County Council,Stafford Invoice Led Older Peo,Triband Recruit Ltd t/a Triband HomeCare,03/06/2019,784.00,Practical Care,Practical Care,http://opendatacommunities.org/id/county-council/staffordshire  
Staffordshire County Council,Stafford Invoice Led Older Peo,Triband Recruit Ltd t/a Triband HomeCare,03/06/2019,567.00,Practical Care,Practical Care,http://opendatacommunities.org/id/county-council/staffordshire  
Staffordshire County Council,Stafford Invoice Led Older Peo,Triband Recruit Ltd t/a Triband HomeCare,03/06/2019,742.00,Practical Care,Practical Care,http://opendatacommunities.org/id/county-council/staffordshire  
Staffordshire County Council,Stafford Invoice Led Phys Disa,Triband Recruit Ltd t/a Triband HomeCare,03/06/2019,672.00,Practical Care,Practical Care,http://opendatacommunities.org/id/county-council/staffordshire  
Staffordshire County Council,Stafford Invoice Led Phys Disa,Triband Recruit Ltd t/a Triband HomeCare,03/06/2019,504.00,Practical Care,Practical Care,http://opendatacommunities.org/id/county-council/staffordshire  
Staffordshire County Council,Moorlands Invoice Led Phys Dis,Triband Recruit Ltd t/a Triband HomeCare,03/06/2019,567.00,Practical Care,Practical Care,http://opendatacommunities.org/id/county-council/staffordshire  
Staffordshire County Council,Moorlands Invoice Led Older Pe,Triband Recruit Ltd t/a Triband HomeCare,03/06/2019,630.00,Practical Care,Practical Care,http://opendatacommunities.org/id/county-council/staffordshire  
Staffordshire County Council,Moorlands Invoice Led Older Pe,Triband Recruit Ltd t/a Triband HomeCare,03/06/2019,756.00,Practical Care,Practical Care,http://opendatacommunities.org/id/county-council/staffordshire  
Staffordshire County Council,Moorlands Invoice Led Older Pe,Triband Recruit Ltd t/a Triband HomeCare,03/06/2019,567.00,Practical Care,Practical Care,http://opendatacommunities.org/id/county-council/staffordshire  
Staffordshire County Council,Home to school transport-main,VIKING COACHES,03/06/2019,7639.96,Home School Contract Vehicles,Home School Contract Vehicles,http://opendatacommunities.org/id/county-council/staffordshire  
Staffordshire County Council,Home to school transport-main,W Ahmed T/A 24 Taxis Lichfield,03/06/2019,8487.80,Manned Transpt - Hire Medical,Manned Transpt - Hire Medical,http://opendatacommunities.org/id/county-council/staffordshire  
Staffordshire County Council,Headquarters - I.S.P,Welbeck Defence Sixth Form College,03/06/2019,1866.17,Specialist Childs Res Services,Specialist Childs Res Services,http://opendatacommunities.org/id/county-council/staffordshire  
Staffordshire County Council,Disposal Districts Unallocated,Willshees,03/06/2019,1002.92,WASTE TRANSPORT,WASTE TRANSPORT,http://opendatacommunities.org/id/county-council/staffordshire  
Staffordshire County Council,Disposal Districts Unallocated,Willshees,03/06/2019,23534.35,WASTE TRANSPORT,WASTE TRANSPORT,http://opendatacommunities.org/id/county-council/staffordshire  
Staffordshire County Council,Disposal Districts Unallocated,Willshees,03/06/2019,17348.68,WASTE TRANSPORT,WASTE TRANSPORT,http://opendatacommunities.org/id/county-council/staffordshire  
Staffordshire County Council,Home to school transport-main,24HR WEST SIDE TAXIS,04/06/2019,22394.82,Home School Contract Vehicles,Home School Contract Vehicles,http://opendatacommunities.org/id/county-council/staffordshire  
Staffordshire County Council,0920 Kidsgrove Library Meadows,BID,04/06/2019,2508.00,Day to Day Mechanical Services,Day to Day Mechanical Services,http://opendatacommunities.org/id/county-council/staffordshire  
Staffordshire County Council,Specialist Supp Serv ASD Cent,Birmingham City Council,04/06/2019,2550.00,Subscriptions General,Subscriptions General,http://opendatacommunities.org/id/county-council/staffordshire  
Staffordshire County Council,East Staffs Invoice Led Older ,Bluebird Care (East Staffs),04/06/2019,1172.80,Practical Care,Practical Care,http://opendatacommunities.org/id/county-council/staffordshire  
Staffordshire County Council,Operations Delivery,BROCTON PARISH COUNCIL,04/06/2019,1731.22,Parish District Grass Cutting,Parish District Grass Cutting,http://opendatacommunities.org/id/county-council/staffordshire  
Staffordshire County Council,Newcastle MH Team U65,Caretech Community Service Ltd,04/06/2019,2446.70,Supported Group Care,Supported Group Care,http://opendatacommunities.org/id/county-council/staffordshire  
Staffordshire County Council,Fostering Main,Chris Dennison Consulting Ltd,04/06/2019,1413.00,Stationery General,Stationery General,http://opendatacommunities.org/id/county-council/staffordshire  
Staffordshire County Council,Stat-OOC transport,CITY CARS (MIDLANDS)LTD,04/06/2019,900.24,Home School Contract Vehicles,Home School Contract Vehicles,http://opendatacommunities.org/id/county-council/staffordshire  
Staffordshire County Council,Home to school transport-main,COASTAL LINER LTD,04/06/2019,1716.00,Home School Tickets,Home School Tickets,http://opendatacommunities.org/id/county-council/staffordshire  
Staffordshire County Council,2 Contraception,Colliery Practice,04/06/2019,2502.96,other services external,other services external,http://opendatacommunities.org/id/county-council/staffordshire  
Staffordshire County Council,Court & Care Plan - Lich/Can,Crisis Point,04/06/2019,1790.00,S17 FAMILY SUPPORT,S17 FAMILY SUPPORT,http://opendatacommunities.org/id/county-council/staffordshire  
Staffordshire County Council,Central Winter Maintenance Wor,D E WOOD,04/06/2019,780.00,Winter Maint - Snow Clearing,Winter Maint - Snow Clearing,http://opendatacommunities.org/id/county-council/staffordshire  
Staffordshire County Council,Central Winter Maintenance Wor,D HALL,04/06/2019,1094.40,Winter Maint - Snow Clearing,Winter Maint - Snow Clearing,http://opendatacommunities.org/id/county-council/staffordshire  
Staffordshire County Council,Independent School Fee Special,DAVID LEWIS CENTRE FOR EPILEPSY,04/06/2019,2284.75,Fees to Independent Schools,Fees to Independent Schools,http://opendatacommunities.org/id/county-council/staffordshire  
Staffordshire County Council,Staff/SStaffs Disability Team,,04/06/2019,855.40,S17 FAMILY SUPPORT,S17 FAMILY SUPPORT,http://opendatacommunities.org/id/county-council/staffordshire  
Staffordshire County Council,East Staffs Invoice Led Phys D,Desire Care,04/06/2019,746.00,Practical Care,Practical Care,http://opendatacommunities.org/id/county-council/staffordshire  
Staffordshire County Council,59 Yarlet - Build Works,DeVille and Lear Ltd,04/06/2019,38155.20,Construction Works,Construction Works,http://opendatacommunities.org/id/county-council/staffordshire  
Staffordshire County Council,Case Manage Team -Central West,DNA Legal Ltd,04/06/2019,712.80,Prev Supp Legal Costs,Prev Supp Legal Costs,http://opendatacommunities.org/id/county-council/staffordshire  
Staffordshire County Council,S278 Churchbridge /Orbital Way,E ON UK ENERGY SERVICES LTD,04/06/2019,2970.00,Ext Fees Construction,Ext Fees Construction,http://opendatacommunities.org/id/county-council/staffordshire  
Staffordshire County Council,2 Contraception,GORDON STREET SURGERY,04/06/2019,900.00,other services external,other services external,http://opendatacommunities.org/id/county-council/staffordshire  
Staffordshire County Council,2 Contraception,GORDON STREET SURGERY,04/06/2019,1155.00,other services external,other services external,http://opendatacommunities.org/id/county-council/staffordshire  
Staffordshire County Council,Newc/Moor CIC Through Care Tm,Hanley Furniture Centre,04/06/2019,518.00,S17-HOUSEHOLD ITEMS,S17-HOUSEHOLD ITEMS,http://opendatacommunities.org/id/county-council/staffordshire  
Staffordshire County Council,S Staffs Invoice Led Physic Di,HaywardLiving,04/06/2019,2112.00,Supported Group Care,Supported Group Care,http://opendatacommunities.org/id/county-council/staffordshire  
Staffordshire County Council,7317 Hillfield Respite Propert,INTEGRATED WATER SERVICES,04/06/2019,624.65,Special Water Hygiene Service,Special Water Hygiene Service,http://opendatacommunities.org/id/county-council/staffordshire  
Staffordshire County Council,Social Care H&S General,JLA LTD,04/06/2019,9444.00,Construction Works,Construction Works,http://opendatacommunities.org/id/county-council/staffordshire  
Staffordshire County Council,Speech and Language/O Therapy,K Geary,04/06/2019,810.00,OTHER HIRED SERVICES,OTHER HIRED SERVICES,http://opendatacommunities.org/id/county-council/staffordshire  
Staffordshire County Council,Legal Services Unit,LEXISNEXIS,04/06/2019,26737.24,Subscriptions General,Subscriptions General,http://opendatacommunities.org/id/county-council/staffordshire  
Staffordshire County Council,S Staffs LD Team,Mencap,04/06/2019,6120.00,Extra Care,Extra Care,http://opendatacommunities.org/id/county-council/staffordshire  
Staffordshire County Council,Lichfield LD Team,Mencap,04/06/2019,2576.00,RCLS Learning Disability,RCLS Learning Disability,http://opendatacommunities.org/id/county-council/staffordshire  
Staffordshire County Council,Stafford Invoice Led Phys Disa,Midway Support Services,04/06/2019,1438.18,Practical Care,Practical Care,http://opendatacommunities.org/id/county-council/staffordshire  
Staffordshire County Council,Family Group Conferencing,N Parveen,04/06/2019,575.00,AGENCY STAFF,AGENCY STAFF,http://opendatacommunities.org/id/county-council/staffordshire  
Staffordshire County Council,DIPS,NATIONAL TEACHING ADVISORY SERVI,04/06/2019,702.00, Alternative Education Schemes, Alternative Education Schemes,http://opendatacommunities.org/id/county-council/staffordshire  
Staffordshire County Council,DIPS,NATIONAL TEACHING ADVISORY SERVI,04/06/2019,1560.00, Alternative Education Schemes, Alternative Education Schemes,http://opendatacommunities.org/id/county-council/staffordshire  
Staffordshire County Council,DIPS,NATIONAL TEACHING ADVISORY SERVI,04/06/2019,1872.00, Alternative Education Schemes, Alternative Education Schemes,http://opendatacommunities.org/id/county-council/staffordshire  
Staffordshire County Council,DIPS,NATIONAL TEACHING ADVISORY SERVI,04/06/2019,1872.00, Alternative Education Schemes, Alternative Education Schemes,http://opendatacommunities.org/id/county-council/staffordshire  
Staffordshire County Council,DIPS,NATIONAL TEACHING ADVISORY SERVI,04/06/2019,1755.00, Alternative Education Schemes, Alternative Education Schemes,http://opendatacommunities.org/id/county-council/staffordshire  
Staffordshire County Council,DIPS,NATIONAL TEACHING ADVISORY SERVI,04/06/2019,1872.00, Alternative Education Schemes, Alternative Education Schemes,http://opendatacommunities.org/id/county-council/staffordshire  
Staffordshire County Council,DIPS,NATIONAL TEACHING ADVISORY SERVI,04/06/2019,546.00, Alternative Education Schemes, Alternative Education Schemes,http://opendatacommunities.org/id/county-council/staffordshire  
Staffordshire County Council,Castle House (The Hub),NEWCASTLE U LYME BOROUGH COUNCIL,04/06/2019,4527.23,Other contribs to provisions,Other contribs to provisions,http://opendatacommunities.org/id/county-council/staffordshire  
Staffordshire County Council,Nexxus,Nexxus Trading Services (t/a Nexxus Care,04/06/2019,83333.33,OTHER HIRED SERVICES,OTHER HIRED SERVICES,http://opendatacommunities.org/id/county-council/staffordshire  
Staffordshire County Council,Speed Awareness,P GORING,04/06/2019,1040.00,DRIVING INSTRUCTION,DRIVING INSTRUCTION,http://opendatacommunities.org/id/county-council/staffordshire  
Staffordshire County Council,Speed Awareness,P Law,04/06/2019,2600.00,DRIVING INSTRUCTION,DRIVING INSTRUCTION,http://opendatacommunities.org/id/county-council/staffordshire  
Staffordshire County Council,DIPS,Reflective School Support,04/06/2019,696.00, Alternative Education Schemes, Alternative Education Schemes,http://opendatacommunities.org/id/county-council/staffordshire  
Staffordshire County Council,Business Support,RISING BROOK BAPTIST CHURCH,04/06/2019,722.50,Conference Fees,Conference Fees,http://opendatacommunities.org/id/county-council/staffordshire  
Staffordshire County Council,MCA / DoLs / AMHP,RKJ Contracts Ltd,04/06/2019,1100.00,Independent Investigations,Independent Investigations,http://opendatacommunities.org/id/county-council/staffordshire  
Staffordshire County Council,Operations Delivery,ROLLESTON ON DOVE P C,04/06/2019,3627.92,Parish District Grass Cutting,Parish District Grass Cutting,http://opendatacommunities.org/id/county-council/staffordshire  
Staffordshire County Council,S Staffs Invoice Led Physic Di,Sevacare,04/06/2019,547.40,Practical Care,Practical Care,http://opendatacommunities.org/id/county-council/staffordshire  
Staffordshire County Council,S Staffs Invoice Led Physic Di,Sevacare,04/06/2019,531.30,Practical Care,Practical Care,http://opendatacommunities.org/id/county-council/staffordshire  
Staffordshire County Council,S Staffs Invoice Led Physic Di,Sevacare,04/06/2019,523.25,Practical Care,Practical Care,http://opendatacommunities.org/id/county-council/staffordshire  
Staffordshire County Council,Stafford Western Access Rd 13/,SEVERN TRENT WATER LTD,04/06/2019,39600.00,Construction Works,Construction Works,http://opendatacommunities.org/id/county-council/staffordshire  
Staffordshire County Council,Corporate Accounting,SOCIETY OF COUNTY TREASURERS,04/06/2019,3944.40,Subscriptions General,Subscriptions General,http://opendatacommunities.org/id/county-council/staffordshire  
Staffordshire County Council,Independent Sch Fees Mainstr'm,SPORTING STARS COMM INTEREST CO,04/06/2019,2831.00,Fees to Independent Schools,Fees to Independent Schools,http://opendatacommunities.org/id/county-council/staffordshire  
Staffordshire County Council,Independent Sch Fees Mainstr'm,SPORTING STARS COMM INTEREST CO,04/06/2019,1691.00,Fees to Independent Schools,Fees to Independent Schools,http://opendatacommunities.org/id/county-council/staffordshire  
Staffordshire County Council,Independent Sch Fees Mainstr'm,SPORTING STARS COMM INTEREST CO,04/06/2019,1691.00,Fees to Independent Schools,Fees to Independent Schools,http://opendatacommunities.org/id/county-council/staffordshire  
Staffordshire County Council,DIPS,St John Fisher Catholic College,04/06/2019,900.00, Alternative Education Schemes, Alternative Education Schemes,http://opendatacommunities.org/id/county-council/staffordshire  
Staffordshire County Council,Street Sweeping - Staffs Moor,SUEZ RECYCLING & RECOVERY UK LTD,04/06/2019,1787.29,Waste Treatment,Waste Treatment,http://opendatacommunities.org/id/county-council/staffordshire  
Staffordshire County Council,Street Sweeping - Stafford,SUEZ RECYCLING & RECOVERY UK LTD,04/06/2019,5004.90,Waste Treatment,Waste Treatment,http://opendatacommunities.org/id/county-council/staffordshire  
Staffordshire County Council,Castle House (The Hub),Taybar Limited,04/06/2019,926.10,Premises Services,Premises Services,http://opendatacommunities.org/id/county-council/staffordshire  
Staffordshire County Council,Stafford Invoice Led Older Peo,Triband Recruit Ltd t/a Triband HomeCare,04/06/2019,742.00,Practical Care,Practical Care,http://opendatacommunities.org/id/county-council/staffordshire  
Staffordshire County Council,Stafford LD Team,Voyage Care Ltd,04/06/2019,541.80,Practical Care,Practical Care,http://opendatacommunities.org/id/county-council/staffordshire  
Staffordshire County Council,Stafford LD Team,Voyage Ltd,04/06/2019,4406.64,Supported Group Care,Supported Group Care,http://opendatacommunities.org/id/county-council/staffordshire  
Staffordshire County Council,East Staffs Invoice Led Phys D,Voyage Ltd,04/06/2019,2244.12,Supported Group Care,Supported Group Care,http://opendatacommunities.org/id/county-council/staffordshire  
Staffordshire County Council,East Staffs Invoice Led Phys D,Voyage Ltd,04/06/2019,2244.12,Supported Group Care,Supported Group Care,http://opendatacommunities.org/id/county-council/staffordshire  
Staffordshire County Council,Longford/Langbourne Cannock,Wrekin Housing Trust,04/06/2019,15667.01,Rent / Lease Of Premises,Rent / Lease Of Premises,http://opendatacommunities.org/id/county-council/staffordshire  
Staffordshire County Council,Fuel,ALLSTAR BUSINESS SOLUTIONS LTD,05/06/2019,5866.00,Petrol & Oil,Petrol & Oil,http://opendatacommunities.org/id/county-council/staffordshire  
Staffordshire County Council,Central County Wide Works,AMEY LG LTD,05/06/2019,4231886.29,Gen highway Maint bud only,Gen highway Maint bud only,http://opendatacommunities.org/id/county-council/staffordshire  
Staffordshire County Council,Redhill Employment Park,Apex Ecology Ltd,05/06/2019,780.00,Construction Works,Construction Works,http://opendatacommunities.org/id/county-council/staffordshire  
Staffordshire County Council,Redhill Employment Park,Apex Ecology Ltd,05/06/2019,750.00,Construction Works,Construction Works,http://opendatacommunities.org/id/county-council/staffordshire  
Staffordshire County Council,Moorlands Invoice Led Older Pe,Assist DC Ltd TA Choose Your Care,05/06/2019,724.50,Practical Care,Practical Care,http://opendatacommunities.org/id/county-council/staffordshire  
Staffordshire County Council,Moorlands Invoice Led Older Pe,Assist DC Ltd TA Choose Your Care,05/06/2019,567.00,Practical Care,Practical Care,http://opendatacommunities.org/id/county-council/staffordshire  
Staffordshire County Council,Moorlands Invoice Led Older Pe,Assist DC Ltd TA Choose Your Care,05/06/2019,675.00,Practical Care,Practical Care,http://opendatacommunities.org/id/county-council/staffordshire  
Staffordshire County Council,Moorlands Invoice Led Older Pe,Assist DC Ltd TA Choose Your Care,05/06/2019,543.38,Practical Care,Practical Care,http://opendatacommunities.org/id/county-council/staffordshire  
Staffordshire County Council,Moorlands Invoice Led Older Pe,Assist DC Ltd TA Choose Your Care,05/06/2019,785.00,Practical Care,Practical Care,http://opendatacommunities.org/id/county-council/staffordshire  
Staffordshire County Council,Moorlands Invoice Led Older Pe,Assist DC Ltd TA Choose Your Care,05/06/2019,661.50,Practical Care,Practical Care,http://opendatacommunities.org/id/county-council/staffordshire  
Staffordshire County Council,Moorlands Invoice Led Older Pe,Assist DC Ltd TA Choose Your Care,05/06/2019,675.00,Practical Care,Practical Care,http://opendatacommunities.org/id/county-council/staffordshire  
Staffordshire County Council,Newcastle Invoice Led Older Pe,Assist DC Ltd TA Choose Your Care,05/06/2019,1179.15,Practical Care,Practical Care,http://opendatacommunities.org/id/county-council/staffordshire  
Staffordshire County Council,Newcastle Invoice Led Older Pe,Assist DC Ltd TA Choose Your Care,05/06/2019,918.75,Practical Care,Practical Care,http://opendatacommunities.org/id/county-council/staffordshire  
Staffordshire County Council,2 Contraception,Audley Health Centre,05/06/2019,526.92,other services external,other services external,http://opendatacommunities.org/id/county-council/staffordshire  
Staffordshire County Council,Independent School Fee Nursery,BOLEY PARK PRE-SCHOOL,05/06/2019,933.24,Grants to third parties,Grants to third parties,http://opendatacommunities.org/id/county-council/staffordshire  
Staffordshire County Council,Brewood Middle School Charity,Brewood Middle School,05/06/2019,2053.30,Educational Visits,Educational Visits,http://opendatacommunities.org/id/county-council/staffordshire  
Staffordshire County Council,Case Manage Team -Central West,Brighter Futures Personal Growth,05/06/2019,4770.00,Prev Supp Legal Costs,Prev Supp Legal Costs,http://opendatacommunities.org/id/county-council/staffordshire  
Staffordshire County Council,East Staffs Local Strat P'ship,Burton Albion Community Trust,05/06/2019,15000.00,Community Project,Community Project,http://opendatacommunities.org/id/county-council/staffordshire  
Staffordshire County Council,Chasewater Innovation Centre,CHUBB FIRE & SECURITY LTD,05/06/2019,1372.40,Premises Services,Premises Services,http://opendatacommunities.org/id/county-council/staffordshire  
Staffordshire County Council,Newc/Moor Disability Team,CITY CENTRE CENTRAL,05/06/2019,1008.00,S17 TRANSPORT,S17 TRANSPORT,http://opendatacommunities.org/id/county-council/staffordshire  
Staffordshire County Council,5438 Staffs Place 1&2Tipping S,CITY PLUMBING SUPPLIES LTD,05/06/2019,736.56,Service/Test Catering,Service/Test Catering,http://opendatacommunities.org/id/county-council/staffordshire  
Staffordshire County Council,E Staffs LD Team,Craegmoor Priory Group,05/06/2019,1831.30,Supported Group Care,Supported Group Care,http://opendatacommunities.org/id/county-council/staffordshire  
Staffordshire County Council,Independent School Fee Special,DAVID LEWIS CENTRE FOR EPILEPSY,05/06/2019,1036.00,Fees to Independent Schools,Fees to Independent Schools,http://opendatacommunities.org/id/county-council/staffordshire  
Staffordshire County Council,Forward Programming - Miscella,EAST STAFFS BOROUGH COUNCIL,05/06/2019,2491.25,Ext Fees Construction,Ext Fees Construction,http://opendatacommunities.org/id/county-council/staffordshire  
Staffordshire County Council,EStaffs/Tamw Disability Team,Falcon Cars,05/06/2019,816.00,S17 TRANSPORT,S17 TRANSPORT,http://opendatacommunities.org/id/county-council/staffordshire  
Staffordshire County Council,Independent Sch Fees Mainstr'm,Featherstone Academy,05/06/2019,1162.50,Fees to Independent Schools,Fees to Independent Schools,http://opendatacommunities.org/id/county-council/staffordshire  
Staffordshire County Council,Training,GovNet Communications,05/06/2019,1068.00,Courses,Courses,http://opendatacommunities.org/id/county-council/staffordshire  
Staffordshire County Council,Training,GovNet Communications,05/06/2019,534.00,Courses,Courses,http://opendatacommunities.org/id/county-council/staffordshire  
Staffordshire County Council,Stafford North SU19,HONEYBUNS DAY NURSERY,05/06/2019,709.50,S17-NURSERY,S17-NURSERY,http://opendatacommunities.org/id/county-council/staffordshire  
Staffordshire County Council,Newcastle MH Team U65,Jump 2 Independence Ltd,05/06/2019,520.57,Supported Group Care,Supported Group Care,http://opendatacommunities.org/id/county-council/staffordshire  
Staffordshire County Council,1896 CheadleCouncil15-17 HighS,LANTERN FIRE & SECURITY LTD,05/06/2019,990.30,Day to Day Electrical Services,Day to Day Electrical Services,http://opendatacommunities.org/id/county-council/staffordshire  
Staffordshire County Council,"0816 County building,Martin St",LANTERN FIRE & SECURITY LTD,05/06/2019,525.00,Service/Test Fire Alarms,Service/Test Fire Alarms,http://opendatacommunities.org/id/county-council/staffordshire  
Staffordshire County Council,Horton Lodge School,LANTERN FIRE & SECURITY LTD,05/06/2019,525.00,Service/Test Fire Alarms,Service/Test Fire Alarms,http://opendatacommunities.org/id/county-council/staffordshire  
Staffordshire County Council,5438 Staffs Place 1&2Tipping S,LANTERN FIRE & SECURITY LTD,05/06/2019,1050.00,Service/Test Fire Alarms,Service/Test Fire Alarms,http://opendatacommunities.org/id/county-council/staffordshire  
Staffordshire County Council,Operations Delivery,Lichfield City Council,05/06/2019,26400.00,Parish District Grass Cutting,Parish District Grass Cutting,http://opendatacommunities.org/id/county-council/staffordshire  
Staffordshire County Council,Third Car Leasing Scheme,LOOKERS LEASING LTD,05/06/2019,531.28,Staff Car Leasing Recharge,Staff Car Leasing Recharge,http://opendatacommunities.org/id/county-council/staffordshire  
Staffordshire County Council,Motor Vehicles,M R H AUTOS,05/06/2019,530.93,Payment of Insurance Claims,Payment of Insurance Claims,http://opendatacommunities.org/id/county-council/staffordshire  
Staffordshire County Council,Central Winter Maintenance Wor,M S & H M ECKERT LTD,05/06/2019,3262.50,Winter Maint - Snow Clearing,Winter Maint - Snow Clearing,http://opendatacommunities.org/id/county-council/staffordshire  
Staffordshire County Council,Central Winter Maintenance Wor,M S & H M ECKERT LTD,05/06/2019,3882.88,Winter Maint - Snow Clearing,Winter Maint - Snow Clearing,http://opendatacommunities.org/id/county-council/staffordshire  
Staffordshire County Council,1556 Leek Hway Depot ST19 5HL,Mayglothling Waste Ltd,05/06/2019,1954.80,General Equipment Repair/Maint,General Equipment Repair/Maint,http://opendatacommunities.org/id/county-council/staffordshire  
Staffordshire County Council,Adoption Support Fund,Midlands Part NHS FT,05/06/2019,840.00,PROFESSIONAL FEES,PROFESSIONAL FEES,http://opendatacommunities.org/id/county-council/staffordshire  
Staffordshire County Council,Headquarters - I.S.P,Midlands Part NHS FT,05/06/2019,1000.00,Social Services Oth Local Auth,Social Services Oth Local Auth,http://opendatacommunities.org/id/county-council/staffordshire  
Staffordshire County Council,Family Group Conferencing,Mohammed Ali,05/06/2019,575.00,AGENCY STAFF,AGENCY STAFF,http://opendatacommunities.org/id/county-council/staffordshire  
Staffordshire County Council,Family Group Conferencing,N Prigmore,05/06/2019,575.00,AGENCY STAFF,AGENCY STAFF,http://opendatacommunities.org/id/county-council/staffordshire  
Staffordshire County Council,Recoupment Acad/Free Schls PRU,NAS Academies Trust,05/06/2019,13020.67,Extra District Charges Other,Extra District Charges Other,http://opendatacommunities.org/id/county-council/staffordshire  
Staffordshire County Council,Recoupment Acad/Free Schls PRU,NAS Academies Trust,05/06/2019,13020.67,Extra District Charges Other,Extra District Charges Other,http://opendatacommunities.org/id/county-council/staffordshire  
Staffordshire County Council,Recoupment Acad/Free Schls PRU,NAS Academies Trust,05/06/2019,7937.67,Extra District Charges Other,Extra District Charges Other,http://opendatacommunities.org/id/county-council/staffordshire  
Staffordshire County Council,Recoupment Acad/Free Schls PRU,NAS Academies Trust,05/06/2019,7937.67,Extra District Charges Other,Extra District Charges Other,http://opendatacommunities.org/id/county-council/staffordshire  
Staffordshire County Council,Recoupment Acad/Free Schls PRU,NAS Academies Trust,05/06/2019,13208.00,Extra District Charges Other,Extra District Charges Other,http://opendatacommunities.org/id/county-council/staffordshire  
Staffordshire County Council,E Staffs LD Team,NH Care,05/06/2019,15393.71,RCLS Learning Disability,RCLS Learning Disability,http://opendatacommunities.org/id/county-council/staffordshire  
Staffordshire County Council,Recoupment Academies - Special,Northern House School Academy Trust,05/06/2019,5789.47,Extra District Charges Other,Extra District Charges Other,http://opendatacommunities.org/id/county-council/staffordshire  
Staffordshire County Council,Recoupment Academies - Special,Northern House School Academy Trust,05/06/2019,5789.47,Extra District Charges Other,Extra District Charges Other,http://opendatacommunities.org/id/county-council/staffordshire  
Staffordshire County Council,Recoupment Academies - Special,Northern House School Academy Trust,05/06/2019,5789.47,Extra District Charges Other,Extra District Charges Other,http://opendatacommunities.org/id/county-council/staffordshire  
Staffordshire County Council,Recoupment Academies - Special,Northern House School Academy Trust,05/06/2019,5789.47,Extra District Charges Other,Extra District Charges Other,http://opendatacommunities.org/id/county-council/staffordshire  
Staffordshire County Council,Recoupment Academies - Special,Northern House School Academy Trust,05/06/2019,5789.47,Extra District Charges Other,Extra District Charges Other,http://opendatacommunities.org/id/county-council/staffordshire  
Staffordshire County Council,Adoption Team,PACT,05/06/2019,34782.00,Fostering BAFF Adoption Fees,Fostering BAFF Adoption Fees,http://opendatacommunities.org/id/county-council/staffordshire  
Staffordshire County Council,School Admissions - Primary,Princess St Trnng Edu & Ent Cntre,05/06/2019,1136.00,Rent / Lease Of Premises,Rent / Lease Of Premises,http://opendatacommunities.org/id/county-council/staffordshire  
Staffordshire County Council,DIPS,Reflective School Support,05/06/2019,1531.20, Alternative Education Schemes, Alternative Education Schemes,http://opendatacommunities.org/id/county-council/staffordshire  
Staffordshire County Council,Newc/Moor CIC Through Care Tm,RUMPLAN T/A ROSEVILLE TAXIS & MNBSS,05/06/2019,612.00,S17 TRANSPORT,S17 TRANSPORT,http://opendatacommunities.org/id/county-council/staffordshire  
Staffordshire County Council,ERDF - Rural Enterprise Prog,Scott AM Ltd,05/06/2019,17576.00,Grants Other,Grants Other,http://opendatacommunities.org/id/county-council/staffordshire  
Staffordshire County Council,Stafford LD Team,Selbourne Care Ltd,05/06/2019,10643.85,Supported Group Care,Supported Group Care,http://opendatacommunities.org/id/county-council/staffordshire  
Staffordshire County Council,MCA / DoLs / AMHP,Shamrock Care Ltd,05/06/2019,992.60,Independent Investigations,Independent Investigations,http://opendatacommunities.org/id/county-council/staffordshire  
Staffordshire County Council,Four Ashes - ERF,Sharpe Pritchard,05/06/2019,1382.40,Supp Serv Legal,Supp Serv Legal,http://opendatacommunities.org/id/county-council/staffordshire  
Staffordshire County Council,"S278 Riverside Development, St",SIMONS CONSTRUCTION LTD,05/06/2019,30670.87,Construction Works,Construction Works,http://opendatacommunities.org/id/county-council/staffordshire  
Staffordshire County Council,Thomas Russell Junior School,SPEED ELECTRIC SERVICE (SOT) LTD,05/06/2019,576.18,Service/Test Fixed Electrical,Service/Test Fixed Electrical,http://opendatacommunities.org/id/county-council/staffordshire  
Staffordshire County Council,Flaxley Primary School,SPEED ELECTRIC SERVICE (SOT) LTD,05/06/2019,1801.31,Service/Test Fixed Electrical,Service/Test Fixed Electrical,http://opendatacommunities.org/id/county-council/staffordshire  
Staffordshire County Council,Independent Sch Fees Mainstr'm,SPORTING STARS COMM INTEREST CO,05/06/2019,12127.50,Fees to Independent Schools,Fees to Independent Schools,http://opendatacommunities.org/id/county-council/staffordshire  
Staffordshire County Council,Independent Sch Fees Mainstr'm,SPORTING STARS COMM INTEREST CO,05/06/2019,6142.50,Fees to Independent Schools,Fees to Independent Schools,http://opendatacommunities.org/id/county-council/staffordshire  
Staffordshire County Council,Independent Sch Fees Mainstr'm,SPORTING STARS COMM INTEREST CO,05/06/2019,6389.00,Fees to Independent Schools,Fees to Independent Schools,http://opendatacommunities.org/id/county-council/staffordshire  
Staffordshire County Council,Independent Sch Fees Mainstr'm,SPORTING STARS COMM INTEREST CO,05/06/2019,6590.50,Fees to Independent Schools,Fees to Independent Schools,http://opendatacommunities.org/id/county-council/staffordshire  
Staffordshire County Council,Independent Sch Fees Mainstr'm,SPORTING STARS COMM INTEREST CO,05/06/2019,5765.00,Fees to Independent Schools,Fees to Independent Schools,http://opendatacommunities.org/id/county-council/staffordshire  
Staffordshire County Council,Independent Sch Fees Mainstr'm,SPORTING STARS COMM INTEREST CO,05/06/2019,5687.50,Fees to Independent Schools,Fees to Independent Schools,http://opendatacommunities.org/id/county-council/staffordshire  
Staffordshire County Council,Independent Sch Fees Mainstr'm,SPORTING STARS COMM INTEREST CO,05/06/2019,5453.00,Fees to Independent Schools,Fees to Independent Schools,http://opendatacommunities.org/id/county-council/staffordshire  
Staffordshire County Council,Independent Sch Fees Mainstr'm,SPORTING STARS COMM INTEREST CO,05/06/2019,4705.50,Fees to Independent Schools,Fees to Independent Schools,http://opendatacommunities.org/id/county-council/staffordshire  
Staffordshire County Council,Independent Sch Fees Mainstr'm,SPORTING STARS COMM INTEREST CO,05/06/2019,5823.50,Fees to Independent Schools,Fees to Independent Schools,http://opendatacommunities.org/id/county-council/staffordshire  
Staffordshire County Council,Independent Sch Fees Mainstr'm,SPORTING STARS COMM INTEREST CO,05/06/2019,3575.00,Fees to Independent Schools,Fees to Independent Schools,http://opendatacommunities.org/id/county-council/staffordshire  
Staffordshire County Council,Independent Sch Fees Mainstr'm,SPORTING STARS COMM INTEREST CO,05/06/2019,5687.50,Fees to Independent Schools,Fees to Independent Schools,http://opendatacommunities.org/id/county-council/staffordshire  
Staffordshire County Council,Independent Sch Fees Mainstr'm,SPORTING STARS COMM INTEREST CO,05/06/2019,5630.00,Fees to Independent Schools,Fees to Independent Schools,http://opendatacommunities.org/id/county-council/staffordshire  
Staffordshire County Council,Independent Sch Fees Mainstr'm,SPORTING STARS COMM INTEREST CO,05/06/2019,5362.50,Fees to Independent Schools,Fees to Independent Schools,http://opendatacommunities.org/id/county-council/staffordshire  
Staffordshire County Council,Independent Sch Fees Mainstr'm,SPORTING STARS COMM INTEREST CO,05/06/2019,4638.00,Fees to Independent Schools,Fees to Independent Schools,http://opendatacommunities.org/id/county-council/staffordshire  
Staffordshire County Council,Independent Sch Fees Mainstr'm,SPORTING STARS COMM INTEREST CO,05/06/2019,5667.50,Fees to Independent Schools,Fees to Independent Schools,http://opendatacommunities.org/id/county-council/staffordshire  
Staffordshire County Council,Independent Sch Fees Mainstr'm,"St. George's School, Edgbaston",05/06/2019,6206.67,Fees to Independent Schools,Fees to Independent Schools,http://opendatacommunities.org/id/county-council/staffordshire  
Staffordshire County Council,Day Services Lichfield Unalloc,Staffordshire University Acad Trust,05/06/2019,1591.45,Rent / Lease Of Premises,Rent / Lease Of Premises,http://opendatacommunities.org/id/county-council/staffordshire  
Staffordshire County Council,Moorlands Invoice Led Older Pe,Triband Recruit Ltd t/a Triband HomeCare,05/06/2019,567.00,Practical Care,Practical Care,http://opendatacommunities.org/id/county-council/staffordshire  
Staffordshire County Council,Treasury Management,TrueCommerce (Oldham) Ltd,05/06/2019,960.00,Lloyds Bank Charges,Lloyds Bank Charges,http://opendatacommunities.org/id/county-council/staffordshire  
Staffordshire County Council,Property,Venn Group Ltd,05/06/2019,1761.60,AGENCY STAFF,AGENCY STAFF,http://opendatacommunities.org/id/county-council/staffordshire  
Staffordshire County Council,Property,Venn Group Ltd,05/06/2019,880.80,AGENCY STAFF,AGENCY STAFF,http://opendatacommunities.org/id/county-council/staffordshire  
Staffordshire County Council,Case Manage Team -Central West,Westbury Health Ltd,05/06/2019,642.00,Prev Supp Legal Costs,Prev Supp Legal Costs,http://opendatacommunities.org/id/county-council/staffordshire  
Staffordshire County Council,Operations Delivery,WHITTINGTON & FISHERWICK P C,05/06/2019,1367.99,Parish District Grass Cutting,Parish District Grass Cutting,http://opendatacommunities.org/id/county-council/staffordshire  
Staffordshire County Council,Recoupment Academies - Special,Wilson Stuart School-A Special Academy,05/06/2019,5414.00,Extra District Charges Other,Extra District Charges Other,http://opendatacommunities.org/id/county-council/staffordshire  
Staffordshire County Council,Moorlands LD Team,Your Housing Group Ltd,05/06/2019,3071.33,Supported Group Care,Supported Group Care,http://opendatacommunities.org/id/county-council/staffordshire  
Staffordshire County Council,MCA / DoLs / AMHP,A F Social Care Limited,06/06/2019,750.00,Independent Investigations,Independent Investigations,http://opendatacommunities.org/id/county-council/staffordshire  
Staffordshire County Council,Cannock Chase,A I D FUEL OILS LTD,06/06/2019,1358.10,Heating Oil,Heating Oil,http://opendatacommunities.org/id/county-council/staffordshire  
Staffordshire County Council,Home to school transport-main,Ace Private Hire,06/06/2019,6826.44,Home School Contract Vehicles,Home School Contract Vehicles,http://opendatacommunities.org/id/county-council/staffordshire  
Staffordshire County Council,Stone Alleynes Foundation Endo,ALLEYNES ACADEMY,06/06/2019,5000.00,Endowment Prizes,Endowment Prizes,http://opendatacommunities.org/id/county-council/staffordshire  
Staffordshire County Council,Redhill Employment Park,Apex Ecology Ltd,06/06/2019,1620.00,Construction Works,Construction Works,http://opendatacommunities.org/id/county-council/staffordshire  
Staffordshire County Council,Contact Centre,APS Group,06/06/2019,4195.16,Car Badge Client Contribns,Car Badge Client Contribns,http://opendatacommunities.org/id/county-council/staffordshire  
Staffordshire County Council,Independent School Fee Special,ARC SCHOOL,06/06/2019,2646.00,Fees to Independent Schools,Fees to Independent Schools,http://opendatacommunities.org/id/county-council/staffordshire  
Staffordshire County Council,Home to school transport-main,ASHBOURNE COMMUNITY TRANSPORT,06/06/2019,771.20,Home School Contract Vehicles,Home School Contract Vehicles,http://opendatacommunities.org/id/county-council/staffordshire  
Staffordshire County Council,Rugeley LST14,Back Care Solution Ltd,06/06/2019,699.60,Furniture & Bedding,Furniture & Bedding,http://opendatacommunities.org/id/county-council/staffordshire  
Staffordshire County Council,KEVI Lichfield 2FE Expansion,Bayliss Properties Midlands Ltd,06/06/2019,912.00,Construction Works,Construction Works,http://opendatacommunities.org/id/county-council/staffordshire  
Staffordshire County Council,Project A - A50 Growth Corrido,Bowcock & Pursaill LLP,06/06/2019,1236.00,Ext Fees Construction,Ext Fees Construction,http://opendatacommunities.org/id/county-council/staffordshire  
Staffordshire County Council,Independent School Fee Nursery,Bursley Academy,06/06/2019,504.35,Grants to third parties,Grants to third parties,http://opendatacommunities.org/id/county-council/staffordshire  
Staffordshire County Council,Comms & Marketing Staff,CENTAUR COMMUNICATIONS LTD,06/06/2019,1800.00,Subscriptions General,Subscriptions General,http://opendatacommunities.org/id/county-council/staffordshire  
Staffordshire County Council,Adoption Support Fund,Childrens Choice Therapy Service,06/06/2019,1811.50,PROFESSIONAL FEES,PROFESSIONAL FEES,http://opendatacommunities.org/id/county-council/staffordshire  
Staffordshire County Council,Home to school transport-main,COPELAND'S TOURS (S-O-T) LTD,06/06/2019,2892.90,Home School Contract Vehicles,Home School Contract Vehicles,http://opendatacommunities.org/id/county-council/staffordshire  
Staffordshire County Council,Project A - A50 Growth Corrido,E ON UK ENERGY SERVICES LTD,06/06/2019,55004.66,Construction Works,Construction Works,http://opendatacommunities.org/id/county-council/staffordshire  
Staffordshire County Council,Network Management Team,Elgin,06/06/2019,26218.08,SOFTWARE LICENCES,SOFTWARE LICENCES,http://opendatacommunities.org/id/county-council/staffordshire  
Staffordshire County Council,Sustainable Dev't Fund - AONB,Friends of Etching Hill,06/06/2019,704.00,CPF-Grants to Other Vol Bodies,CPF-Grants to Other Vol Bodies,http://opendatacommunities.org/id/county-council/staffordshire  
Staffordshire County Council,Moorlands Invoice Led Older Pe,H I C A,06/06/2019,2240.00,Practical Care,Practical Care,http://opendatacommunities.org/id/county-council/staffordshire  
Staffordshire County Council,Moorlands Invoice Led Older Pe,H I C A,06/06/2019,640.00,Practical Care,Practical Care,http://opendatacommunities.org/id/county-council/staffordshire  
Staffordshire County Council,Moorlands Invoice Led Older Pe,H I C A,06/06/2019,904.00,Practical Care,Practical Care,http://opendatacommunities.org/id/county-council/staffordshire  
Staffordshire County Council,Moorlands Invoice Led Older Pe,H I C A,06/06/2019,1088.00,Practical Care,Practical Care,http://opendatacommunities.org/id/county-council/staffordshire  
Staffordshire County Council,Moorlands Invoice Led Older Pe,H I C A,06/06/2019,2016.00,Practical Care,Practical Care,http://opendatacommunities.org/id/county-council/staffordshire  
Staffordshire County Council,Moorlands Invoice Led Older Pe,H I C A,06/06/2019,928.00,Practical Care,Practical Care,http://opendatacommunities.org/id/county-council/staffordshire  
Staffordshire County Council,Moorlands Invoice Led Phys Dis,H I C A,06/06/2019,1344.00,Practical Care,Practical Care,http://opendatacommunities.org/id/county-council/staffordshire  
Staffordshire County Council,Speech and Language/O Therapy,I Burchess,06/06/2019,1456.00,OTHER HIRED SERVICES,OTHER HIRED SERVICES,http://opendatacommunities.org/id/county-council/staffordshire  
Staffordshire County Council,Cannock Chase LD Team,Inmind Community Support Services Ltd,06/06/2019,21504.00,Supported Group Care,Supported Group Care,http://opendatacommunities.org/id/county-council/staffordshire  
Staffordshire County Council,Prevention and Placement,J Kaminski,06/06/2019,520.00,CONSULTANT FEES,CONSULTANT FEES,http://opendatacommunities.org/id/county-council/staffordshire  
Staffordshire County Council,Prevention and Placement,J Kaminski,06/06/2019,512.00,CONSULTANT FEES,CONSULTANT FEES,http://opendatacommunities.org/id/county-council/staffordshire  
Staffordshire County Council,Newcastle Invoice Led Older Pe,Jump 2 Independence Ltd,06/06/2019,1456.56,Practical Care,Practical Care,http://opendatacommunities.org/id/county-council/staffordshire  
Staffordshire County Council,Newcastle Invoice Led Older Pe,Jump 2 Independence Ltd,06/06/2019,1456.56,Practical Care,Practical Care,http://opendatacommunities.org/id/county-council/staffordshire  
Staffordshire County Council,Newcastle Invoice Led Older Pe,Jump 2 Independence Ltd,06/06/2019,1456.56,Practical Care,Practical Care,http://opendatacommunities.org/id/county-council/staffordshire  
Staffordshire County Council,Independent Sch Fees Mainstr'm,Lichfield Cathedral School,06/06/2019,3339.00,Fees to Independent Schools,Fees to Independent Schools,http://opendatacommunities.org/id/county-council/staffordshire  
Staffordshire County Council,Stafford LD Team,Lifeways Community Care Ltd,06/06/2019,4330.92,Supported Group Care,Supported Group Care,http://opendatacommunities.org/id/county-council/staffordshire  
Staffordshire County Council,Third Car Leasing Scheme,LOOKERS LEASING LTD,06/06/2019,5012.49,Staff Car Leasing Recharge,Staff Car Leasing Recharge,http://opendatacommunities.org/id/county-council/staffordshire  
Staffordshire County Council,Third Car Leasing Scheme,LOOKERS LEASING LTD,06/06/2019,4492.08,Staff Car Leasing Recharge,Staff Car Leasing Recharge,http://opendatacommunities.org/id/county-council/staffordshire  
Staffordshire County Council,1538 Unit 6 Astonfields Ind.Es,M R & J E FELIX,06/06/2019,2437.50,Rent / Lease Of Premises,Rent / Lease Of Premises,http://opendatacommunities.org/id/county-council/staffordshire  
Staffordshire County Council,St Albans House Enterprise Cen,Manpower Direct (UK) Ltd,06/06/2019,1280.64,Premises Services,Premises Services,http://opendatacommunities.org/id/county-council/staffordshire  
Staffordshire County Council,Beaconside Innovation Centre,Manpower Direct (UK) Ltd,06/06/2019,1280.64,Premises Services,Premises Services,http://opendatacommunities.org/id/county-council/staffordshire  
Staffordshire County Council,Lichfield LD Team,Mencap,06/06/2019,2576.00,RCLS Learning Disability,RCLS Learning Disability,http://opendatacommunities.org/id/county-council/staffordshire  
Staffordshire County Council,Recoupment Acad/Free Schls PRU,NAS Academies Trust,06/06/2019,12077.17,Extra District Charges Other,Extra District Charges Other,http://opendatacommunities.org/id/county-council/staffordshire  
Staffordshire County Council,DIPS,NATIONAL TEACHING ADVISORY SERVI,06/06/2019,2257.20, Alternative Education Schemes, Alternative Education Schemes,http://opendatacommunities.org/id/county-council/staffordshire  
Staffordshire County Council,DIPS,NATIONAL TEACHING ADVISORY SERVI,06/06/2019,2259.60, Alternative Education Schemes, Alternative Education Schemes,http://opendatacommunities.org/id/county-council/staffordshire  
Staffordshire County Council,DIPS,NATIONAL TEACHING ADVISORY SERVI,06/06/2019,750.00, Alternative Education Schemes, Alternative Education Schemes,http://opendatacommunities.org/id/county-council/staffordshire  
Staffordshire County Council,Cannock Resource Centre,OFSTED,06/06/2019,3349.00,Supp Serv Business Support,Supp Serv Business Support,http://opendatacommunities.org/id/county-council/staffordshire  
Staffordshire County Council,0008 Stafford Ccent Faraday Ro,RENTOKIL INITIAL (PEST CONTROL),06/06/2019,544.79,PEST CONTROL,PEST CONTROL,http://opendatacommunities.org/id/county-council/staffordshire  
Staffordshire County Council,S Staffs LD Team,ROCKSPUR LTD,06/06/2019,680.00,Day Care,Day Care,http://opendatacommunities.org/id/county-council/staffordshire  
Staffordshire County Council,S Staffs LD Team,ROCKSPUR LTD,06/06/2019,880.00,Day Care,Day Care,http://opendatacommunities.org/id/county-council/staffordshire  
Staffordshire County Council,S Staffs LD Team,ROCKSPUR LTD,06/06/2019,880.00,Day Care,Day Care,http://opendatacommunities.org/id/county-council/staffordshire  
Staffordshire County Council,S Staffs LD Team,ROCKSPUR LTD,06/06/2019,520.00,Day Care,Day Care,http://opendatacommunities.org/id/county-council/staffordshire  
Staffordshire County Council,S Staffs LD Team,ROCKSPUR LTD,06/06/2019,880.00,Rental of Vehicles,Rental of Vehicles,http://opendatacommunities.org/id/county-council/staffordshire  
Staffordshire County Council,S Staffs LD Team,ROCKSPUR LTD,06/06/2019,680.00,Day Care,Day Care,http://opendatacommunities.org/id/county-council/staffordshire  
Staffordshire County Council,Training,SHROPSHIRE C C,06/06/2019,500.00,Courses,Courses,http://opendatacommunities.org/id/county-council/staffordshire  
Staffordshire County Council,Court & Care Plan - Lich/Can,SHROPSHIRE C C,06/06/2019,1500.00,CAT1 COURSE FEES,CAT1 COURSE FEES,http://opendatacommunities.org/id/county-council/staffordshire  
Staffordshire County Council,Adoption Team,SHROPSHIRE C C,06/06/2019,500.00,Fostering Equipment on Loans,Fostering Equipment on Loans,http://opendatacommunities.org/id/county-council/staffordshire  
Staffordshire County Council,Independent School Fee Nursery,ST JOHNS NURSERY-HEATH HAYES,06/06/2019,1207.50,Grants to third parties,Grants to third parties,http://opendatacommunities.org/id/county-council/staffordshire  
Staffordshire County Council,Street Sweeping - Lichfield,SUEZ RECYCLING & RECOVERY UK LTD,06/06/2019,3969.35,Waste Treatment,Waste Treatment,http://opendatacommunities.org/id/county-council/staffordshire  
Staffordshire County Council,Independent School Fee Special,The Education Development Service Ltd,06/06/2019,10500.00,Fees to Independent Schools,Fees to Independent Schools,http://opendatacommunities.org/id/county-council/staffordshire  
Staffordshire County Council,Motor Vehicles,ZURICH MUNICIPAL,06/06/2019,141242.07,Insurance Premiums Paid,Insurance Premiums Paid,http://opendatacommunities.org/id/county-council/staffordshire  
Staffordshire County Council,Court & Care Plan - Lich/Can,A1 Wolves Taxis,07/06/2019,1275.00,S17 TRANSPORT,S17 TRANSPORT,http://opendatacommunities.org/id/county-council/staffordshire  
Staffordshire County Council,SP1 2 Office Move,ALLSORTS OFFICE SUPPLIES LTD,07/06/2019,2822.40,Furniture/Equip Purchase,Furniture/Equip Purchase,http://opendatacommunities.org/id/county-council/staffordshire  
Staffordshire County Council,DDU PCDL ICT,ASCENTIS NATIONAL AWARDING BODY,07/06/2019,600.00,Subscriptions General,Subscriptions General,http://opendatacommunities.org/id/county-council/staffordshire  
Staffordshire County Council,Stafford Invoice Led Older Peo,Aston Home Care Limited,07/06/2019,829.20,Practical Care,Practical Care,http://opendatacommunities.org/id/county-council/staffordshire  
Staffordshire County Council,Stafford Invoice Led Older Peo,Aston Home Care Limited,07/06/2019,597.60,Practical Care,Practical Care,http://opendatacommunities.org/id/county-council/staffordshire  
Staffordshire County Council,Stafford Invoice Led Phys Disa,Aston Home Care Limited,07/06/2019,699.00,Practical Care,Practical Care,http://opendatacommunities.org/id/county-council/staffordshire  
Staffordshire County Council,Case Manage Team -Central West,Atkinson Lewis,07/06/2019,2640.00,Prev Supp Legal Costs,Prev Supp Legal Costs,http://opendatacommunities.org/id/county-council/staffordshire  
Staffordshire County Council,Comp Dev,AXIELL LTD,07/06/2019,24313.25,SOFTWARE LICENCES,SOFTWARE LICENCES,http://opendatacommunities.org/id/county-council/staffordshire  
Staffordshire County Council,Speed Awareness,BOUNDARY SCHOOL OF MOTORING,07/06/2019,780.00,DRIVING INSTRUCTION,DRIVING INSTRUCTION,http://opendatacommunities.org/id/county-council/staffordshire  
Staffordshire County Council,1857 MarquisDriveBrindleyHeath,CHUBB FIRE & SECURITY LTD,07/06/2019,702.00,Service/Test Intruder Alarms,Service/Test Intruder Alarms,http://opendatacommunities.org/id/county-council/staffordshire  
Staffordshire County Council,E Staffs LD Team,Craegmoor Priory Group,07/06/2019,1831.80,Supported Group Care,Supported Group Care,http://opendatacommunities.org/id/county-council/staffordshire  
Staffordshire County Council,P16 top up for Indep Specialis,Craegmoor Strathmore College,07/06/2019,10217.00,Events and Competitions,Events and Competitions,http://opendatacommunities.org/id/county-council/staffordshire  
Staffordshire County Council,Moorlands MH Team U65,Creative Support Ltd,07/06/2019,776.34,Supported Group Care,Supported Group Care,http://opendatacommunities.org/id/county-council/staffordshire  
Staffordshire County Council,Home to school transport-main,D & G Bus,07/06/2019,30298.67,Home School Tickets,Home School Tickets,http://opendatacommunities.org/id/county-council/staffordshire  
Staffordshire County Council,East Staffs Invoice Led Older ,Desire Care,07/06/2019,1288.98,Practical Care,Practical Care,http://opendatacommunities.org/id/county-council/staffordshire  
Staffordshire County Council,East Staffs Invoice Led Phys D,Desire Care,07/06/2019,937.44,Practical Care,Practical Care,http://opendatacommunities.org/id/county-council/staffordshire  
Staffordshire County Council,East Staffs Invoice Led Older ,Desire Care,07/06/2019,703.08,Practical Care,Practical Care,http://opendatacommunities.org/id/county-council/staffordshire  
Staffordshire County Council,East Staffs Invoice Led Older ,Desire Care,07/06/2019,1054.62,Practical Care,Practical Care,http://opendatacommunities.org/id/county-council/staffordshire  
Staffordshire County Council,East Staffs Invoice Led Older ,Desire Care,07/06/2019,2109.24,Practical Care,Practical Care,http://opendatacommunities.org/id/county-council/staffordshire  
Staffordshire County Council,East Staffs Invoice Led Older ,Desire Care,07/06/2019,1054.62,Practical Care,Practical Care,http://opendatacommunities.org/id/county-council/staffordshire  
Staffordshire County Council,East Staffs Invoice Led Older ,Desire Care,07/06/2019,2109.24,Practical Care,Practical Care,http://opendatacommunities.org/id/county-council/staffordshire  
Staffordshire County Council,East Staffs Invoice Led Older ,Desire Care,07/06/2019,1874.88,Practical Care,Practical Care,http://opendatacommunities.org/id/county-council/staffordshire  
Staffordshire County Council,East Staffs Invoice Led Older ,Desire Care,07/06/2019,2109.24,Practical Care,Practical Care,http://opendatacommunities.org/id/county-council/staffordshire  
Staffordshire County Council,East Staffs Invoice Led Older ,Desire Care,07/06/2019,1171.80,Practical Care,Practical Care,http://opendatacommunities.org/id/county-council/staffordshire  
Staffordshire County Council,East Staffs Invoice Led Older ,Desire Care,07/06/2019,585.90,Practical Care,Practical Care,http://opendatacommunities.org/id/county-council/staffordshire  
Staffordshire County Council,East Staffs Invoice Led Older ,Desire Care,07/06/2019,2109.24,Practical Care,Practical Care,http://opendatacommunities.org/id/county-council/staffordshire  
Staffordshire County Council,East Staffs Invoice Led Older ,Desire Care,07/06/2019,736.56,Practical Care,Practical Care,http://opendatacommunities.org/id/county-council/staffordshire  
Staffordshire County Council,East Staffs Invoice Led Older ,Desire Care,07/06/2019,703.08,Practical Care,Practical Care,http://opendatacommunities.org/id/county-council/staffordshire  
Staffordshire County Council,East Staffs Invoice Led Older ,Desire Care,07/06/2019,820.26,Practical Care,Practical Care,http://opendatacommunities.org/id/county-council/staffordshire  
Staffordshire County Council,East Staffs Invoice Led Phys D,Desire Care,07/06/2019,2343.60,Practical Care,Practical Care,http://opendatacommunities.org/id/county-council/staffordshire  
Staffordshire County Council,East Staffs Invoice Led Phys D,Desire Care,07/06/2019,585.90,Practical Care,Practical Care,http://opendatacommunities.org/id/county-council/staffordshire  
Staffordshire County Council,East Staffs Invoice Led Older ,Desire Care,07/06/2019,703.08,Practical Care,Practical Care,http://opendatacommunities.org/id/county-council/staffordshire  
Staffordshire County Council,2 Contraception,Dr Sellens & Partners,07/06/2019,950.00,other services external,other services external,http://opendatacommunities.org/id/county-council/staffordshire  
Staffordshire County Council,Stafford Invoice Led Older Peo,Embrace Quality Care,07/06/2019,680.50,Practical Care,Practical Care,http://opendatacommunities.org/id/county-council/staffordshire  
Staffordshire County Council,Stafford Invoice Led Phys Disa,Embrace Quality Care,07/06/2019,527.00,Practical Care,Practical Care,http://opendatacommunities.org/id/county-council/staffordshire  
Staffordshire County Council,Stock Suspense Account,Fleet Factors Ltd,07/06/2019,4992.79,CFC Purchase of Stock,CFC Purchase of Stock,http://opendatacommunities.org/id/county-council/staffordshire  
Staffordshire County Council,Adoption Support Fund,GATEWAY PSYCHOLOGY LTD,07/06/2019,1200.00,PROFESSIONAL FEES,PROFESSIONAL FEES,http://opendatacommunities.org/id/county-council/staffordshire  
Staffordshire County Council,Adoption Support Fund,GATEWAY PSYCHOLOGY LTD,07/06/2019,2400.00,PROFESSIONAL FEES,PROFESSIONAL FEES,http://opendatacommunities.org/id/county-council/staffordshire  
Staffordshire County Council,Moorlands Invoice Led Older Pe,H I C A,07/06/2019,560.00,Practical Care,Practical Care,http://opendatacommunities.org/id/county-council/staffordshire  
Staffordshire County Council,Tamworth Invoice Led Older Peo,Hills Angels Homecare,07/06/2019,507.15,Practical Care,Practical Care,http://opendatacommunities.org/id/county-council/staffordshire  
Staffordshire County Council,Adoption Support Fund,Hope Child Therapy Ltd,07/06/2019,1361.08,PROFESSIONAL FEES,PROFESSIONAL FEES,http://opendatacommunities.org/id/county-council/staffordshire  
Staffordshire County Council,KCOM - Telephone Network,INSIGHT DIRECT (UK) LTD,07/06/2019,119313.60,SOFTWARE LICENCES,SOFTWARE LICENCES,http://opendatacommunities.org/id/county-council/staffordshire  
Staffordshire County Council,7115 Unit Qa Beacon Business P,J TOMLINSON LTD,07/06/2019,750.00,Service/Test Gas / Oil Boiler,Service/Test Gas / Oil Boiler,http://opendatacommunities.org/id/county-council/staffordshire  
Staffordshire County Council,School Admissions - Secondary,JEAN-PIERRE PARSONS,07/06/2019,594.10,LEGAL,LEGAL,http://opendatacommunities.org/id/county-council/staffordshire  
Staffordshire County Council,Selling Service,Lachlan Wilson,07/06/2019,1500.00,Legal Costs and Stamp Duty,Legal Costs and Stamp Duty,http://opendatacommunities.org/id/county-council/staffordshire  
Staffordshire County Council,Street Lighting PFI Scheme,LIGHTING FOR STAFFORDSHIRE LTD,07/06/2019,1236818.00,PFI - Street Lighting,PFI - Street Lighting,http://opendatacommunities.org/id/county-council/staffordshire  
Staffordshire County Council,Newcastle LD Team,Living Ambitions Ltd,07/06/2019,16290.05,Supported Group Care,Supported Group Care,http://opendatacommunities.org/id/county-council/staffordshire  
Staffordshire County Council,Newcastle LD Team,Living Ambitions Ltd,07/06/2019,20581.40,Supported Group Care,Supported Group Care,http://opendatacommunities.org/id/county-council/staffordshire  
Staffordshire County Council,Third Car Leasing Scheme,LOOKERS LEASING LTD,07/06/2019,5439.74,Staff Car Leasing Recharge,Staff Car Leasing Recharge,http://opendatacommunities.org/id/county-council/staffordshire  
Staffordshire County Council,Speed Awareness,M O'NEILL,07/06/2019,1040.00,DRIVING INSTRUCTION,DRIVING INSTRUCTION,http://opendatacommunities.org/id/county-council/staffordshire  
Staffordshire County Council,Further Education Placements,Marsons Garages (Wolstanton) Ltd,07/06/2019,2838.00,Events and Competitions,Events and Competitions,http://opendatacommunities.org/id/county-council/staffordshire  
Staffordshire County Council,Training,Momentum People Ltd,07/06/2019,1290.00,Courses,Courses,http://opendatacommunities.org/id/county-council/staffordshire  
Staffordshire County Council,Adoption Team,,07/06/2019,745.00,Fostering Equipment on Loans,Fostering Equipment on Loans,http://opendatacommunities.org/id/county-council/staffordshire  
Staffordshire County Council,Specialist Assessment,No5 Chambers Ltd,07/06/2019,1440.00,LEGAL,LEGAL,http://opendatacommunities.org/id/county-council/staffordshire  
Staffordshire County Council,Adoption Team,Northumberland County Council,07/06/2019,9000.00,Fostering BAFF Adoption Fees,Fostering BAFF Adoption Fees,http://opendatacommunities.org/id/county-council/staffordshire  
Staffordshire County Council,South Staffs Coroner,Pathology Group Ltd,07/06/2019,1200.00,INQ EXPS S STAFFS,INQ EXPS S STAFFS,http://opendatacommunities.org/id/county-council/staffordshire  
Staffordshire County Council,South Staffs Coroner,Pathology Group Ltd,07/06/2019,1500.00,INQ EXPS S STAFFS,INQ EXPS S STAFFS,http://opendatacommunities.org/id/county-council/staffordshire  
Staffordshire County Council,South Staffs Coroner,Pathology Group Ltd,07/06/2019,1200.00,INQ EXPS S STAFFS,INQ EXPS S STAFFS,http://opendatacommunities.org/id/county-council/staffordshire  
Staffordshire County Council,7222 Leyfields CCent Masefield,PHS GROUP PLC,07/06/2019,770.78,WASTE COLLECTION,WASTE COLLECTION,http://opendatacommunities.org/id/county-council/staffordshire  
Staffordshire County Council,East Staffs Invoice Led Phys D,Portland College,07/06/2019,8107.68,Supported Group Care,Supported Group Care,http://opendatacommunities.org/id/county-council/staffordshire  
Staffordshire County Council,ERDF Low Carbon Bus Evol Prog,Pro Enviro Ltd,07/06/2019,794.40,CONSULTANT FEES,CONSULTANT FEES,http://opendatacommunities.org/id/county-council/staffordshire  
Staffordshire County Council,ERDF Low Carbon Bus Evol Prog,Pro Enviro Ltd,07/06/2019,794.40,CONSULTANT FEES,CONSULTANT FEES,http://opendatacommunities.org/id/county-council/staffordshire  
Staffordshire County Council,ERDF Low Carbon Bus Evol Prog,Pro Enviro Ltd,07/06/2019,794.40,CONSULTANT FEES,CONSULTANT FEES,http://opendatacommunities.org/id/county-council/staffordshire  
Staffordshire County Council,ERDF Low Carbon Bus Evol Prog,Pro Enviro Ltd,07/06/2019,794.40,CONSULTANT FEES,CONSULTANT FEES,http://opendatacommunities.org/id/county-council/staffordshire  
Staffordshire County Council,ERDF Low Carbon Bus Evol Prog,Pro Enviro Ltd,07/06/2019,794.40,CONSULTANT FEES,CONSULTANT FEES,http://opendatacommunities.org/id/county-council/staffordshire  
Staffordshire County Council,Ridgeway Studio/Remodel Hall,R A EDWARDS & PARTNERS LTD,07/06/2019,24000.00,Construction Works,Construction Works,http://opendatacommunities.org/id/county-council/staffordshire  
Staffordshire County Council,2 Contraception,Rising Brook,07/06/2019,1213.20,other services external,other services external,http://opendatacommunities.org/id/county-council/staffordshire  
Staffordshire County Council,Stat-OOC transport,RUMPLAN T/A ROSEVILLE TAXIS & MNBSS,07/06/2019,826.20,Home School Contract Vehicles,Home School Contract Vehicles,http://opendatacommunities.org/id/county-council/staffordshire  
Staffordshire County Council,Legal Services Unit,SCC Sundry BACS  1 Company,07/06/2019,1659.40,legal services,legal services,http://opendatacommunities.org/id/county-council/staffordshire  
Staffordshire County Council,Central Winter Maintenance Wor,S-O-T Mobile Link Ltd,07/06/2019,661.54,Radios,Radios,http://opendatacommunities.org/id/county-council/staffordshire  
Staffordshire County Council,Occupational Health Unit,Specialist Computer Centres Ltd,07/06/2019,933.26,Purchase of Hardware,Purchase of Hardware,http://opendatacommunities.org/id/county-council/staffordshire  
Staffordshire County Council,Syrian Refugee Support,Spring Housing Association,07/06/2019,702.00,Other Agency Contributions,Other Agency Contributions,http://opendatacommunities.org/id/county-council/staffordshire  
Staffordshire County Council,B.R.F.C - Stafford EA,STAFFORD BOROUGH COUNCIL,07/06/2019,15000.00,Community Project,Community Project,http://opendatacommunities.org/id/county-council/staffordshire  
Staffordshire County Council,Speed Awareness,Staffordshire Wildlife Trading Ltd,07/06/2019,960.00,Premises Services,Premises Services,http://opendatacommunities.org/id/county-council/staffordshire  
Staffordshire County Council,Speed Awareness,Staffordshire Wildlife Trading Ltd,07/06/2019,612.48,Premises Services,Premises Services,http://opendatacommunities.org/id/county-council/staffordshire  
Staffordshire County Council,SEN Direct Payments,,07/06/2019,2080.00,Direct Payments Other,Direct Payments Other,http://opendatacommunities.org/id/county-council/staffordshire  
Staffordshire County Council,Further Education Placements,UNIVERSITY OF DERBY,07/06/2019,677.00,Events and Competitions,Events and Competitions,http://opendatacommunities.org/id/county-council/staffordshire  
Staffordshire County Council,Further Education Placements,UNIVERSITY OF DERBY,07/06/2019,2569.00,Events and Competitions,Events and Competitions,http://opendatacommunities.org/id/county-council/staffordshire  
Staffordshire County Council,Further Education Placements,UNIVERSITY OF DERBY,07/06/2019,2039.00,Events and Competitions,Events and Competitions,http://opendatacommunities.org/id/county-council/staffordshire  
Staffordshire County Council,Further Education Placements,UNIVERSITY OF DERBY,07/06/2019,5953.00,Events and Competitions,Events and Competitions,http://opendatacommunities.org/id/county-council/staffordshire  
Staffordshire County Council,Further Education Placements,UNIVERSITY OF DERBY,07/06/2019,3145.00,Events and Competitions,Events and Competitions,http://opendatacommunities.org/id/county-council/staffordshire  
Staffordshire County Council,Further Education Placements,UNIVERSITY OF DERBY,07/06/2019,3530.00,Events and Competitions,Events and Competitions,http://opendatacommunities.org/id/county-council/staffordshire  
Staffordshire County Council,Further Education Placements,UNIVERSITY OF DERBY,07/06/2019,1115.00,Events and Competitions,Events and Competitions,http://opendatacommunities.org/id/county-council/staffordshire  
Staffordshire County Council,Further Education Placements,UNIVERSITY OF DERBY,07/06/2019,8335.00,Events and Competitions,Events and Competitions,http://opendatacommunities.org/id/county-council/staffordshire  
Staffordshire County Council,Further Education Placements,UNIVERSITY OF DERBY,07/06/2019,5303.00,Events and Competitions,Events and Competitions,http://opendatacommunities.org/id/county-council/staffordshire  
Staffordshire County Council,Planning,Venn Group Ltd,07/06/2019,880.80,Other Employee Expenses,Other Employee Expenses,http://opendatacommunities.org/id/county-council/staffordshire  
Staffordshire County Council,East Staffs Invoice Led Phys D,Voyage Ltd,07/06/2019,2244.12,Supported Group Care,Supported Group Care,http://opendatacommunities.org/id/county-council/staffordshire  
Staffordshire County Council,East Staffs Invoice Led Phys D,Voyage Ltd,07/06/2019,2244.12,Supported Group Care,Supported Group Care,http://opendatacommunities.org/id/county-council/staffordshire  
Staffordshire County Council,East Staffs Invoice Led Phys D,Voyage Ltd,07/06/2019,2244.12,Supported Group Care,Supported Group Care,http://opendatacommunities.org/id/county-council/staffordshire  
Staffordshire County Council,Highways Laboratory,VWR INTERNATIONAL,07/06/2019,500.34,Consumables,Consumables,http://opendatacommunities.org/id/county-council/staffordshire  
Staffordshire County Council,Stafford LD Team,WESTSIDE (STAFFORD) LTD,07/06/2019,1066.80,Rental of Vehicles,Rental of Vehicles,http://opendatacommunities.org/id/county-council/staffordshire  
Staffordshire County Council,Stafford LD Team,WESTSIDE (STAFFORD) LTD,07/06/2019,1066.80,Rental of Vehicles,Rental of Vehicles,http://opendatacommunities.org/id/county-council/staffordshire  
Staffordshire County Council,Stafford LD Team,WESTSIDE (STAFFORD) LTD,07/06/2019,1066.80,Rental of Vehicles,Rental of Vehicles,http://opendatacommunities.org/id/county-council/staffordshire  
Staffordshire County Council,SStaffs Invoice Led Older Peop,Wisdom Healthcare Ltd,07/06/2019,2856.00,Practical Care,Practical Care,http://opendatacommunities.org/id/county-council/staffordshire  
Staffordshire County Council,SStaffs Invoice Led Older Peop,Wisdom Healthcare Ltd,07/06/2019,3474.00,Practical Care,Practical Care,http://opendatacommunities.org/id/county-council/staffordshire  
Staffordshire County Council,SStaffs Invoice Led Older Peop,Wisdom Healthcare Ltd,07/06/2019,612.00,Practical Care,Practical Care,http://opendatacommunities.org/id/county-council/staffordshire  
Staffordshire County Council,Through Care Team - Burton/Tam,Wrixon Care Services,07/06/2019,1956.00,S17 TRANSPORT,S17 TRANSPORT,http://opendatacommunities.org/id/county-council/staffordshire  
Staffordshire County Council,Headquarters - I.S.P,YMCA WOLVERHAMPTON,07/06/2019,17500.00,Prev Supp Prov Pmt For < 18,Prev Supp Prov Pmt For < 18,http://opendatacommunities.org/id/county-council/staffordshire  
Staffordshire County Council,SCC Digital,Zipporah Ltd,07/06/2019,10165.54,SOFTWARE LICENCES,SOFTWARE LICENCES,http://opendatacommunities.org/id/county-council/staffordshire  
Staffordshire County Council,Various,COMENSURA,07/06/2019,117163.46,AGENCY STAFF,AGENCY STAFF,http://opendatacommunities.org/id/county-council/staffordshire  
Staffordshire County Council,Financial & Commercial Service,ACHILLES INFORMATION LTD,10/06/2019,2400.00,Services General,Services General,http://opendatacommunities.org/id/county-council/staffordshire  
Staffordshire County Council,Cannock Invoice Led Older Peop,ADVANCE HEALTHCARE UK LTD,10/06/2019,1561.65,Practical Care,Practical Care,http://opendatacommunities.org/id/county-council/staffordshire  
Staffordshire County Council,Moorlands LD Team,Affinity Trust Ltd,10/06/2019,2192.96,Supported Group Care,Supported Group Care,http://opendatacommunities.org/id/county-council/staffordshire  
Staffordshire County Council,Moorlands LD Team,Affinity Trust Ltd,10/06/2019,3747.28,Supported Group Care,Supported Group Care,http://opendatacommunities.org/id/county-council/staffordshire  
Staffordshire County Council,Moorlands LD Team,Affinity Trust Ltd,10/06/2019,1261.88,Supported Group Care,Supported Group Care,http://opendatacommunities.org/id/county-council/staffordshire  
Staffordshire County Council,Moorlands LD Team,Affinity Trust Ltd,10/06/2019,1653.00,Supported Group Care,Supported Group Care,http://opendatacommunities.org/id/county-council/staffordshire  
Staffordshire County Council,Cannock Chase LD Team,Affinity Trust Ltd,10/06/2019,5253.06,Supported Group Care,Supported Group Care,http://opendatacommunities.org/id/county-council/staffordshire  
Staffordshire County Council,S Staffs LD Team,Affinity Trust Ltd,10/06/2019,3059.38,Supported Group Care,Supported Group Care,http://opendatacommunities.org/id/county-council/staffordshire  
Staffordshire County Council,S Staffs LD Team,Affinity Trust Ltd,10/06/2019,1592.90,Supported Group Care,Supported Group Care,http://opendatacommunities.org/id/county-council/staffordshire  
Staffordshire County Council,S Staffs LD Team,Affinity Trust Ltd,10/06/2019,2639.48,Supported Group Care,Supported Group Care,http://opendatacommunities.org/id/county-council/staffordshire  
Staffordshire County Council,S Staffs LD Team,Affinity Trust Ltd,10/06/2019,2532.32,Supported Group Care,Supported Group Care,http://opendatacommunities.org/id/county-council/staffordshire  
Staffordshire County Council,S Staffs LD Team,Affinity Trust Ltd,10/06/2019,2694.80,Supported Group Care,Supported Group Care,http://opendatacommunities.org/id/county-council/staffordshire  
Staffordshire County Council,Cannock Chase LD Team,Affinity Trust Ltd,10/06/2019,1774.00,Supported Group Care,Supported Group Care,http://opendatacommunities.org/id/county-council/staffordshire  
Staffordshire County Council,Cannock Chase LD Team,Affinity Trust Ltd,10/06/2019,2316.08,Supported Group Care,Supported Group Care,http://opendatacommunities.org/id/county-council/staffordshire  
Staffordshire County Council,Cannock Chase LD Team,Affinity Trust Ltd,10/06/2019,2813.24,Supported Group Care,Supported Group Care,http://opendatacommunities.org/id/county-council/staffordshire  
Staffordshire County Council,5438 Staffs Place 1&2Tipping S,ALLSORTS OFFICE SUPPLIES LTD,10/06/2019,852.00,OFFICE MATERIALS,OFFICE MATERIALS,http://opendatacommunities.org/id/county-council/staffordshire  
Staffordshire County Council,Concessionary Fare Schemes,B P BROWN TRAVEL LTD,10/06/2019,14641.00,Payments to Bus Operators,Payments to Bus Operators,http://opendatacommunities.org/id/county-council/staffordshire  
Staffordshire County Council,Connectivity Support,BDRC Continental Ltd,10/06/2019,11662.80,Advertising,Advertising,http://opendatacommunities.org/id/county-council/staffordshire  
Staffordshire County Council,KCOM - Wholesale Line Rental,BT Plc,10/06/2019,1160.04,CALL CHARGES,CALL CHARGES,http://opendatacommunities.org/id/county-council/staffordshire  
Staffordshire County Council,S278 Coton Lane Tamworth (Pers,C3 Construction Limited,10/06/2019,90155.27,Construction Works,Construction Works,http://opendatacommunities.org/id/county-council/staffordshire  
Staffordshire County Council,S278 Coton Lane Tamworth (Pers,C3 Construction Limited,10/06/2019,90155.23,Construction Works,Construction Works,http://opendatacommunities.org/id/county-council/staffordshire  
Staffordshire County Council,Stafford LD Team,Caretech Community Service Ltd,10/06/2019,2220.40,Supported Group Care,Supported Group Care,http://opendatacommunities.org/id/county-council/staffordshire  
Staffordshire County Council,Stafford LD Team,Caretech Community Service Ltd,10/06/2019,2929.50,Supported Group Care,Supported Group Care,http://opendatacommunities.org/id/county-council/staffordshire  
Staffordshire County Council,Stafford LD Team,Caretech Community Service Ltd,10/06/2019,2702.70,Supported Group Care,Supported Group Care,http://opendatacommunities.org/id/county-council/staffordshire  
Staffordshire County Council,Lichfield LD Team,CHERRY ORCHARD GARDEN SERVICES,10/06/2019,630.00,Day Care,Day Care,http://opendatacommunities.org/id/county-council/staffordshire  
Staffordshire County Council,Lichfield LD Team,CHERRY ORCHARD GARDEN SERVICES,10/06/2019,1080.00,Day Care,Day Care,http://opendatacommunities.org/id/county-council/staffordshire  
Staffordshire County Council,Adoption Support Fund,Childrens Choice Therapy Service,10/06/2019,1440.00,PROFESSIONAL FEES,PROFESSIONAL FEES,http://opendatacommunities.org/id/county-council/staffordshire  
Staffordshire County Council,Recoupment Academy- Mainstream,Congleton High School,10/06/2019,9219.23,Extra District Charges Other,Extra District Charges Other,http://opendatacommunities.org/id/county-council/staffordshire  
Staffordshire County Council,Moorlands LD Team,Creative Support Ltd,10/06/2019,1600.08,Supported Group Care,Supported Group Care,http://opendatacommunities.org/id/county-council/staffordshire  
Staffordshire County Council,Moorlands LD Team,Creative Support Ltd,10/06/2019,1798.30,Supported Group Care,Supported Group Care,http://opendatacommunities.org/id/county-council/staffordshire  
Staffordshire County Council,Moorlands LD Team,Creative Support Ltd,10/06/2019,2742.22,Supported Group Care,Supported Group Care,http://opendatacommunities.org/id/county-council/staffordshire  
Staffordshire County Council,Moorlands LD Team,Creative Support Ltd,10/06/2019,2128.96,Supported Group Care,Supported Group Care,http://opendatacommunities.org/id/county-council/staffordshire  
Staffordshire County Council,Stafford LD Team,Creative Support Ltd,10/06/2019,2134.40,Supported Group Care,Supported Group Care,http://opendatacommunities.org/id/county-council/staffordshire  
Staffordshire County Council,Moorlands LD Team,Creative Support Ltd,10/06/2019,1359.36,Supported Group Care,Supported Group Care,http://opendatacommunities.org/id/county-council/staffordshire  
Staffordshire County Council,S Staffs LD Team,Creative Support Ltd,10/06/2019,4054.22,Supported Group Care,Supported Group Care,http://opendatacommunities.org/id/county-council/staffordshire  
Staffordshire County Council,HRSSC,CYCLESCHEME,10/06/2019,1675.00,Contingency,Contingency,http://opendatacommunities.org/id/county-council/staffordshire  
Staffordshire County Council,Newcastle LD Team,D E Healthcare,10/06/2019,1644.22,Supported Group Care,Supported Group Care,http://opendatacommunities.org/id/county-council/staffordshire  
Staffordshire County Council,E Staffs LD Team,D E Healthcare,10/06/2019,1356.64,Supported Group Care,Supported Group Care,http://opendatacommunities.org/id/county-council/staffordshire  
Staffordshire County Council,Inter authority Recoup- Mainst,DERBYSHIRE COUNTY COUNCIL,10/06/2019,2749.67,Extra District Charges Other,Extra District Charges Other,http://opendatacommunities.org/id/county-council/staffordshire  
Staffordshire County Council,Inter authority Recoup- Mainst,DERBYSHIRE COUNTY COUNCIL,10/06/2019,4124.50,Extra District Charges Other,Extra District Charges Other,http://opendatacommunities.org/id/county-council/staffordshire  
Staffordshire County Council,Stafford LD Team,Dimensions UK,10/06/2019,1876.56,Supported Group Care,Supported Group Care,http://opendatacommunities.org/id/county-council/staffordshire  
Staffordshire County Council,S Staffs LD Team,Dimensions UK,10/06/2019,2094.38,Supported Group Care,Supported Group Care,http://opendatacommunities.org/id/county-council/staffordshire  
Staffordshire County Council,Speed Awareness,Drinkmaster Ltd,10/06/2019,806.20,General Equipment Purchase,General Equipment Purchase,http://opendatacommunities.org/id/county-council/staffordshire  
Staffordshire County Council,Burntwood SU12,Eclipse Properties Ltd,10/06/2019,796.70,S17 - 16/17 Child in Need,S17 - 16/17 Child in Need,http://opendatacommunities.org/id/county-council/staffordshire  
Staffordshire County Council,Branston Road - New Sec School,ESPO,10/06/2019,576.00,Furniture/Equip Purchase,Furniture/Equip Purchase,http://opendatacommunities.org/id/county-council/staffordshire  
Staffordshire County Council,Project A - A50 Growth Corrido,FLOGAS UK LTD,10/06/2019,879.26,Construction Works,Construction Works,http://opendatacommunities.org/id/county-council/staffordshire  
Staffordshire County Council,Operations Delivery,GNOSALL PARISH COUNCIL,10/06/2019,2957.32,Parish District Grass Cutting,Parish District Grass Cutting,http://opendatacommunities.org/id/county-council/staffordshire  
Staffordshire County Council,Rawlett Academy Expansion,Greenhatch Group Ltd,10/06/2019,5100.00,Construction Works,Construction Works,http://opendatacommunities.org/id/county-council/staffordshire  
Staffordshire County Council,Audit,Haines Watts,10/06/2019,4290.00,AGENCY STAFF,AGENCY STAFF,http://opendatacommunities.org/id/county-council/staffordshire  
Staffordshire County Council,Audit,Haines Watts,10/06/2019,3510.00,AGENCY STAFF,AGENCY STAFF,http://opendatacommunities.org/id/county-council/staffordshire  
Staffordshire County Council,Audit,Haines Watts,10/06/2019,10920.00,AGENCY STAFF,AGENCY STAFF,http://opendatacommunities.org/id/county-council/staffordshire  
Staffordshire County Council,Audit,Haines Watts,10/06/2019,2925.00,AGENCY STAFF,AGENCY STAFF,http://opendatacommunities.org/id/county-council/staffordshire  
Staffordshire County Council,Audit,Haines Watts,10/06/2019,2925.00,AGENCY STAFF,AGENCY STAFF,http://opendatacommunities.org/id/county-council/staffordshire  
Staffordshire County Council,Audit,Haines Watts,10/06/2019,3510.00,AGENCY STAFF,AGENCY STAFF,http://opendatacommunities.org/id/county-council/staffordshire  
Staffordshire County Council,Audit,Haines Watts,10/06/2019,5460.00,AGENCY STAFF,AGENCY STAFF,http://opendatacommunities.org/id/county-council/staffordshire  
Staffordshire County Council,Audit,Haines Watts,10/06/2019,4290.00,AGENCY STAFF,AGENCY STAFF,http://opendatacommunities.org/id/county-council/staffordshire  
Staffordshire County Council,Audit,Haines Watts,10/06/2019,3510.00,AGENCY STAFF,AGENCY STAFF,http://opendatacommunities.org/id/county-council/staffordshire  
Staffordshire County Council,Audit,Haines Watts,10/06/2019,2340.00,AGENCY STAFF,AGENCY STAFF,http://opendatacommunities.org/id/county-council/staffordshire  
Staffordshire County Council,Audit,Haines Watts,10/06/2019,3510.00,AGENCY STAFF,AGENCY STAFF,http://opendatacommunities.org/id/county-council/staffordshire  
Staffordshire County Council,Audit,Haines Watts,10/06/2019,2925.00,AGENCY STAFF,AGENCY STAFF,http://opendatacommunities.org/id/county-council/staffordshire  
Staffordshire County Council,Audit,Haines Watts,10/06/2019,4290.00,AGENCY STAFF,AGENCY STAFF,http://opendatacommunities.org/id/county-council/staffordshire  
Staffordshire County Council,Audit,Haines Watts,10/06/2019,4290.00,AGENCY STAFF,AGENCY STAFF,http://opendatacommunities.org/id/county-council/staffordshire  
Staffordshire County Council,Virtual School - Pupil Premium,Hart School,10/06/2019,1900.00,OTHER ALLOWANCES,OTHER ALLOWANCES,http://opendatacommunities.org/id/county-council/staffordshire  
Staffordshire County Council,Stafford Invoice Led Older Peo,Helping Hands,10/06/2019,878.00,Practical Care,Practical Care,http://opendatacommunities.org/id/county-council/staffordshire  
Staffordshire County Council,Moorlands LD Team,Heritage Care,10/06/2019,1903.28,Supported Group Care,Supported Group Care,http://opendatacommunities.org/id/county-council/staffordshire  
Staffordshire County Council,Moorlands LD Team,Heritage Care,10/06/2019,3180.34,Supported Group Care,Supported Group Care,http://opendatacommunities.org/id/county-council/staffordshire  
Staffordshire County Council,Moorlands LD Team,Heritage Care,10/06/2019,2672.40,Supported Group Care,Supported Group Care,http://opendatacommunities.org/id/county-council/staffordshire  
Staffordshire County Council,E Staffs LD Team,Heritage Care,10/06/2019,3032.56,Supported Group Care,Supported Group Care,http://opendatacommunities.org/id/county-council/staffordshire  
Staffordshire County Council,E Staffs LD Team,Heritage Care,10/06/2019,1732.10,Supported Group Care,Supported Group Care,http://opendatacommunities.org/id/county-council/staffordshire  
Staffordshire County Council,E Staffs LD Team,Heritage Care,10/06/2019,2855.98,Supported Group Care,Supported Group Care,http://opendatacommunities.org/id/county-council/staffordshire  
Staffordshire County Council,E Staffs LD Team,Heritage Care,10/06/2019,1559.06,Supported Group Care,Supported Group Care,http://opendatacommunities.org/id/county-council/staffordshire  
Staffordshire County Council,E Staffs LD Team,Heritage Care,10/06/2019,2985.86,Supported Group Care,Supported Group Care,http://opendatacommunities.org/id/county-council/staffordshire  
Staffordshire County Council,E Staffs LD Team,Heritage Care,10/06/2019,1797.94,Supported Group Care,Supported Group Care,http://opendatacommunities.org/id/county-council/staffordshire  
Staffordshire County Council,E Staffs LD Team,Heritage Care,10/06/2019,3455.26,Supported Group Care,Supported Group Care,http://opendatacommunities.org/id/county-council/staffordshire  
Staffordshire County Council,E Staffs LD Team,Heritage Care,10/06/2019,2410.40,Supported Group Care,Supported Group Care,http://opendatacommunities.org/id/county-council/staffordshire  
Staffordshire County Council,Newcastle Children's Centres,Home-Start Newcastle Borough,10/06/2019,27478.60,Grants to third parties,Grants to third parties,http://opendatacommunities.org/id/county-council/staffordshire  
Staffordshire County Council,Virtual School - Pupil Premium,Horninglow Prim De Ferrers Trst Acd,10/06/2019,500.00,OTHER ALLOWANCES,OTHER ALLOWANCES,http://opendatacommunities.org/id/county-council/staffordshire  
Staffordshire County Council,Court & Care Plan - Burton/Tam,,10/06/2019,559.09,S17 FAMILY SUPPORT,S17 FAMILY SUPPORT,http://opendatacommunities.org/id/county-council/staffordshire  
Staffordshire County Council,Court & Care Plan - Burton/Tam,,10/06/2019,559.09,S17 FAMILY SUPPORT,S17 FAMILY SUPPORT,http://opendatacommunities.org/id/county-council/staffordshire  
Staffordshire County Council,Court & Care Plan - Burton/Tam,,10/06/2019,559.09,S17 FAMILY SUPPORT,S17 FAMILY SUPPORT,http://opendatacommunities.org/id/county-council/staffordshire  
Staffordshire County Council,West Hill Primary School,J TOMLINSON LTD,10/06/2019,912.00,Service/Test Gas / Oil Boiler,Service/Test Gas / Oil Boiler,http://opendatacommunities.org/id/county-council/staffordshire  
Staffordshire County Council,Paget High School,J TOMLINSON LTD,10/06/2019,1170.00,Service/Test Gas / Oil Boiler,Service/Test Gas / Oil Boiler,http://opendatacommunities.org/id/county-council/staffordshire  
Staffordshire County Council,Rising Brook High School,J TOMLINSON LTD,10/06/2019,1272.00,Service/Test Gas / Oil Boiler,Service/Test Gas / Oil Boiler,http://opendatacommunities.org/id/county-council/staffordshire  
Staffordshire County Council,Speed Awareness,J Vincent,10/06/2019,1040.00,DRIVING INSTRUCTION,DRIVING INSTRUCTION,http://opendatacommunities.org/id/county-council/staffordshire  
Staffordshire County Council,Virtual School - Pupil Premium,John of Rolleston Primary School,10/06/2019,500.00,OTHER ALLOWANCES,OTHER ALLOWANCES,http://opendatacommunities.org/id/county-council/staffordshire  
Staffordshire County Council,Virtual School - Pupil Premium,John of Rolleston Primary School,10/06/2019,500.00,OTHER ALLOWANCES,OTHER ALLOWANCES,http://opendatacommunities.org/id/county-council/staffordshire  
Staffordshire County Council,Virtual School - Pupil Premium,John of Rolleston Primary School,10/06/2019,500.00,OTHER ALLOWANCES,OTHER ALLOWANCES,http://opendatacommunities.org/id/county-council/staffordshire  
Staffordshire County Council,Newcastle Invoice Led Older Pe,Jump 2 Independence Ltd,10/06/2019,1456.56,Practical Care,Practical Care,http://opendatacommunities.org/id/county-council/staffordshire  
Staffordshire County Council,Newcastle Invoice Led Older Pe,Jump 2 Independence Ltd,10/06/2019,1456.56,Practical Care,Practical Care,http://opendatacommunities.org/id/county-council/staffordshire  
Staffordshire County Council,Newcastle Invoice Led Older Pe,Jump 2 Independence Ltd,10/06/2019,1456.56,Practical Care,Practical Care,http://opendatacommunities.org/id/county-council/staffordshire  
Staffordshire County Council,Newcastle Invoice Led Older Pe,Jump 2 Independence Ltd,10/06/2019,1456.57,Practical Care,Practical Care,http://opendatacommunities.org/id/county-council/staffordshire  
Staffordshire County Council,Stafford Invoice Led Older Peo,K and S Care Solutions Ltd,10/06/2019,853.65,Practical Care,Practical Care,http://opendatacommunities.org/id/county-council/staffordshire  
Staffordshire County Council,Moorlands Invoice Led Older Pe,K and S Care Solutions Ltd,10/06/2019,597.80,Practical Care,Practical Care,http://opendatacommunities.org/id/county-council/staffordshire  
Staffordshire County Council,Cannock Chase LD Team,Lifestyle Sup Ltd T/A Bluebird Care,10/06/2019,4134.51,Practical Care,Practical Care,http://opendatacommunities.org/id/county-council/staffordshire  
Staffordshire County Council,Moorlands LD Team,Lifeways Community Care Ltd,10/06/2019,3629.80,Supported Group Care,Supported Group Care,http://opendatacommunities.org/id/county-council/staffordshire  
Staffordshire County Council,Moorlands LD Team,Lifeways Community Care Ltd,10/06/2019,2593.76,Supported Group Care,Supported Group Care,http://opendatacommunities.org/id/county-council/staffordshire  
Staffordshire County Council,Moorlands LD Team,Lifeways Community Care Ltd,10/06/2019,2758.16,Supported Group Care,Supported Group Care,http://opendatacommunities.org/id/county-council/staffordshire  
Staffordshire County Council,Moorlands LD Team,Lifeways Community Care Ltd,10/06/2019,4583.18,Supported Group Care,Supported Group Care,http://opendatacommunities.org/id/county-council/staffordshire  
Staffordshire County Council,Moorlands LD Team,Lifeways Community Care Ltd,10/06/2019,2716.80,Supported Group Care,Supported Group Care,http://opendatacommunities.org/id/county-council/staffordshire  
Staffordshire County Council,Stafford LD Team,Lifeways Community Care Ltd,10/06/2019,8931.49,Supported Group Care,Supported Group Care,http://opendatacommunities.org/id/county-council/staffordshire  
Staffordshire County Council,Stafford LD Team,Lifeways Community Care Ltd,10/06/2019,1797.42,Supported Group Care,Supported Group Care,http://opendatacommunities.org/id/county-council/staffordshire  
Staffordshire County Council,E Staffs LD Team,Lifeways Community Care Ltd,10/06/2019,3833.90,Supported Group Care,Supported Group Care,http://opendatacommunities.org/id/county-council/staffordshire  
Staffordshire County Council,E Staffs LD Team,Lifeways Community Care Ltd,10/06/2019,2485.23,Supported Group Care,Supported Group Care,http://opendatacommunities.org/id/county-council/staffordshire  
Staffordshire County Council,E Staffs LD Team,Lifeways Community Care Ltd,10/06/2019,2485.23,Supported Group Care,Supported Group Care,http://opendatacommunities.org/id/county-council/staffordshire  
Staffordshire County Council,E Staffs LD Team,Lifeways Community Care Ltd,10/06/2019,2485.23,Supported Group Care,Supported Group Care,http://opendatacommunities.org/id/county-council/staffordshire  
Staffordshire County Council,Stafford LD Team,Linfield Care Ltd,10/06/2019,2360.50,Supported Group Care,Supported Group Care,http://opendatacommunities.org/id/county-council/staffordshire  
Staffordshire County Council,Stafford LD Team,Linfield Care Ltd,10/06/2019,2198.02,Supported Group Care,Supported Group Care,http://opendatacommunities.org/id/county-council/staffordshire  
Staffordshire County Council,Moorlands LD Team,Living Ambitions Limited,10/06/2019,2029.94,Supported Group Care,Supported Group Care,http://opendatacommunities.org/id/county-council/staffordshire  
Staffordshire County Council,Newcastle LD Team,Living Ambitions Limited,10/06/2019,1594.46,Supported Group Care,Supported Group Care,http://opendatacommunities.org/id/county-council/staffordshire  
Staffordshire County Council,Newcastle LD Team,Living Ambitions Limited,10/06/2019,1724.02,Supported Group Care,Supported Group Care,http://opendatacommunities.org/id/county-council/staffordshire  
Staffordshire County Council,Newcastle LD Team,Living Ambitions Limited,10/06/2019,1685.56,Supported Group Care,Supported Group Care,http://opendatacommunities.org/id/county-council/staffordshire  
Staffordshire County Council,Newcastle LD Team,Living Ambitions Limited,10/06/2019,1739.90,Supported Group Care,Supported Group Care,http://opendatacommunities.org/id/county-council/staffordshire  
Staffordshire County Council,Newcastle LD Team,Living Ambitions Limited,10/06/2019,2253.90,Supported Group Care,Supported Group Care,http://opendatacommunities.org/id/county-council/staffordshire  
Staffordshire County Council,Newcastle LD Team,Living Ambitions Limited,10/06/2019,2244.08,Supported Group Care,Supported Group Care,http://opendatacommunities.org/id/county-council/staffordshire  
Staffordshire County Council,Newcastle LD Team,Living Ambitions Limited,10/06/2019,1879.00,Supported Group Care,Supported Group Care,http://opendatacommunities.org/id/county-council/staffordshire  
Staffordshire County Council,Newcastle LD Team,Living Ambitions Limited,10/06/2019,1224.14,Supported Group Care,Supported Group Care,http://opendatacommunities.org/id/county-council/staffordshire  
Staffordshire County Council,Newcastle LD Team,Living Ambitions Limited,10/06/2019,1444.70,Supported Group Care,Supported Group Care,http://opendatacommunities.org/id/county-council/staffordshire  
Staffordshire County Council,Newcastle LD Team,Living Ambitions Limited,10/06/2019,2026.60,Supported Group Care,Supported Group Care,http://opendatacommunities.org/id/county-council/staffordshire  
Staffordshire County Council,Newcastle LD Team,Living Ambitions Limited,10/06/2019,1657.78,Supported Group Care,Supported Group Care,http://opendatacommunities.org/id/county-council/staffordshire  
Staffordshire County Council,Stafford LD Team,Living Ambitions Limited,10/06/2019,2401.72,Supported Group Care,Supported Group Care,http://opendatacommunities.org/id/county-council/staffordshire  
Staffordshire County Council,Newcastle LD Team,Living Ambitions Limited,10/06/2019,1496.44,Supported Group Care,Supported Group Care,http://opendatacommunities.org/id/county-council/staffordshire  
Staffordshire County Council,Stafford LD Team,Living Ambitions Limited,10/06/2019,1644.26,Supported Group Care,Supported Group Care,http://opendatacommunities.org/id/county-council/staffordshire  
Staffordshire County Council,Cannock Chase LD Team,Living Ambitions Limited,10/06/2019,1284.70,Supported Group Care,Supported Group Care,http://opendatacommunities.org/id/county-council/staffordshire  
Staffordshire County Council,Stafford LD Team,Living Ambitions Limited,10/06/2019,1220.88,Supported Group Care,Supported Group Care,http://opendatacommunities.org/id/county-council/staffordshire  
Staffordshire County Council,Stafford LD Team,Living Ambitions Limited,10/06/2019,1246.20,Supported Group Care,Supported Group Care,http://opendatacommunities.org/id/county-council/staffordshire  
Staffordshire County Council,Stafford LD Team,Living Ambitions Limited,10/06/2019,2331.86,Supported Group Care,Supported Group Care,http://opendatacommunities.org/id/county-council/staffordshire  
Staffordshire County Council,Stafford LD Team,Living Ambitions Limited,10/06/2019,784.78,Supported Group Care,Supported Group Care,http://opendatacommunities.org/id/county-council/staffordshire  
Staffordshire County Council,Cannock Chase LD Team,Living Ambitions Limited,10/06/2019,1393.42,Supported Group Care,Supported Group Care,http://opendatacommunities.org/id/county-council/staffordshire  
Staffordshire County Council,Cannock Chase LD Team,Living Ambitions Limited,10/06/2019,2190.50,Supported Group Care,Supported Group Care,http://opendatacommunities.org/id/county-council/staffordshire  
Staffordshire County Council,Como Place Newcastle North,Living Ambitions Limited,10/06/2019,5124.00,Supported Group Care,Supported Group Care,http://opendatacommunities.org/id/county-council/staffordshire  
Staffordshire County Council,Como Place Newcastle North,Living Ambitions Limited,10/06/2019,5124.00,Supported Group Care,Supported Group Care,http://opendatacommunities.org/id/county-council/staffordshire  
Staffordshire County Council,1 Grindley Lane South,Living Ambitions Limited,10/06/2019,1223.00,Supported Group Care,Supported Group Care,http://opendatacommunities.org/id/county-council/staffordshire  
Staffordshire County Council,1 Grindley Lane South,Living Ambitions Limited,10/06/2019,1223.00,Supported Group Care,Supported Group Care,http://opendatacommunities.org/id/county-council/staffordshire  
Staffordshire County Council,2 Contraception,LLOYDS PHARMACY LTD,10/06/2019,9004.51,OTHER HIRED SERVICES,OTHER HIRED SERVICES,http://opendatacommunities.org/id/county-council/staffordshire  
Staffordshire County Council,Chief Executive's Office,Local Government Association,10/06/2019,654.00,Conference Fees,Conference Fees,http://opendatacommunities.org/id/county-council/staffordshire  
Staffordshire County Council,Third Car Leasing Scheme,LOOKERS LEASING LTD,10/06/2019,732.00,Car Leasing - Charges Misc,Car Leasing - Charges Misc,http://opendatacommunities.org/id/county-council/staffordshire  
Staffordshire County Council,Sherbrook Primary School,M & D TRAVEL,10/06/2019,2775.78,Home School Contract Vehicles,Home School Contract Vehicles,http://opendatacommunities.org/id/county-council/staffordshire  
Staffordshire County Council,Beaconside Innovation Centre,Manpower Direct (UK) Ltd,10/06/2019,1452.60,Premises Services,Premises Services,http://opendatacommunities.org/id/county-council/staffordshire  
Staffordshire County Council,Liability,MARSH LTD,10/06/2019,9500.00,Insurance Payment of fees,Insurance Payment of fees,http://opendatacommunities.org/id/county-council/staffordshire  
Staffordshire County Council,Stafford LD Team,Mencap,10/06/2019,6120.00,Supported Group Care,Supported Group Care,http://opendatacommunities.org/id/county-council/staffordshire  
Staffordshire County Council,Family Group Conferencing,N Parveen,10/06/2019,575.00,AGENCY STAFF,AGENCY STAFF,http://opendatacommunities.org/id/county-council/staffordshire  
Staffordshire County Council,Virtual School - Pupil Premium,NATIONAL TEACHING ADVISORY SERVI,10/06/2019,3237.00,OTHER ALLOWANCES,OTHER ALLOWANCES,http://opendatacommunities.org/id/county-council/staffordshire  
Staffordshire County Council,Virtual School - Pupil Premium,NATIONAL TEACHING ADVISORY SERVI,10/06/2019,2496.00,OTHER ALLOWANCES,OTHER ALLOWANCES,http://opendatacommunities.org/id/county-council/staffordshire  
Staffordshire County Council,DIPS,NATIONAL TEACHING ADVISORY SERVI,10/06/2019,1404.00, Alternative Education Schemes, Alternative Education Schemes,http://opendatacommunities.org/id/county-council/staffordshire  
Staffordshire County Council,Lichfield Invoice Led Older Pe,Nexus Care Services,10/06/2019,590.79,Practical Care,Practical Care,http://opendatacommunities.org/id/county-council/staffordshire  
Staffordshire County Council,Other Service Strategy,Nexxus Trading Services (t/a Nexxus Care,10/06/2019,20000.00,Contingency,Contingency,http://opendatacommunities.org/id/county-council/staffordshire  
Staffordshire County Council,Further Education Placements,Nova Training,10/06/2019,1027.20,Events and Competitions,Events and Competitions,http://opendatacommunities.org/id/county-council/staffordshire  
Staffordshire County Council,Stafford North LST19,Online Ergonomics Ltd,10/06/2019,626.40,Other Travel,Other Travel,http://opendatacommunities.org/id/county-council/staffordshire  
Staffordshire County Council,Speed Awareness,P GORING,10/06/2019,520.00,DRIVING INSTRUCTION,DRIVING INSTRUCTION,http://opendatacommunities.org/id/county-council/staffordshire  
Staffordshire County Council,Virtual School - Pupil Premium,Painsley Catholic Academy,10/06/2019,500.00,OTHER ALLOWANCES,OTHER ALLOWANCES,http://opendatacommunities.org/id/county-council/staffordshire  
Staffordshire County Council,Independent School Fee Special,Percy Hedley Foundation,10/06/2019,13285.22,Fees to Independent Schools,Fees to Independent Schools,http://opendatacommunities.org/id/county-council/staffordshire  
Staffordshire County Council,Improving Practice,Permanent Futures Ltd,10/06/2019,1428.00,CONSULTANT FEES,CONSULTANT FEES,http://opendatacommunities.org/id/county-council/staffordshire  
Staffordshire County Council,Speed Awareness,Port Vale Football Club Ltd,10/06/2019,990.00,Premises Services,Premises Services,http://opendatacommunities.org/id/county-council/staffordshire  
Staffordshire County Council,Speed Awareness,Port Vale Football Club Ltd,10/06/2019,990.00,Premises Services,Premises Services,http://opendatacommunities.org/id/county-council/staffordshire  
Staffordshire County Council,Transport Policy,Public Transport Consortium,10/06/2019,545.00,Subscriptions General,Subscriptions General,http://opendatacommunities.org/id/county-council/staffordshire  
Staffordshire County Council,Independent School Fee Nursery,RAINBOW DAY NURSERY,10/06/2019,855.00,Grants to third parties,Grants to third parties,http://opendatacommunities.org/id/county-council/staffordshire  
Staffordshire County Council,The Old House,Royal Mail Group Ltd,10/06/2019,944.40,Postages,Postages,http://opendatacommunities.org/id/county-council/staffordshire  
Staffordshire County Council,Independent School Fee Special,Royal School for the Blind,10/06/2019,7335.42,Fees to Independent Schools,Fees to Independent Schools,http://opendatacommunities.org/id/county-council/staffordshire  
Staffordshire County Council,E Staffs LD Team,Sanctuary Housing Association,10/06/2019,520.00,Supported Group Care,Supported Group Care,http://opendatacommunities.org/id/county-council/staffordshire  
Staffordshire County Council,Stafford LD Team,SCC Sundry BACS  1 Company,10/06/2019,3773.20,Practical Care,Practical Care,http://opendatacommunities.org/id/county-council/staffordshire  
Staffordshire County Council,Stafford LD Team,Selbourne Care Ltd,10/06/2019,32718.00,Supported Group Care,Supported Group Care,http://opendatacommunities.org/id/county-council/staffordshire  
Staffordshire County Council,B.R.F.C - Tamworth EA,Sporting Communities CIC,10/06/2019,10000.00,other services external,other services external,http://opendatacommunities.org/id/county-council/staffordshire  
Staffordshire County Council,1266 Moorlands Day Serv Buxton,STAFFORDSHIRE MOORLANDS DIS CNCL,10/06/2019,1365.91,WASTE COLLECTION,WASTE COLLECTION,http://opendatacommunities.org/id/county-council/staffordshire  
Staffordshire County Council,SWS MH Team U65,Supported Homes Ltd,10/06/2019,3034.00,Supported Group Care,Supported Group Care,http://opendatacommunities.org/id/county-council/staffordshire  
Staffordshire County Council,SWS MH Team U65,Supported Homes Ltd,10/06/2019,2600.36,Supported Group Care,Supported Group Care,http://opendatacommunities.org/id/county-council/staffordshire  
Staffordshire County Council,SWS MH Team U65,Supported Homes Ltd,10/06/2019,3619.16,Supported Group Care,Supported Group Care,http://opendatacommunities.org/id/county-council/staffordshire  
Staffordshire County Council,SWS MH Team U65,Supported Homes Ltd,10/06/2019,3278.72,Supported Group Care,Supported Group Care,http://opendatacommunities.org/id/county-council/staffordshire  
Staffordshire County Council,SWS MH Team U65,Supported Homes Ltd,10/06/2019,3822.00,Supported Group Care,Supported Group Care,http://opendatacommunities.org/id/county-council/staffordshire  
Staffordshire County Council,SWS MH Team U65,Supported Homes Ltd,10/06/2019,3340.40,Supported Group Care,Supported Group Care,http://opendatacommunities.org/id/county-council/staffordshire  
Staffordshire County Council,Cannock MH Team U65,Supported Homes Ltd,10/06/2019,3038.00,Supported Group Care,Supported Group Care,http://opendatacommunities.org/id/county-council/staffordshire  
Staffordshire County Council,SWS MH Team U65,Supported Homes Ltd,10/06/2019,2604.00,Supported Group Care,Supported Group Care,http://opendatacommunities.org/id/county-council/staffordshire  
Staffordshire County Council,SWS MH Team U65,Supported Homes Ltd,10/06/2019,2976.00,Supported Group Care,Supported Group Care,http://opendatacommunities.org/id/county-council/staffordshire  
Staffordshire County Council,E Staffs LD Team,Supported Homes Ltd (Newark),10/06/2019,5149.91,Supported Group Care,Supported Group Care,http://opendatacommunities.org/id/county-council/staffordshire  
Staffordshire County Council,5438 Staffs Place 1&2Tipping S,Taybar Limited,10/06/2019,1206.71,Premises Services,Premises Services,http://opendatacommunities.org/id/county-council/staffordshire  
Staffordshire County Council,Wheels to Work,Taylor Brother Motorcycles,10/06/2019,1069.44,Grants Other,Grants Other,http://opendatacommunities.org/id/county-council/staffordshire  
Staffordshire County Council,Virtual School - Pupil Premium,The Fountains High School,10/06/2019,500.00,OTHER ALLOWANCES,OTHER ALLOWANCES,http://opendatacommunities.org/id/county-council/staffordshire  
Staffordshire County Council,Stafford Invoice Led Phys Disa,The Practice Group,10/06/2019,5344.00,Practical Care,Practical Care,http://opendatacommunities.org/id/county-council/staffordshire  
Staffordshire County Council,Stafford Invoice Led Phys Disa,The Practice Group,10/06/2019,5344.00,Practical Care,Practical Care,http://opendatacommunities.org/id/county-council/staffordshire  
Staffordshire County Council,Training,The Staff College,10/06/2019,8850.00,PROFESSIONAL FEES,PROFESSIONAL FEES,http://opendatacommunities.org/id/county-council/staffordshire  
Staffordshire County Council,Stafford Invoice Led Older Peo,Triband Recruit Ltd t/a Triband HomeCare,10/06/2019,784.00,Practical Care,Practical Care,http://opendatacommunities.org/id/county-council/staffordshire  
Staffordshire County Council,Stafford Invoice Led Older Peo,Triband Recruit Ltd t/a Triband HomeCare,10/06/2019,567.00,Practical Care,Practical Care,http://opendatacommunities.org/id/county-council/staffordshire  
Staffordshire County Council,Stafford Invoice Led Older Peo,Triband Recruit Ltd t/a Triband HomeCare,10/06/2019,742.00,Practical Care,Practical Care,http://opendatacommunities.org/id/county-council/staffordshire  
Staffordshire County Council,Stafford Invoice Led Phys Disa,Triband Recruit Ltd t/a Triband HomeCare,10/06/2019,504.00,Practical Care,Practical Care,http://opendatacommunities.org/id/county-council/staffordshire  
Staffordshire County Council,Moorlands Invoice Led Phys Dis,Triband Recruit Ltd t/a Triband HomeCare,10/06/2019,567.00,Practical Care,Practical Care,http://opendatacommunities.org/id/county-council/staffordshire  
Staffordshire County Council,Moorlands Invoice Led Older Pe,Triband Recruit Ltd t/a Triband HomeCare,10/06/2019,630.00,Practical Care,Practical Care,http://opendatacommunities.org/id/county-council/staffordshire  
Staffordshire County Council,Moorlands Invoice Led Older Pe,Triband Recruit Ltd t/a Triband HomeCare,10/06/2019,756.00,Practical Care,Practical Care,http://opendatacommunities.org/id/county-council/staffordshire  
Staffordshire County Council,Moorlands Invoice Led Older Pe,Triband Recruit Ltd t/a Triband HomeCare,10/06/2019,530.00,Practical Care,Practical Care,http://opendatacommunities.org/id/county-council/staffordshire  
Staffordshire County Council,Emerge Festival Lab,Trinity College London,10/06/2019,847.00,other services external,other services external,http://opendatacommunities.org/id/county-council/staffordshire  
Staffordshire County Council,Stafford LD Team,Voyage Care Ltd,10/06/2019,4003.32,Supported Group Care,Supported Group Care,http://opendatacommunities.org/id/county-council/staffordshire  
Staffordshire County Council,S Staffs LD Team,Voyage Care Ltd,10/06/2019,3334.12,Supported Group Care,Supported Group Care,http://opendatacommunities.org/id/county-council/staffordshire  
Staffordshire County Council,Stafford LD Team,Voyage Care Ltd,10/06/2019,3798.18,Supported Group Care,Supported Group Care,http://opendatacommunities.org/id/county-council/staffordshire  
Staffordshire County Council,E Staffs LD Team,Voyage Care Ltd,10/06/2019,2394.80,Supported Group Care,Supported Group Care,http://opendatacommunities.org/id/county-council/staffordshire  
Staffordshire County Council,Cannock Chase LD Team,Voyage Care Ltd,10/06/2019,2319.96,Supported Group Care,Supported Group Care,http://opendatacommunities.org/id/county-council/staffordshire  
Staffordshire County Council,Stafford LD Team,Voyage Care Ltd,10/06/2019,2800.66,Supported Group Care,Supported Group Care,http://opendatacommunities.org/id/county-council/staffordshire  
Staffordshire County Council,S Staffs LD Team,Voyage Care Ltd,10/06/2019,2168.82,Supported Group Care,Supported Group Care,http://opendatacommunities.org/id/county-council/staffordshire  
Staffordshire County Council,S Staffs LD Team,Voyage Care Ltd,10/06/2019,2591.42,Supported Group Care,Supported Group Care,http://opendatacommunities.org/id/county-council/staffordshire  
Staffordshire County Council,Stafford LD Team,Voyage Care Ltd,10/06/2019,3024.12,Supported Group Care,Supported Group Care,http://opendatacommunities.org/id/county-council/staffordshire  
Staffordshire County Council,Cannock Chase LD Team,Voyage Care Ltd,10/06/2019,2831.68,Supported Group Care,Supported Group Care,http://opendatacommunities.org/id/county-council/staffordshire  
Staffordshire County Council,Insurance VAT,Weightmans LLP,10/06/2019,2840.00,Insurance General Expenditure,Insurance General Expenditure,http://opendatacommunities.org/id/county-council/staffordshire  
Staffordshire County Council,Operations Delivery,Weston With Gayton Parish Cnl,10/06/2019,584.06,Parish District Grass Cutting,Parish District Grass Cutting,http://opendatacommunities.org/id/county-council/staffordshire  
Staffordshire County Council,Headquarters - I.S.P,YMCA WOLVERHAMPTON,10/06/2019,16848.00,Prev Supp Prov Pmt For < 18,Prev Supp Prov Pmt For < 18,http://opendatacommunities.org/id/county-council/staffordshire  
Staffordshire County Council,SCC Digital,ZENGENTI LTD,10/06/2019,660.00,SOFTWARE LICENCES,SOFTWARE LICENCES,http://opendatacommunities.org/id/county-council/staffordshire  
Staffordshire County Council,Cannock Invoice Led Phys Disab,Active Assistance Ltd,11/06/2019,1176.56,Practical Care,Practical Care,http://opendatacommunities.org/id/county-council/staffordshire  
Staffordshire County Council,Project A - A50 Growth Corrido,Ainsty Timber Marketing Ltd,11/06/2019,693.00,Construction Works,Construction Works,http://opendatacommunities.org/id/county-council/staffordshire  
Staffordshire County Council,Staffordshire Wood Fuel,AMP Clean Energy,11/06/2019,771.75,General Equipment Purchase,General Equipment Purchase,http://opendatacommunities.org/id/county-council/staffordshire  
Staffordshire County Council,Concessionary Fare Schemes,ARRIVA MIDLANDS LTD,11/06/2019,250148.00,Payments to Bus Operators,Payments to Bus Operators,http://opendatacommunities.org/id/county-council/staffordshire  
Staffordshire County Council,Moorlands Invoice Led Older Pe,Assist DC Ltd TA Choose Your Care,11/06/2019,605.00,Practical Care,Practical Care,http://opendatacommunities.org/id/county-council/staffordshire  
Staffordshire County Council,Moorlands Invoice Led Older Pe,Assist DC Ltd TA Choose Your Care,11/06/2019,525.00,Practical Care,Practical Care,http://opendatacommunities.org/id/county-council/staffordshire  
Staffordshire County Council,Operations Delivery,BARLASTON PARISH COUNCIL,11/06/2019,3129.60,Parish District Grass Cutting,Parish District Grass Cutting,http://opendatacommunities.org/id/county-council/staffordshire  
Staffordshire County Council,2 Contraception,BILBROOK MEDICAL CENTRE,11/06/2019,652.60,other services external,other services external,http://opendatacommunities.org/id/county-council/staffordshire  
Staffordshire County Council,HRSSC,Busy Bees Benefits Ltd,11/06/2019,52352.67,Extra District Charges Other,Extra District Charges Other,http://opendatacommunities.org/id/county-council/staffordshire  
Staffordshire County Council,Kidsgrove SU3,Capita Translation & Interpreting Ltd,11/06/2019,584.50,S17 - TRANSLATION,S17 - TRANSLATION,http://opendatacommunities.org/id/county-council/staffordshire  
Staffordshire County Council,Kidsgrove SU3,Capita Translation & Interpreting Ltd,11/06/2019,587.52,S17 - TRANSLATION,S17 - TRANSLATION,http://opendatacommunities.org/id/county-council/staffordshire  
Staffordshire County Council,Further Education Placements,CITY SOT SIXTH FORM COLLEGE,11/06/2019,3374.03,Events and Competitions,Events and Competitions,http://opendatacommunities.org/id/county-council/staffordshire  
Staffordshire County Council,Woolliscroft Farm Hilderstone,Colshaw Construction Group,11/06/2019,1800.00,General Equipment Repair/Maint,General Equipment Repair/Maint,http://opendatacommunities.org/id/county-council/staffordshire  
Staffordshire County Council,Moorlands Invoice Led Older Pe,Community Care Worker,11/06/2019,516.60,Practical Care,Practical Care,http://opendatacommunities.org/id/county-council/staffordshire  
Staffordshire County Council,Newcastle Invoice Led Older Pe,Community Care Worker,11/06/2019,516.60,Practical Care,Practical Care,http://opendatacommunities.org/id/county-council/staffordshire  
Staffordshire County Council,Newcastle Invoice Led Older Pe,Community Care Worker,11/06/2019,728.28,Practical Care,Practical Care,http://opendatacommunities.org/id/county-council/staffordshire  
Staffordshire County Council,Cannock Invoice Led Phys Disab,CSPC Healthcare Ltd,11/06/2019,598.50,Practical Care,Practical Care,http://opendatacommunities.org/id/county-council/staffordshire  
Staffordshire County Council,Bikeability,CYCLIST TRAINING LTD,11/06/2019,8823.00,CONSULTANT FEES,CONSULTANT FEES,http://opendatacommunities.org/id/county-council/staffordshire  
Staffordshire County Council,Independent School Fee Special,DAVID LEWIS CENTRE FOR EPILEPSY,11/06/2019,11658.59,Fees to Independent Schools,Fees to Independent Schools,http://opendatacommunities.org/id/county-council/staffordshire  
Staffordshire County Council,East Staffs Invoice Led Older ,Desire Care,11/06/2019,820.26,Practical Care,Practical Care,http://opendatacommunities.org/id/county-council/staffordshire  
Staffordshire County Council,Concessionary Fare Schemes,Diamond Bus Ltd,11/06/2019,1922.00,Payments to Bus Operators,Payments to Bus Operators,http://opendatacommunities.org/id/county-council/staffordshire  
Staffordshire County Council,Chasewater Innovation Centre,EXPRESS POLYTHENE LTD,11/06/2019,662.40,WASTE COLLECTION,WASTE COLLECTION,http://opendatacommunities.org/id/county-council/staffordshire  
Staffordshire County Council,HWS Unallocated,FCC RECYCLING (UK) LTD,11/06/2019,423719.56,WASTE MANAGEMENT,WASTE MANAGEMENT,http://opendatacommunities.org/id/county-council/staffordshire  
Staffordshire County Council,HWS Unallocated,FCC RECYCLING (UK) LTD,11/06/2019,423719.56,WASTE MANAGEMENT,WASTE MANAGEMENT,http://opendatacommunities.org/id/county-council/staffordshire  
Staffordshire County Council,HWS Unallocated,FCC RECYCLING (UK) LTD,11/06/2019,423719.56,WASTE MANAGEMENT,WASTE MANAGEMENT,http://opendatacommunities.org/id/county-council/staffordshire  
Staffordshire County Council,Moorlands Children's Centre,Homestart Staffordshire Moorlands,11/06/2019,24943.00,Grants to third parties,Grants to third parties,http://opendatacommunities.org/id/county-council/staffordshire  
Staffordshire County Council,Newcastle Invoice Led Older Pe,Jump 2 Independence Ltd,11/06/2019,1456.57,Practical Care,Practical Care,http://opendatacommunities.org/id/county-council/staffordshire  
Staffordshire County Council,Motor Vehicles,M R H AUTOS,11/06/2019,1022.40,Payment of Insurance Claims,Payment of Insurance Claims,http://opendatacommunities.org/id/county-council/staffordshire  
Staffordshire County Council,0822 County Records Eastgate S,MITIE TECH FACILITIES MGMNT LTD,11/06/2019,919.54,Service/Test Air-conditioning,Service/Test Air-conditioning,http://opendatacommunities.org/id/county-council/staffordshire  
Staffordshire County Council,County Fleet Care Purchase Of ,MOTORKRAFT LTD,11/06/2019,8915.40,Vehicle Purchase,Vehicle Purchase,http://opendatacommunities.org/id/county-council/staffordshire  
Staffordshire County Council,SEN Direct Payments,,11/06/2019,650.00,Direct Payments Other,Direct Payments Other,http://opendatacommunities.org/id/county-council/staffordshire  
Staffordshire County Council,Independent School Fee Special,Options Autism 4 Limited,11/06/2019,11532.00,Fees to Independent Schools,Fees to Independent Schools,http://opendatacommunities.org/id/county-council/staffordshire  
Staffordshire County Council,Independent School Fee Special,Options Autism 4 Limited,11/06/2019,11532.00,Fees to Independent Schools,Fees to Independent Schools,http://opendatacommunities.org/id/county-council/staffordshire  
Staffordshire County Council,Independent School Fee Special,Options Autism 4 Limited,11/06/2019,11532.00,Fees to Independent Schools,Fees to Independent Schools,http://opendatacommunities.org/id/county-council/staffordshire  
Staffordshire County Council,Carers Hub,PeoplePlus,11/06/2019,2641.15,OTHER HIRED SERVICES,OTHER HIRED SERVICES,http://opendatacommunities.org/id/county-council/staffordshire  
Staffordshire County Council,ERDF Low Carbon Bus Evol Prog,Pro Enviro Ltd,11/06/2019,746.40,CONSULTANT FEES,CONSULTANT FEES,http://opendatacommunities.org/id/county-council/staffordshire  
Staffordshire County Council,ERDF Low Carbon Bus Evol Prog,Pro Enviro Ltd,11/06/2019,794.40,CONSULTANT FEES,CONSULTANT FEES,http://opendatacommunities.org/id/county-council/staffordshire  
Staffordshire County Council,"0798 Bird St, The Old Library,",R A EDWARDS & PARTNERS LTD,11/06/2019,1244.46,Planned Int Wall Door Fixtures,Planned Int Wall Door Fixtures,http://opendatacommunities.org/id/county-council/staffordshire  
Staffordshire County Council,Office 365,Risual Group Ltd,11/06/2019,8100.00,CONSULTANT FEES,CONSULTANT FEES,http://opendatacommunities.org/id/county-council/staffordshire  
Staffordshire County Council,East Staffs Invoice Led Older ,RLS Care Services LTD,11/06/2019,510.30,Practical Care,Practical Care,http://opendatacommunities.org/id/county-council/staffordshire  
Staffordshire County Council,East Staffs Invoice Led Older ,RLS Care Services LTD,11/06/2019,510.30,Practical Care,Practical Care,http://opendatacommunities.org/id/county-council/staffordshire  
Staffordshire County Council,East Staffs Invoice Led Older ,RLS Care Services LTD,11/06/2019,510.30,Practical Care,Practical Care,http://opendatacommunities.org/id/county-council/staffordshire  
Staffordshire County Council,East Staffs Invoice Led Older ,RLS Care Services LTD,11/06/2019,510.30,Practical Care,Practical Care,http://opendatacommunities.org/id/county-council/staffordshire  
Staffordshire County Council,East Staffs Invoice Led Phys D,RLS Care Services LTD,11/06/2019,510.30,Practical Care,Practical Care,http://opendatacommunities.org/id/county-council/staffordshire  
Staffordshire County Council,East Staffs Invoice Led Phys D,RLS Care Services LTD,11/06/2019,510.30,Practical Care,Practical Care,http://opendatacommunities.org/id/county-council/staffordshire  
Staffordshire County Council,Lichfield Invoice Led Physi Di,RLS Care Services LTD,11/06/2019,615.60,Practical Care,Practical Care,http://opendatacommunities.org/id/county-council/staffordshire  
Staffordshire County Council,Moorlands Invoice Led Older Pe,RLS Care Services LTD,11/06/2019,510.30,Practical Care,Practical Care,http://opendatacommunities.org/id/county-council/staffordshire  
Staffordshire County Council,Highways Laboratory,Socotec UK Ltd,11/06/2019,540.00,CONSULTANT FEES,CONSULTANT FEES,http://opendatacommunities.org/id/county-council/staffordshire  
Staffordshire County Council,Highways Laboratory,Socotec UK Ltd,11/06/2019,540.00,CONSULTANT FEES,CONSULTANT FEES,http://opendatacommunities.org/id/county-council/staffordshire  
Staffordshire County Council,Cannock Enterprise Centre,SOUTH STAFFORDSHIRE WATER PLC,11/06/2019,1520.86,Water Charges Metered,Water Charges Metered,http://opendatacommunities.org/id/county-council/staffordshire  
Staffordshire County Council,ICT Service Management,Specialist Computer Centres Ltd,11/06/2019,3288.00,AGENCY STAFF,AGENCY STAFF,http://opendatacommunities.org/id/county-council/staffordshire  
Staffordshire County Council,Independent Sch Fees Mainstr'm,STOKE ON TRENT COLLEGE,11/06/2019,1380.00,Fees to Independent Schools,Fees to Independent Schools,http://opendatacommunities.org/id/county-council/staffordshire  
Staffordshire County Council,Burton Manor windows,Strata (Double Glazing & Jnery Ctre) Ltd,11/06/2019,44366.06,Construction Works,Construction Works,http://opendatacommunities.org/id/county-council/staffordshire  
Staffordshire County Council,4696 EastStaffCCent248-57Water,Trent & Dove Housing,11/06/2019,758.24,Rent / Lease Of Premises,Rent / Lease Of Premises,http://opendatacommunities.org/id/county-council/staffordshire  
Staffordshire County Council,Stafford Invoice Led Older Peo,Triband Recruit Ltd t/a Triband HomeCare,11/06/2019,742.00,Practical Care,Practical Care,http://opendatacommunities.org/id/county-council/staffordshire  
Staffordshire County Council,Tamworth Invoice Led Phy Disab,Voyage Ltd,11/06/2019,1660.50,Supported Group Care,Supported Group Care,http://opendatacommunities.org/id/county-council/staffordshire  
Staffordshire County Council,4476 Flash Ley Resource Centre,WATER PLUS,11/06/2019,587.13,Water Charges Metered,Water Charges Metered,http://opendatacommunities.org/id/county-council/staffordshire  
Staffordshire County Council,4476 Flash Ley Resource Centre,WATER PLUS,11/06/2019,567.47,Water Charges Metered,Water Charges Metered,http://opendatacommunities.org/id/county-council/staffordshire  
Staffordshire County Council,0740 LeekCountyServ Fountain S,WATER PLUS,11/06/2019,763.79,Water Charges Metered,Water Charges Metered,http://opendatacommunities.org/id/county-council/staffordshire  
Staffordshire County Council,1641 Stone Hway Depot,WATER PLUS,11/06/2019,930.77,Water Charges Metered,Water Charges Metered,http://opendatacommunities.org/id/county-council/staffordshire  
Staffordshire County Council,3776 Babbage Church Lne ST18 0,WATER PLUS,11/06/2019,621.39,Water Charges Metered,Water Charges Metered,http://opendatacommunities.org/id/county-council/staffordshire  
Staffordshire County Council,5438 Staffs Place 1&2Tipping S,WATER PLUS,11/06/2019,586.54,Water Charges Metered,Water Charges Metered,http://opendatacommunities.org/id/county-council/staffordshire  
Staffordshire County Council,4476 Flash Ley Resource Centre,WATER PLUS,11/06/2019,570.59,Water Charges Metered,Water Charges Metered,http://opendatacommunities.org/id/county-council/staffordshire  
Staffordshire County Council,4476 Flash Ley Resource Centre,WATER PLUS,11/06/2019,541.30,Water Charges Metered,Water Charges Metered,http://opendatacommunities.org/id/county-council/staffordshire  
Staffordshire County Council,"0816 County building,Martin St",WATER PLUS,11/06/2019,3178.36,Water & Sewerage,Water & Sewerage,http://opendatacommunities.org/id/county-council/staffordshire  
Staffordshire County Council,"0816 County building,Martin St",WATER PLUS,11/06/2019,5119.54,Water & Sewerage,Water & Sewerage,http://opendatacommunities.org/id/county-council/staffordshire  
Staffordshire County Council,B.R.F.C. - Cannock,Wigan Leisure and Culture Trust,11/06/2019,5000.00,other services external,other services external,http://opendatacommunities.org/id/county-council/staffordshire  
Staffordshire County Council,Comms & Marketing Staff,Alive With Ideas Ltd,12/06/2019,540.00,Advertising,Advertising,http://opendatacommunities.org/id/county-council/staffordshire  
Staffordshire County Council,Independent School Fee Nursery,ABC EARLY LEARNING & CHLDCRE CNTR,12/06/2019,639.37,Grants to third parties,Grants to third parties,http://opendatacommunities.org/id/county-council/staffordshire  
Staffordshire County Council,Independent School Fee Nursery,ABC EARLY LEARNING & CHLDCRE CNTR,12/06/2019,906.00,Grants to third parties,Grants to third parties,http://opendatacommunities.org/id/county-council/staffordshire  
Staffordshire County Council,Fuel,ALLSTAR BUSINESS SOLUTIONS LTD,12/06/2019,3373.37,Petrol & Oil,Petrol & Oil,http://opendatacommunities.org/id/county-council/staffordshire  
Staffordshire County Council,2 Contraception,Alton Surgery,12/06/2019,1041.70,other services external,other services external,http://opendatacommunities.org/id/county-council/staffordshire  
Staffordshire County Council,Stock Suspense Account,Andrew Page 1917 Ltd,12/06/2019,616.21,CFC Purchase of Stock,CFC Purchase of Stock,http://opendatacommunities.org/id/county-council/staffordshire  
Staffordshire County Council,Uttoxeter ASO,BANNER GROUP LTD,12/06/2019,954.00,Postages,Postages,http://opendatacommunities.org/id/county-council/staffordshire  
Staffordshire County Council,Stock Management,Bertram Library Services,12/06/2019,1254.20,Books,Books,http://opendatacommunities.org/id/county-council/staffordshire  
Staffordshire County Council,Stock Management,Bertram Library Services,12/06/2019,511.61,Books,Books,http://opendatacommunities.org/id/county-council/staffordshire  
Staffordshire County Council,Stock Management,Bertram Library Services,12/06/2019,809.76,Books,Books,http://opendatacommunities.org/id/county-council/staffordshire  
Staffordshire County Council,Stock Management,Bertram Library Services,12/06/2019,1546.24,Books,Books,http://opendatacommunities.org/id/county-council/staffordshire  
Staffordshire County Council,Workforce Wellbeing Strategy,BURTON  & DISTRICT MIND,12/06/2019,1350.00,CONSULTANT FEES,CONSULTANT FEES,http://opendatacommunities.org/id/county-council/staffordshire  
Staffordshire County Council,Newcastle LD Team,CPK Empowering Families Ltd,12/06/2019,842.50,Practical Care,Practical Care,http://opendatacommunities.org/id/county-council/staffordshire  
Staffordshire County Council,S Staffs LD Team,Craegmoor Priory Group,12/06/2019,604.50,Supported Group Care,Supported Group Care,http://opendatacommunities.org/id/county-council/staffordshire  
Staffordshire County Council,Stafford Invoice Led Older Peo,CSPC Healthcare Ltd,12/06/2019,912.00,Practical Care,Practical Care,http://opendatacommunities.org/id/county-council/staffordshire  
Staffordshire County Council,Stafford Invoice Led Older Peo,CSPC Healthcare Ltd,12/06/2019,798.00,Practical Care,Practical Care,http://opendatacommunities.org/id/county-council/staffordshire  
Staffordshire County Council,P16 top up for Indep Specialis,DAVID LEWIS CENTRE FOR EPILEPSY,12/06/2019,22300.25,Events and Competitions,Events and Competitions,http://opendatacommunities.org/id/county-council/staffordshire  
Staffordshire County Council,Stafford Invoice Led Phys Disa,Deafblind Uk,12/06/2019,772.00,INTERPRETERS SERVICE,INTERPRETERS SERVICE,http://opendatacommunities.org/id/county-council/staffordshire  
Staffordshire County Council,Newcastle Invoice Led Physical,Deafblind Uk,12/06/2019,1080.80,INTERPRETERS SERVICE,INTERPRETERS SERVICE,http://opendatacommunities.org/id/county-council/staffordshire  
Staffordshire County Council,Cannock Invoice Led Phys Disab,Deafblind Uk,12/06/2019,617.60,INTERPRETERS SERVICE,INTERPRETERS SERVICE,http://opendatacommunities.org/id/county-council/staffordshire  
Staffordshire County Council,Stafford Invoice Led Phys Disa,Deafblind Uk,12/06/2019,926.40,INTERPRETERS SERVICE,INTERPRETERS SERVICE,http://opendatacommunities.org/id/county-council/staffordshire  
Staffordshire County Council,Cannock Invoice Led Phys Disab,Deafblind Uk,12/06/2019,926.40,INTERPRETERS SERVICE,INTERPRETERS SERVICE,http://opendatacommunities.org/id/county-council/staffordshire  
Staffordshire County Council,Cannock Invoice Led Older Peop,Deafblind Uk,12/06/2019,926.40,INTERPRETERS SERVICE,INTERPRETERS SERVICE,http://opendatacommunities.org/id/county-council/staffordshire  
Staffordshire County Council,Newcastle Invoice Led Physical,Deafblind Uk,12/06/2019,772.00,INTERPRETERS SERVICE,INTERPRETERS SERVICE,http://opendatacommunities.org/id/county-council/staffordshire  
Staffordshire County Council,Case Manage Team -Central West,Dr A Gupta,12/06/2019,1091.20,Prev Supp Legal Costs,Prev Supp Legal Costs,http://opendatacommunities.org/id/county-council/staffordshire  
Staffordshire County Council,Case Manage Team -Central West,Dr A Gupta,12/06/2019,1136.48,Prev Supp Legal Costs,Prev Supp Legal Costs,http://opendatacommunities.org/id/county-council/staffordshire  
Staffordshire County Council,Stat-OOC transport,Future First Independent School,12/06/2019,550.00,Home School Contract Vehicles,Home School Contract Vehicles,http://opendatacommunities.org/id/county-council/staffordshire  
Staffordshire County Council,Home to school transport-main,Going My Way Ltd T/A Stantons of Stoke,12/06/2019,3813.06,Home School Contract Vehicles,Home School Contract Vehicles,http://opendatacommunities.org/id/county-council/staffordshire  
Staffordshire County Council,Chesterton SU5,Hempstalls Primary School,12/06/2019,860.20,S17-NURSERY,S17-NURSERY,http://opendatacommunities.org/id/county-council/staffordshire  
Staffordshire County Council,Stat-OOC transport,Hopedale Children & Families Services,12/06/2019,1227.20,Personal Travel Budgets,Personal Travel Budgets,http://opendatacommunities.org/id/county-council/staffordshire  
Staffordshire County Council,Stat-OOC transport,Hopedale Children & Families Services,12/06/2019,1227.20,Home School Contract Vehicles,Home School Contract Vehicles,http://opendatacommunities.org/id/county-council/staffordshire  
Staffordshire County Council,Independent Fees -Hospital Edu,Huntercombe Hospital Stafford,12/06/2019,2850.00,Fees to Independent Schools,Fees to Independent Schools,http://opendatacommunities.org/id/county-council/staffordshire  
Staffordshire County Council,Cannock Invoice Led Phys Disab,ICare (GB) Ltd,12/06/2019,602.64,Practical Care,Practical Care,http://opendatacommunities.org/id/county-council/staffordshire  
Staffordshire County Council,Brighton House,INTEGRATED WATER SERVICES,12/06/2019,902.40,Special Water Hygiene C & D's,Special Water Hygiene C & D's,http://opendatacommunities.org/id/county-council/staffordshire  
Staffordshire County Council,Stafford Invoice Led Older Peo,K and S Care Solutions Ltd,12/06/2019,952.65,Practical Care,Practical Care,http://opendatacommunities.org/id/county-council/staffordshire  
Staffordshire County Council,Newcastle LD Team,Lifeways Community Care Ltd,12/06/2019,1432.08,Practical Care,Practical Care,http://opendatacommunities.org/id/county-council/staffordshire  
Staffordshire County Council,Stafford Invoice Led Phys Disa,LSC Nursing Care & Services Ltd,12/06/2019,2255.15,Practical Care,Practical Care,http://opendatacommunities.org/id/county-council/staffordshire  
Staffordshire County Council,Stafford Invoice Led Phys Disa,LSC Nursing Care & Services Ltd,12/06/2019,2255.15,Practical Care,Practical Care,http://opendatacommunities.org/id/county-council/staffordshire  
Staffordshire County Council,Stafford Invoice Led Phys Disa,LSC Nursing Care & Services Ltd,12/06/2019,2255.15,Practical Care,Practical Care,http://opendatacommunities.org/id/county-council/staffordshire  
Staffordshire County Council,Stafford Invoice Led Phys Disa,LSC Nursing Care & Services Ltd,12/06/2019,2051.66,Practical Care,Practical Care,http://opendatacommunities.org/id/county-council/staffordshire  
Staffordshire County Council,Stafford Invoice Led Phys Disa,LSC Nursing Care & Services Ltd,12/06/2019,2255.15,Practical Care,Practical Care,http://opendatacommunities.org/id/county-council/staffordshire  
Staffordshire County Council,Waterside Court Enterprise Cen,M W CRIPWELL LTD,12/06/2019,670.68,General Equipment Repair/Maint,General Equipment Repair/Maint,http://opendatacommunities.org/id/county-council/staffordshire  
Staffordshire County Council,Pensions Fund,MARSH LTD,12/06/2019,7342.81,Insurance Premiums Paid,Insurance Premiums Paid,http://opendatacommunities.org/id/county-council/staffordshire  
Staffordshire County Council,Liability,MARSH LTD,12/06/2019,76715.52,Insurance Premiums Paid,Insurance Premiums Paid,http://opendatacommunities.org/id/county-council/staffordshire  
Staffordshire County Council,Property,MARSH LTD,12/06/2019,308227.82,Insurance Premiums Paid,Insurance Premiums Paid,http://opendatacommunities.org/id/county-council/staffordshire  
Staffordshire County Council,Property,MARSH LTD,12/06/2019,5710.32,Insurance Premiums Paid,Insurance Premiums Paid,http://opendatacommunities.org/id/county-council/staffordshire  
Staffordshire County Council,Property,MARSH LTD,12/06/2019,16699.48,Insurance Premiums Paid,Insurance Premiums Paid,http://opendatacommunities.org/id/county-council/staffordshire  
Staffordshire County Council,Liability,MARSH LTD,12/06/2019,730520.00,Insurance Premiums Paid,Insurance Premiums Paid,http://opendatacommunities.org/id/county-council/staffordshire  
Staffordshire County Council,Liability,MARSH LTD,12/06/2019,7672.00,Insurance Premiums Paid,Insurance Premiums Paid,http://opendatacommunities.org/id/county-council/staffordshire  
Staffordshire County Council,Liability,MARSH LTD,12/06/2019,57918.56,Insurance Premiums Paid,Insurance Premiums Paid,http://opendatacommunities.org/id/county-council/staffordshire  
Staffordshire County Council,Computer Insurance,MARSH LTD,12/06/2019,14056.18,Insurance Premiums Paid,Insurance Premiums Paid,http://opendatacommunities.org/id/county-council/staffordshire  
Staffordshire County Council,Property,MARSH LTD,12/06/2019,4145.72,Insurance Premiums Paid,Insurance Premiums Paid,http://opendatacommunities.org/id/county-council/staffordshire  
Staffordshire County Council,Fine Art & PA Travel,MARSH LTD,12/06/2019,7705.60,Insurance Premiums Paid,Insurance Premiums Paid,http://opendatacommunities.org/id/county-council/staffordshire  
Staffordshire County Council,School Journey,MARSH LTD,12/06/2019,11083.16,Insurance Premiums Paid,Insurance Premiums Paid,http://opendatacommunities.org/id/county-council/staffordshire  
Staffordshire County Council,Fidelity Guarantee,MARSH LTD,12/06/2019,34708.33,Insurance Premiums Paid,Insurance Premiums Paid,http://opendatacommunities.org/id/county-council/staffordshire  
Staffordshire County Council,Engineering,MARSH LTD,12/06/2019,153233.39,Insurance Premiums Paid,Insurance Premiums Paid,http://opendatacommunities.org/id/county-council/staffordshire  
Staffordshire County Council,EStaffs/Tamw Disability Team,MedGen Ltd,12/06/2019,1005.60,S17 FAMILY SUPPORT,S17 FAMILY SUPPORT,http://opendatacommunities.org/id/county-council/staffordshire  
Staffordshire County Council,EStaffs/Tamw Disability Team,MedGen Ltd,12/06/2019,519.94,S17 FAMILY SUPPORT,S17 FAMILY SUPPORT,http://opendatacommunities.org/id/county-council/staffordshire  
Staffordshire County Council,EStaffs/Tamw Disability Team,MedGen Ltd,12/06/2019,989.28,S17 FAMILY SUPPORT,S17 FAMILY SUPPORT,http://opendatacommunities.org/id/county-council/staffordshire  
Staffordshire County Council,EStaffs/Tamw Disability Team,MedGen Ltd,12/06/2019,1290.49,S17 FAMILY SUPPORT,S17 FAMILY SUPPORT,http://opendatacommunities.org/id/county-council/staffordshire  
Staffordshire County Council,Pre-Sale And Planning Costs,Movecorp,12/06/2019,2244.00,Ext Fees Construction,Ext Fees Construction,http://opendatacommunities.org/id/county-council/staffordshire  
Staffordshire County Council,P16 top up for Indep Specialis,National Star College,12/06/2019,31357.39,Events and Competitions,Events and Competitions,http://opendatacommunities.org/id/county-council/staffordshire  
Staffordshire County Council,DIPS,NATIONAL TEACHING ADVISORY SERVI,12/06/2019,1248.00, Alternative Education Schemes, Alternative Education Schemes,http://opendatacommunities.org/id/county-council/staffordshire  
Staffordshire County Council,Home to school transport-main,New Street Taxis,12/06/2019,17567.09,Manned Transpt - Hire Medical,Manned Transpt - Hire Medical,http://opendatacommunities.org/id/county-council/staffordshire  
Staffordshire County Council,Childcare,Patrick Gilmore,12/06/2019,1020.00,Legal Costs and Stamp Duty,Legal Costs and Stamp Duty,http://opendatacommunities.org/id/county-council/staffordshire  
Staffordshire County Council,Speed Awareness,R JOHNSON,12/06/2019,1300.00,DRIVING INSTRUCTION,DRIVING INSTRUCTION,http://opendatacommunities.org/id/county-council/staffordshire  
Staffordshire County Council,Rowley Farm Scheme,Ridgewood Contracts Ltd,12/06/2019,11462.86,General Equipment Repair/Maint,General Equipment Repair/Maint,http://opendatacommunities.org/id/county-council/staffordshire  
Staffordshire County Council,DIPS,Rising Stars Property Solutions CIC - Tr,12/06/2019,2028.00, Alternative Education Schemes, Alternative Education Schemes,http://opendatacommunities.org/id/county-council/staffordshire  
Staffordshire County Council,East Staffs Invoice Led Older ,RLS Care Services LTD,12/06/2019,567.00,Practical Care,Practical Care,http://opendatacommunities.org/id/county-council/staffordshire  
Staffordshire County Council,Lichfield Invoice Led Older Pe,RLS Care Services LTD,12/06/2019,510.30,Practical Care,Practical Care,http://opendatacommunities.org/id/county-council/staffordshire  
Staffordshire County Council,Newcastle Invoice Led Older Pe,RLS Care Services LTD,12/06/2019,680.40,Practical Care,Practical Care,http://opendatacommunities.org/id/county-council/staffordshire  
Staffordshire County Council,Newc/Moor CIC Through Care Tm,RUMPLAN T/A ROSEVILLE TAXIS & MNBSS,12/06/2019,660.00,S17 TRANSPORT,S17 TRANSPORT,http://opendatacommunities.org/id/county-council/staffordshire  
Staffordshire County Council,P16 top up for Indep Specialis,Ruskin Mill Educational Trust,12/06/2019,33000.00,Events and Competitions,Events and Competitions,http://opendatacommunities.org/id/county-council/staffordshire  
Staffordshire County Council,Moorlands Invoice Led Older Pe,S&W INDEPENDENT LIVING,12/06/2019,909.60,Practical Care,Practical Care,http://opendatacommunities.org/id/county-council/staffordshire  
Staffordshire County Council,Moorlands Invoice Led Older Pe,S&W INDEPENDENT LIVING,12/06/2019,600.60,Practical Care,Practical Care,http://opendatacommunities.org/id/county-council/staffordshire  
Staffordshire County Council,Moorlands Invoice Led Phys Dis,S&W INDEPENDENT LIVING,12/06/2019,1640.85,Practical Care,Practical Care,http://opendatacommunities.org/id/county-council/staffordshire  
Staffordshire County Council,F Gen Prev Activity,SANDWELL MET BOROUGH COUNCIL,12/06/2019,9000.00,OTHER HIRED SERVICES,OTHER HIRED SERVICES,http://opendatacommunities.org/id/county-council/staffordshire  
Staffordshire County Council,Growing Places Fund,Scott AM Ltd,12/06/2019,41364.00,Other contribs to provisions,Other contribs to provisions,http://opendatacommunities.org/id/county-council/staffordshire  
Staffordshire County Council,Superfast Broadband,SIGNAL RADIO,12/06/2019,1080.00,Marketing,Marketing,http://opendatacommunities.org/id/county-council/staffordshire  
Staffordshire County Council,Independent School Fee Nursery,Silkmore Primary Academy,12/06/2019,991.50,Grants to third parties,Grants to third parties,http://opendatacommunities.org/id/county-council/staffordshire  
Staffordshire County Council,Stafford LD Team,SOLIHULL MET BOROUGH COUNCIL,12/06/2019,64836.00,RCLS Learning Disability,RCLS Learning Disability,http://opendatacommunities.org/id/county-council/staffordshire  
Staffordshire County Council,1857 MarquisDriveBrindleyHeath,South Staffs Water Business,12/06/2019,1112.35,Water Charges Metered,Water Charges Metered,http://opendatacommunities.org/id/county-council/staffordshire  
Staffordshire County Council,0002 Cannock Ccent Cannock Roa,South Staffs Water Business,12/06/2019,501.19,Water Charges Metered,Water Charges Metered,http://opendatacommunities.org/id/county-council/staffordshire  
Staffordshire County Council,"0739 Anson St, Rugeley, WS15 2",South Staffs Water Business,12/06/2019,898.69,Water Charges Metered,Water Charges Metered,http://opendatacommunities.org/id/county-council/staffordshire  
Staffordshire County Council,1315 The Alders Lichfield Road,South Staffs Water Business,12/06/2019,2592.69,Water Charges Metered,Water Charges Metered,http://opendatacommunities.org/id/county-council/staffordshire  
Staffordshire County Council,Transport for Excluded Pupils,Tamworth Amateur Boxing Club,12/06/2019,4025.00,Home School Contract Vehicles,Home School Contract Vehicles,http://opendatacommunities.org/id/county-council/staffordshire  
Staffordshire County Council,DIPS,Tamworth Amateur Boxing Club,12/06/2019,2250.00, Alternative Education Schemes, Alternative Education Schemes,http://opendatacommunities.org/id/county-council/staffordshire  
Staffordshire County Council,Home to school transport-main,TAXICO,12/06/2019,16228.81,Home School Contract Vehicles,Home School Contract Vehicles,http://opendatacommunities.org/id/county-council/staffordshire  
Staffordshire County Council,Home to school transport-main,TAXICO,12/06/2019,16932.00,Home School Contract Vehicles,Home School Contract Vehicles,http://opendatacommunities.org/id/county-council/staffordshire  
Staffordshire County Council,LEP Core,The LEP Network Limited,12/06/2019,7200.00,Advertising,Advertising,http://opendatacommunities.org/id/county-council/staffordshire  
Staffordshire County Council,KCOM - Mobile Network,VIRGIN MEDIA BUSINESS,12/06/2019,38999.56,MOBILE PHONES,MOBILE PHONES,http://opendatacommunities.org/id/county-council/staffordshire  
Staffordshire County Council,Case Manage Team -Central West,Westbury Health Ltd,12/06/2019,590.61,Prev Supp Legal Costs,Prev Supp Legal Costs,http://opendatacommunities.org/id/county-council/staffordshire  
Staffordshire County Council,SCC Digital,ZENGENTI LTD,12/06/2019,4794.00,SOFTWARE LICENCES,SOFTWARE LICENCES,http://opendatacommunities.org/id/county-council/staffordshire  
Staffordshire County Council,Cannock Chase LD Team,Affinity Trust Ltd,13/06/2019,3217.95,Supported Group Care,Supported Group Care,http://opendatacommunities.org/id/county-council/staffordshire  
Staffordshire County Council,Cannock Chase LD Team,Affinity Trust Ltd,13/06/2019,3119.25,Supported Group Care,Supported Group Care,http://opendatacommunities.org/id/county-council/staffordshire  
Staffordshire County Council,Stafford Invoice Led Older Peo,AGE CONCERN STAFFORD & DIST,13/06/2019,23222.28,Day Care,Day Care,http://opendatacommunities.org/id/county-council/staffordshire  
Staffordshire County Council,Stafford Invoice Led Older Peo,AMG NURSING & CARE SERVICES,13/06/2019,974.96,Practical Care,Practical Care,http://opendatacommunities.org/id/county-council/staffordshire  
Staffordshire County Council,Newcastle MH Team U65,ARCH NORTH STAFFS LTD,13/06/2019,669.20,Supported Group Care,Supported Group Care,http://opendatacommunities.org/id/county-council/staffordshire  
Staffordshire County Council,Moorlands MH Team U65,ARCH NORTH STAFFS LTD,13/06/2019,1257.48,Supported Group Care,Supported Group Care,http://opendatacommunities.org/id/county-council/staffordshire  
Staffordshire County Council,Newcastle MH Team U65,ARCH NORTH STAFFS LTD,13/06/2019,573.60,Supported Group Care,Supported Group Care,http://opendatacommunities.org/id/county-council/staffordshire  
Staffordshire County Council,Moorlands MH Team U65,ARCH NORTH STAFFS LTD,13/06/2019,875.08,Supported Group Care,Supported Group Care,http://opendatacommunities.org/id/county-council/staffordshire  
Staffordshire County Council,Stock Management,Bertram Library Services,13/06/2019,1341.72,Books,Books,http://opendatacommunities.org/id/county-council/staffordshire  
Staffordshire County Council,Stock Management,Bertram Library Services,13/06/2019,536.35,Books,Books,http://opendatacommunities.org/id/county-council/staffordshire  
Staffordshire County Council,Stock Management,Bertram Library Services,13/06/2019,1226.63,Books,Books,http://opendatacommunities.org/id/county-council/staffordshire  
Staffordshire County Council,Stock Management,Bertram Library Services,13/06/2019,1091.08,Books,Books,http://opendatacommunities.org/id/county-council/staffordshire  
Staffordshire County Council,Communications,Birmingham City Council,13/06/2019,14009.84,Postages,Postages,http://opendatacommunities.org/id/county-council/staffordshire  
Staffordshire County Council,Independent School Fee Nursery,Bursley Academy,13/06/2019,2175.91,Grants to third parties,Grants to third parties,http://opendatacommunities.org/id/county-council/staffordshire  
Staffordshire County Council,Independent School Fee Nursery,Bursley Academy,13/06/2019,1865.60,Grants to third parties,Grants to third parties,http://opendatacommunities.org/id/county-council/staffordshire  
Staffordshire County Council,Family and Friends Team,CPK Empowering Families Ltd,13/06/2019,500.00,AGENCY STAFF,AGENCY STAFF,http://opendatacommunities.org/id/county-council/staffordshire  
Staffordshire County Council,Cannock Chase LD Team,CREATIVE SUPPORT,13/06/2019,679.68,Supported Group Care,Supported Group Care,http://opendatacommunities.org/id/county-council/staffordshire  
Staffordshire County Council,Cannock Chase LD Team,CREATIVE SUPPORT,13/06/2019,651.36,Supported Group Care,Supported Group Care,http://opendatacommunities.org/id/county-council/staffordshire  
Staffordshire County Council,Cannock Chase LD Team,CREATIVE SUPPORT,13/06/2019,623.04,Supported Group Care,Supported Group Care,http://opendatacommunities.org/id/county-council/staffordshire  
Staffordshire County Council,Cannock Chase LD Team,CREATIVE SUPPORT,13/06/2019,1458.48,Supported Group Care,Supported Group Care,http://opendatacommunities.org/id/county-council/staffordshire  
Staffordshire County Council,Cannock Chase LD Team,CREATIVE SUPPORT,13/06/2019,1842.95,Supported Group Care,Supported Group Care,http://opendatacommunities.org/id/county-council/staffordshire  
Staffordshire County Council,Lichfield LD Team,Creative Support Ltd,13/06/2019,594.72,Practical Care,Practical Care,http://opendatacommunities.org/id/county-council/staffordshire  
Staffordshire County Council,Responding To Accommodation Ch,First City Ltd,13/06/2019,3600.00,Ext Fees Construction,Ext Fees Construction,http://opendatacommunities.org/id/county-council/staffordshire  
Staffordshire County Council,Cannock MH Team U65,Grangemoor Care Homes Limited,13/06/2019,1580.36,Supported Group Care,Supported Group Care,http://opendatacommunities.org/id/county-council/staffordshire  
Staffordshire County Council,5438 Staffs Place 1&2Tipping S,INTEGRATED WATER SERVICES,13/06/2019,1651.56,Special Water Hygiene Service,Special Water Hygiene Service,http://opendatacommunities.org/id/county-council/staffordshire  
Staffordshire County Council,Newcastle LD Team,Jump 2 Independence Ltd,13/06/2019,573.54,Supported Group Care,Supported Group Care,http://opendatacommunities.org/id/county-council/staffordshire  
Staffordshire County Council,East Staffs Invoice Led Older ,Kind Hearts Care,13/06/2019,726.25,Practical Care,Practical Care,http://opendatacommunities.org/id/county-council/staffordshire  
Staffordshire County Council,Lichfield Invoice Led Older Pe,Kind Hearts Care,13/06/2019,792.25,Practical Care,Practical Care,http://opendatacommunities.org/id/county-council/staffordshire  
Staffordshire County Council,East Staffs Invoice Led Older ,Kind Hearts Care,13/06/2019,1887.55,Practical Care,Practical Care,http://opendatacommunities.org/id/county-council/staffordshire  
Staffordshire County Council,East Staffs Invoice Led Older ,Kind Hearts Care,13/06/2019,551.80,Practical Care,Practical Care,http://opendatacommunities.org/id/county-council/staffordshire  
Staffordshire County Council,Rugeley SU14,,13/06/2019,3664.71,S17 FAMILY SUPPORT,S17 FAMILY SUPPORT,http://opendatacommunities.org/id/county-council/staffordshire  
Staffordshire County Council,Workshop Overheads,M R H AUTOS,13/06/2019,540.00,CFC Purchase of Stock,CFC Purchase of Stock,http://opendatacommunities.org/id/county-council/staffordshire  
Staffordshire County Council,Cannock Enterprise Centre,Manpower Direct (UK) Ltd,13/06/2019,2001.36,Premises Services,Premises Services,http://opendatacommunities.org/id/county-council/staffordshire  
Staffordshire County Council,Stat-OOC transport,,13/06/2019,558.72,Home School Direct Payment,Home School Direct Payment,http://opendatacommunities.org/id/county-council/staffordshire  
Staffordshire County Council,Foster Care Recruitment Team,New Beacon Group,13/06/2019,1818.00,Training Resources,Training Resources,http://opendatacommunities.org/id/county-council/staffordshire  
Staffordshire County Council,Foster Care Recruitment Team,New Beacon Group,13/06/2019,581.40,Training Resources,Training Resources,http://opendatacommunities.org/id/county-council/staffordshire  
Staffordshire County Council,Placement Unit,Nick Barwick Consultancy Ltd,13/06/2019,608.88,Courses,Courses,http://opendatacommunities.org/id/county-council/staffordshire  
Staffordshire County Council,Stafford Invoice Led Older Peo,Radfield Home Care,13/06/2019,634.00,Practical Care,Practical Care,http://opendatacommunities.org/id/county-council/staffordshire  
Staffordshire County Council,Stafford Invoice Led Older Peo,Radfield Home Care,13/06/2019,530.00,Practical Care,Practical Care,http://opendatacommunities.org/id/county-council/staffordshire  
Staffordshire County Council,Stafford Invoice Led Phys Disa,Radfield Home Care,13/06/2019,1807.60,Practical Care,Practical Care,http://opendatacommunities.org/id/county-council/staffordshire  
Staffordshire County Council,Cannock West SU15,,13/06/2019,4961.32,S17 FAMILY SUPPORT,S17 FAMILY SUPPORT,http://opendatacommunities.org/id/county-council/staffordshire  
Staffordshire County Council,East Staffs Invoice Led Phys D,RLS Care Services LTD,13/06/2019,2268.00,Practical Care,Practical Care,http://opendatacommunities.org/id/county-council/staffordshire  
Staffordshire County Council,Newc/Moor CIC Through Care Tm,RUMPLAN T/A ROSEVILLE TAXIS & MNBSS,13/06/2019,666.00,S17 TRANSPORT,S17 TRANSPORT,http://opendatacommunities.org/id/county-council/staffordshire  
Staffordshire County Council,Fostering Main,SANDYTOTS,13/06/2019,700.00,Fostering Special Guardianship,Fostering Special Guardianship,http://opendatacommunities.org/id/county-council/staffordshire  
Staffordshire County Council,Fostering Main,SANDYTOTS,13/06/2019,735.00,Fostering Special Guardianship,Fostering Special Guardianship,http://opendatacommunities.org/id/county-council/staffordshire  
Staffordshire County Council,MCA / DoLs / AMHP,Shamrock Care Ltd,13/06/2019,1147.90,Independent Investigations,Independent Investigations,http://opendatacommunities.org/id/county-council/staffordshire  
Staffordshire County Council,South Staffs,SOUTH STAFFS DIST COUNCIL,13/06/2019,581.40,Conference Fees,Conference Fees,http://opendatacommunities.org/id/county-council/staffordshire  
Staffordshire County Council,Stat-OOC transport,SPORTING STARS COMM INTEREST CO,13/06/2019,570.00,Home School Contract Vehicles,Home School Contract Vehicles,http://opendatacommunities.org/id/county-council/staffordshire  
Staffordshire County Council,Stat-OOC transport,SPORTING STARS COMM INTEREST CO,13/06/2019,1520.00,Home School Contract Vehicles,Home School Contract Vehicles,http://opendatacommunities.org/id/county-council/staffordshire  
Staffordshire County Council,Stat-OOC transport,SPORTING STARS COMM INTEREST CO,13/06/2019,608.00,Home School Contract Vehicles,Home School Contract Vehicles,http://opendatacommunities.org/id/county-council/staffordshire  
Staffordshire County Council,Stat-OOC transport,SPORTING STARS COMM INTEREST CO,13/06/2019,608.00,Home School Contract Vehicles,Home School Contract Vehicles,http://opendatacommunities.org/id/county-council/staffordshire  
Staffordshire County Council,Stat-OOC transport,SPORTING STARS COMM INTEREST CO,13/06/2019,760.00,Home School Contract Vehicles,Home School Contract Vehicles,http://opendatacommunities.org/id/county-council/staffordshire  
Staffordshire County Council,Workforce Wellbeing Strategy,Strategic Artist Management,13/06/2019,650.00,CONSULTANT FEES,CONSULTANT FEES,http://opendatacommunities.org/id/county-council/staffordshire  
Staffordshire County Council,Home to school transport-main,Swad Cars LTD,13/06/2019,3245.76,Manned Transpt - Hire Medical,Manned Transpt - Hire Medical,http://opendatacommunities.org/id/county-council/staffordshire  
Staffordshire County Council,Audit,TIAA Ltd,13/06/2019,3402.00,AGENCY STAFF,AGENCY STAFF,http://opendatacommunities.org/id/county-council/staffordshire  
Staffordshire County Council,Concessionary Fare Schemes,TRENT MOTOR TRACTION CO LTD,13/06/2019,21611.00,Payments to Bus Operators,Payments to Bus Operators,http://opendatacommunities.org/id/county-council/staffordshire  
Staffordshire County Council,2 Contraception,Winshill Medical Centre,13/06/2019,505.00,other services external,other services external,http://opendatacommunities.org/id/county-council/staffordshire  
Staffordshire County Council,Placement Unit,YARNFIELD PARK,13/06/2019,3204.00,ACCOMMODATION,ACCOMMODATION,http://opendatacommunities.org/id/county-council/staffordshire  
Staffordshire County Council,Workforce Wellbeing Strategy,A Rose,14/06/2019,1890.00,CONSULTANT FEES,CONSULTANT FEES,http://opendatacommunities.org/id/county-council/staffordshire  
Staffordshire County Council,Stafford Invoice Led Phys Disa,Action Deafness,14/06/2019,800.00,Practical Care,Practical Care,http://opendatacommunities.org/id/county-council/staffordshire  
Staffordshire County Council,Cannock Invoice Led Phys Disab,Active Assistance Ltd,14/06/2019,1176.56,Practical Care,Practical Care,http://opendatacommunities.org/id/county-council/staffordshire  
Staffordshire County Council,Tamworth LD Team,Affinity Trust,14/06/2019,4093.38,Supported Group Care,Supported Group Care,http://opendatacommunities.org/id/county-council/staffordshire  
Staffordshire County Council,Tamworth LD Team,Affinity Trust,14/06/2019,4093.38,Supported Group Care,Supported Group Care,http://opendatacommunities.org/id/county-council/staffordshire  
Staffordshire County Council,S Staffs LD Team,Affinity Trust,14/06/2019,8106.00,Supported Group Care,Supported Group Care,http://opendatacommunities.org/id/county-council/staffordshire  
Staffordshire County Council,AEN Funding Academies/Free/Col,All Saints' CE (A) First Sch,14/06/2019,6174.40,Grants to third parties,Grants to third parties,http://opendatacommunities.org/id/county-council/staffordshire  
Staffordshire County Council,Merryfields School,,14/06/2019,524.40,Personal Travel Budgets,Personal Travel Budgets,http://opendatacommunities.org/id/county-council/staffordshire  
Staffordshire County Council,AEN Funding Academies/Free/Col,Anglesey Primary Academy,14/06/2019,4408.16,Grants to third parties,Grants to third parties,http://opendatacommunities.org/id/county-council/staffordshire  
Staffordshire County Council,AEN Funding Academies/Free/Col,Anson CE Primary,14/06/2019,1774.00,Grants to third parties,Grants to third parties,http://opendatacommunities.org/id/county-council/staffordshire  
Staffordshire County Council,Newcastle LD Team,Aspects Staffordshire Ltd,14/06/2019,1280.00,Practical Care,Practical Care,http://opendatacommunities.org/id/county-council/staffordshire  
Staffordshire County Council,Newcastle Invoice Led Older Pe,Aston Home Care Limited,14/06/2019,1058.30,Practical Care,Practical Care,http://opendatacommunities.org/id/county-council/staffordshire  
Staffordshire County Council,Stafford Invoice Led Phys Disa,Aston Home Care Limited,14/06/2019,747.50,Practical Care,Practical Care,http://opendatacommunities.org/id/county-council/staffordshire  
Staffordshire County Council,Improvements Contracts,AXIELL LTD,14/06/2019,47999.95,SOFTWARE LICENCES,SOFTWARE LICENCES,http://opendatacommunities.org/id/county-council/staffordshire  
Staffordshire County Council,AEN Funding Academies/Free/Col,Beresford Memorial CofE First School,14/06/2019,7001.50,Grants to third parties,Grants to third parties,http://opendatacommunities.org/id/county-council/staffordshire  
Staffordshire County Council,AEN Funding Academies/Free/Col,Beresford Memorial CofE First School,14/06/2019,7104.71,Grants to third parties,Grants to third parties,http://opendatacommunities.org/id/county-council/staffordshire  
Staffordshire County Council,Oakhill Primary School,BID,14/06/2019,612.00,Service/Test Controlled Access,Service/Test Controlled Access,http://opendatacommunities.org/id/county-council/staffordshire  
Staffordshire County Council,Chase Terrace Primary School,BID,14/06/2019,504.00,Service/Test Controlled Access,Service/Test Controlled Access,http://opendatacommunities.org/id/county-council/staffordshire  
Staffordshire County Council,The Friary School,BID,14/06/2019,612.00,Service/Test Controlled Access,Service/Test Controlled Access,http://opendatacommunities.org/id/county-council/staffordshire  
Staffordshire County Council,0921 Silverdale Library High S,BID,14/06/2019,1260.00,Service/Test Controlled Access,Service/Test Controlled Access,http://opendatacommunities.org/id/county-council/staffordshire  
Staffordshire County Council,AEN Funding Academies/Free/Col,BIDDULPH HIGH SCHOOL (ACADEMY),14/06/2019,8996.59,Grants to third parties,Grants to third parties,http://opendatacommunities.org/id/county-council/staffordshire  
Staffordshire County Council,AEN Funding Academies/Free/Col,Birches First School,14/06/2019,1065.63,Grants to third parties,Grants to third parties,http://opendatacommunities.org/id/county-council/staffordshire  
Staffordshire County Council,AEN Funding Academies/Free/Col,Bird's Bush Primary School,14/06/2019,1693.45,Grants to third parties,Grants to third parties,http://opendatacommunities.org/id/county-council/staffordshire  
Staffordshire County Council,AEN Funding Academies/Free/Col,Bird's Bush Primary School,14/06/2019,4733.55,Grants to third parties,Grants to third parties,http://opendatacommunities.org/id/county-council/staffordshire  
Staffordshire County Council,AEN Funding Academies/Free/Col,BLESSED WILLIAM HOWARD H SCHOOL,14/06/2019,3171.05,Grants to third parties,Grants to third parties,http://opendatacommunities.org/id/county-council/staffordshire  
Staffordshire County Council,Speed Awareness,BOUNDARY SCHOOL OF MOTORING,14/06/2019,780.00,DRIVING INSTRUCTION,DRIVING INSTRUCTION,http://opendatacommunities.org/id/county-council/staffordshire  
Staffordshire County Council,AEN Funding Academies/Free/Col,Brindley Heath Junior Academy,14/06/2019,7768.00,Grants to third parties,Grants to third parties,http://opendatacommunities.org/id/county-council/staffordshire  
Staffordshire County Council,AEN Funding Academies/Free/Col,Bursley Academy,14/06/2019,2371.00,Grants to third parties,Grants to third parties,http://opendatacommunities.org/id/county-council/staffordshire  
Staffordshire County Council,Cannock Chase,BUXTONS LTD,14/06/2019,562.80,General Equipment Purchase,General Equipment Purchase,http://opendatacommunities.org/id/county-council/staffordshire  
Staffordshire County Council,Operations Delivery,CANNOCK CHASE COUNCIL,14/06/2019,148800.00,Parish District Grass Cutting,Parish District Grass Cutting,http://opendatacommunities.org/id/county-council/staffordshire  
Staffordshire County Council,Stafford Invoice Led Phys Disa,CARE PLUS,14/06/2019,639.60,Practical Care,Practical Care,http://opendatacommunities.org/id/county-council/staffordshire  
Staffordshire County Council,AEN Funding Academies/Free/Col,Charnwood Primary Academy,14/06/2019,10747.47,Grants to third parties,Grants to third parties,http://opendatacommunities.org/id/county-council/staffordshire  
Staffordshire County Council,AEN Funding Academies/Free/Col,CHESLYN HAY ACADEMY,14/06/2019,4586.19,Grants to third parties,Grants to third parties,http://opendatacommunities.org/id/county-council/staffordshire  
Staffordshire County Council,AEN Funding Academies/Free/Col,CHESTERTON ACADEMY TRUST,14/06/2019,16937.42,Grants to third parties,Grants to third parties,http://opendatacommunities.org/id/county-council/staffordshire  
Staffordshire County Council,AEN Funding Academies/Free/Col,Chesterton Primary School,14/06/2019,7514.26,Grants to third parties,Grants to third parties,http://opendatacommunities.org/id/county-council/staffordshire  
Staffordshire County Council,AEN Funding Academies/Free/Col,Christ The King T/A St Mary's CPS,14/06/2019,10045.96,Grants to third parties,Grants to third parties,http://opendatacommunities.org/id/county-council/staffordshire  
Staffordshire County Council,Adoption Support Fund,Chrysalis Associates,14/06/2019,2500.00,PROFESSIONAL FEES,PROFESSIONAL FEES,http://opendatacommunities.org/id/county-council/staffordshire  
Staffordshire County Council,AEN Funding Academies/Free/Col,CHURCHFIELDS PRIM SCHOOL,14/06/2019,2008.63,Grants to third parties,Grants to third parties,http://opendatacommunities.org/id/county-council/staffordshire  
Staffordshire County Council,AEN Funding Academies/Free/Col,Churnet View Middle School,14/06/2019,11905.95,Grants to third parties,Grants to third parties,http://opendatacommunities.org/id/county-council/staffordshire  
Staffordshire County Council,Home to school transport-main,COASTAL LINER LTD,14/06/2019,2431.00,Home School Tickets,Home School Tickets,http://opendatacommunities.org/id/county-council/staffordshire  
Staffordshire County Council,AEN Funding Academies/Free/Col,Colwich CofE Primary School,14/06/2019,1806.21,Grants to third parties,Grants to third parties,http://opendatacommunities.org/id/county-council/staffordshire  
Staffordshire County Council,SWS MH Team U65,Craegmoor Priory Group,14/06/2019,2100.00,Supported Group Care,Supported Group Care,http://opendatacommunities.org/id/county-council/staffordshire  
Staffordshire County Council,Stafford Invoice Led Older Peo,CSPC Healthcare Ltd,14/06/2019,630.00,Practical Care,Practical Care,http://opendatacommunities.org/id/county-council/staffordshire  
Staffordshire County Council,Stafford Invoice Led Older Peo,CSPC Healthcare Ltd,14/06/2019,720.00,Practical Care,Practical Care,http://opendatacommunities.org/id/county-council/staffordshire  
Staffordshire County Council,Stafford Invoice Led Older Peo,CSPC Healthcare Ltd,14/06/2019,630.00,Practical Care,Practical Care,http://opendatacommunities.org/id/county-council/staffordshire  
Staffordshire County Council,Stafford Invoice Led Older Peo,CSPC Healthcare Ltd,14/06/2019,562.50,Practical Care,Practical Care,http://opendatacommunities.org/id/county-council/staffordshire  
Staffordshire County Council,Stafford Invoice Led Older Peo,CSPC Healthcare Ltd,14/06/2019,720.00,Practical Care,Practical Care,http://opendatacommunities.org/id/county-council/staffordshire  
Staffordshire County Council,Stafford Invoice Led Older Peo,CSPC Healthcare Ltd,14/06/2019,720.00,Practical Care,Practical Care,http://opendatacommunities.org/id/county-council/staffordshire  
Staffordshire County Council,Stafford Invoice Led Older Peo,CSPC Healthcare Ltd,14/06/2019,630.00,Practical Care,Practical Care,http://opendatacommunities.org/id/county-council/staffordshire  
Staffordshire County Council,Stafford Invoice Led Older Peo,CSPC Healthcare Ltd,14/06/2019,630.00,Practical Care,Practical Care,http://opendatacommunities.org/id/county-council/staffordshire  
Staffordshire County Council,Workforce Wellbeing Strategy,CTC PHYSIOTHERAPY,14/06/2019,4678.50,CONSULTANT FEES,CONSULTANT FEES,http://opendatacommunities.org/id/county-council/staffordshire  
Staffordshire County Council,Stat-OOC transport,,14/06/2019,766.67,Personal Travel Budgets,Personal Travel Budgets,http://opendatacommunities.org/id/county-council/staffordshire  
Staffordshire County Council,School Admissions - Secondary,David Tyler,14/06/2019,946.30,LEGAL,LEGAL,http://opendatacommunities.org/id/county-council/staffordshire  
Staffordshire County Council,AEN Funding Academies/Free/Col,De Ferrers Academy,14/06/2019,2105.60,Grants to third parties,Grants to third parties,http://opendatacommunities.org/id/county-council/staffordshire  
Staffordshire County Council,East Staffs Invoice Led Older ,Desire Care,14/06/2019,640.31,Practical Care,Practical Care,http://opendatacommunities.org/id/county-council/staffordshire  
Staffordshire County Council,AEN Funding Academies/Free/Col,Dosthill Primary Academy,14/06/2019,3415.81,Grants to third parties,Grants to third parties,http://opendatacommunities.org/id/county-council/staffordshire  
Staffordshire County Council,SStaffs Invoice Led Older Peop,ELR Homecare,14/06/2019,908.00,Practical Care,Practical Care,http://opendatacommunities.org/id/county-council/staffordshire  
Staffordshire County Council,SStaffs Invoice Led Older Peop,ELR Homecare,14/06/2019,1023.75,Practical Care,Practical Care,http://opendatacommunities.org/id/county-council/staffordshire  
Staffordshire County Council,Stafford Invoice Led Older Peo,Embrace Quality Care,14/06/2019,680.50,Practical Care,Practical Care,http://opendatacommunities.org/id/county-council/staffordshire  
Staffordshire County Council,Stafford Invoice Led Phys Disa,Embrace Quality Care,14/06/2019,527.00,Practical Care,Practical Care,http://opendatacommunities.org/id/county-council/staffordshire  
Staffordshire County Council,Lichfield LD Team,Empowering U Care Ltd,14/06/2019,2006.20,Day Care,Day Care,http://opendatacommunities.org/id/county-council/staffordshire  
Staffordshire County Council,Project A - A50 Growth Corrido,Environment Agency,14/06/2019,4907.70,Construction Works,Construction Works,http://opendatacommunities.org/id/county-council/staffordshire  
Staffordshire County Council,AEN Funding Academies/Free/Col,Eton Park Jnr De Ferrers Trst Acdmy,14/06/2019,6686.06,Grants to third parties,Grants to third parties,http://opendatacommunities.org/id/county-council/staffordshire  
Staffordshire County Council,AEN Funding Academies/Free/Col,Featherstone Academy,14/06/2019,4210.91,Grants to third parties,Grants to third parties,http://opendatacommunities.org/id/county-council/staffordshire  
Staffordshire County Council,AEN Funding Academies/Free/Col,FIVE SPIRES ACADEMY NURSERY,14/06/2019,14583.20,Grants to third parties,Grants to third parties,http://opendatacommunities.org/id/county-council/staffordshire  
Staffordshire County Council,AEN Funding Academies/Free/Col,FIVE SPIRES ACADEMY NURSERY,14/06/2019,829.43,Grants to third parties,Grants to third parties,http://opendatacommunities.org/id/county-council/staffordshire  
Staffordshire County Council,Stock Suspense Account,Fleet Factors Ltd,14/06/2019,5348.17,CFC Purchase of Stock,CFC Purchase of Stock,http://opendatacommunities.org/id/county-council/staffordshire  
Staffordshire County Council,AEN Funding Academies/Free/Col,Foley Infant Academy,14/06/2019,1402.00,Grants to third parties,Grants to third parties,http://opendatacommunities.org/id/county-council/staffordshire  
Staffordshire County Council,Staffordshire Wood Fuel,GELLATLY STAFFORD LTD,14/06/2019,2039.04,Wood Chip,Wood Chip,http://opendatacommunities.org/id/county-council/staffordshire  
Staffordshire County Council,Cherry Trees School,,14/06/2019,665.00,Personal Travel Budgets,Personal Travel Budgets,http://opendatacommunities.org/id/county-council/staffordshire  
Staffordshire County Council,AEN Funding Academies/Free/Col,Gentleshaw Primary School,14/06/2019,1407.63,Grants to third parties,Grants to third parties,http://opendatacommunities.org/id/county-council/staffordshire  
Staffordshire County Council,AEN Funding Academies/Free/Col,Gnosall St Lawrence C of E Academy,14/06/2019,4124.42,Grants to third parties,Grants to third parties,http://opendatacommunities.org/id/county-council/staffordshire  
Staffordshire County Council,AEN Funding Academies/Free/Col,Grange Infant School,14/06/2019,1833.86,Grants to third parties,Grants to third parties,http://opendatacommunities.org/id/county-council/staffordshire  
Staffordshire County Council,Quality Budget,Haines Watts,14/06/2019,4554.00,OTHER HIRED SERVICES,OTHER HIRED SERVICES,http://opendatacommunities.org/id/county-council/staffordshire  
Staffordshire County Council,SStaffs Invoice Led Older Peop,Hands on Care Wombourne Ltd,14/06/2019,2785.86,Practical Care,Practical Care,http://opendatacommunities.org/id/county-council/staffordshire  
Staffordshire County Council,S Staffs Invoice Led Physic Di,Hands on Care Wombourne Ltd,14/06/2019,854.31,Practical Care,Practical Care,http://opendatacommunities.org/id/county-council/staffordshire  
Staffordshire County Council,SStaffs Invoice Led Older Peop,Hands on Care Wombourne Ltd,14/06/2019,711.79,Practical Care,Practical Care,http://opendatacommunities.org/id/county-council/staffordshire  
Staffordshire County Council,S Staffs Invoice Led Physic Di,Hands on Care Wombourne Ltd,14/06/2019,3293.06,Practical Care,Practical Care,http://opendatacommunities.org/id/county-council/staffordshire  
Staffordshire County Council,SStaffs Invoice Led Older Peop,Hands on Care Wombourne Ltd,14/06/2019,1318.31,Practical Care,Practical Care,http://opendatacommunities.org/id/county-council/staffordshire  
Staffordshire County Council,AEN Funding Academies/Free/Col,Hart School,14/06/2019,5868.42,Grants to third parties,Grants to third parties,http://opendatacommunities.org/id/county-council/staffordshire  
Staffordshire County Council,AEN Funding Academies/Free/Col,Hazel Slade Primary Academy,14/06/2019,1571.04,Grants to third parties,Grants to third parties,http://opendatacommunities.org/id/county-council/staffordshire  
Staffordshire County Council,Cannock Invoice Led Older Peop,HEADWAY SOUTH STAFFORDSHIRE,14/06/2019,549.09,Practical Care,Practical Care,http://opendatacommunities.org/id/county-council/staffordshire  
Staffordshire County Council,1446 51a Sandyford St Stafford,HEATELECT LIMITED,14/06/2019,778.98,Day to Day Mechanical Services,Day to Day Mechanical Services,http://opendatacommunities.org/id/county-council/staffordshire  
Staffordshire County Council,AEN Funding Academies/Free/Col,Heath Hayes Academy,14/06/2019,3515.98,Grants to third parties,Grants to third parties,http://opendatacommunities.org/id/county-council/staffordshire  
Staffordshire County Council,East Staffs Invoice Led Phys D,Helping Hands,14/06/2019,1017.80,Practical Care,Practical Care,http://opendatacommunities.org/id/county-council/staffordshire  
Staffordshire County Council,Lichfield Invoice Led Older Pe,Helping Hands,14/06/2019,1218.65,Practical Care,Practical Care,http://opendatacommunities.org/id/county-council/staffordshire  
Staffordshire County Council,Stafford Invoice Led Older Peo,Helping Hands,14/06/2019,767.00,Practical Care,Practical Care,http://opendatacommunities.org/id/county-council/staffordshire  
Staffordshire County Council,SStaffs Invoice Led Older Peop,Helping Hands,14/06/2019,1584.00,Practical Care,Practical Care,http://opendatacommunities.org/id/county-council/staffordshire  
Staffordshire County Council,SStaffs Invoice Led Older Peop,Helping Hands,14/06/2019,2009.25,Practical Care,Practical Care,http://opendatacommunities.org/id/county-council/staffordshire  
Staffordshire County Council,SStaffs Invoice Led Older Peop,Helping Hands,14/06/2019,911.00,Practical Care,Practical Care,http://opendatacommunities.org/id/county-council/staffordshire  
Staffordshire County Council,SStaffs Invoice Led Older Peop,Helping Hands,14/06/2019,1443.00,Practical Care,Practical Care,http://opendatacommunities.org/id/county-council/staffordshire  
Staffordshire County Council,SStaffs Invoice Led Older Peop,Helping Hands,14/06/2019,4195.20,Practical Care,Practical Care,http://opendatacommunities.org/id/county-council/staffordshire  
Staffordshire County Council,SStaffs Invoice Led Older Peop,Helping Hands,14/06/2019,1022.45,Practical Care,Practical Care,http://opendatacommunities.org/id/county-council/staffordshire  
Staffordshire County Council,Moorlands Invoice Led Older Pe,Helping Hands,14/06/2019,1700.85,Practical Care,Practical Care,http://opendatacommunities.org/id/county-council/staffordshire  
Staffordshire County Council,Moorlands Invoice Led Older Pe,Helping Hands,14/06/2019,529.95,Practical Care,Practical Care,http://opendatacommunities.org/id/county-council/staffordshire  
Staffordshire County Council,Moorlands Invoice Led Older Pe,Helping Hands,14/06/2019,2041.25,Practical Care,Practical Care,http://opendatacommunities.org/id/county-council/staffordshire  
Staffordshire County Council,Newcastle Invoice Led Older Pe,Helping Hands,14/06/2019,1841.00,Practical Care,Practical Care,http://opendatacommunities.org/id/county-council/staffordshire  
Staffordshire County Council,Newcastle Invoice Led Physical,Helping Hands,14/06/2019,2368.00,Practical Care,Practical Care,http://opendatacommunities.org/id/county-council/staffordshire  
Staffordshire County Council,AEN Funding Academies/Free/Col,Hempstalls Primary School,14/06/2019,7413.63,Grants to third parties,Grants to third parties,http://opendatacommunities.org/id/county-council/staffordshire  
Staffordshire County Council,AEN Funding Academies/Free/Col,Holy Rosary Catholic Voluntary Academy,14/06/2019,906.84,Grants to third parties,Grants to third parties,http://opendatacommunities.org/id/county-council/staffordshire  
Staffordshire County Council,E Staffs LD Team,Home Instead Senior Care (Burton),14/06/2019,604.50,Practical Care,Practical Care,http://opendatacommunities.org/id/county-council/staffordshire  
Staffordshire County Council,AEN Funding Academies/Free/Col,Horninglow Prim De Ferrers Trst Acd,14/06/2019,5276.05,Grants to third parties,Grants to third parties,http://opendatacommunities.org/id/county-council/staffordshire  
Staffordshire County Council,Central Winter Maintenance Wor,I & M Shaw Ltd,14/06/2019,3238.50,Winter Maint - Snow Clearing,Winter Maint - Snow Clearing,http://opendatacommunities.org/id/county-council/staffordshire  
Staffordshire County Council,Destination Management Partner,IAN WEIGHTMAN MEDIA SERVICES,14/06/2019,1156.80,AGENCY STAFF,AGENCY STAFF,http://opendatacommunities.org/id/county-council/staffordshire  
Staffordshire County Council,"King Edward VI School, Lich",J TOMLINSON LTD,14/06/2019,2064.00,Service/Test Gas / Oil Boiler,Service/Test Gas / Oil Boiler,http://opendatacommunities.org/id/county-council/staffordshire  
Staffordshire County Council,The Friary School,J TOMLINSON LTD,14/06/2019,1692.00,Service/Test Gas / Oil Boiler,Service/Test Gas / Oil Boiler,http://opendatacommunities.org/id/county-council/staffordshire  
Staffordshire County Council,AEN Funding Academies/Free/Col,James Bateman Middle School,14/06/2019,22969.33,Grants to third parties,Grants to third parties,http://opendatacommunities.org/id/county-council/staffordshire  
Staffordshire County Council,AEN Funding Academies/Free/Col,JCB ACADEMY,14/06/2019,2826.76,Grants to third parties,Grants to third parties,http://opendatacommunities.org/id/county-council/staffordshire  
Staffordshire County Council,MCA / DoLs / AMHP,JG Social Care Ltd,14/06/2019,825.00,Independent Investigations,Independent Investigations,http://opendatacommunities.org/id/county-council/staffordshire  
Staffordshire County Council,Selling Service,Jimmy Barber,14/06/2019,1284.00,Legal Costs and Stamp Duty,Legal Costs and Stamp Duty,http://opendatacommunities.org/id/county-council/staffordshire  
Staffordshire County Council,AEN Funding Academies/Free/Col,John of Rolleston Primary School,14/06/2019,6316.03,Grants to third parties,Grants to third parties,http://opendatacommunities.org/id/county-council/staffordshire  
